Workbook

Sheet Intro
A3: Capitalization Table
A5: You can customize this template by filling in a simple form, without editing a spreadsheet.
A6: This is a small and simplified working sample of the capitalization table template.
A8: A customizable template is a flexible model that you can adapt to your situation by filling in a simple form, without editing a spreadsheet or its formulas. For example, you can specify time range and time grain; number and names of items in a dimension (such as your products and product families); and include or exclude major features. The resulting spreadsheet matches your needs better than any standard template.
A9: Get a customized version of this template on our website.
A11: ModelSheet provides you with customized templates in three ways.
A13: 1. Order a customized version of this template.
A14: Click "+" for more information.
A15: • You can specify custom features by filling out a simple form. (Click on "+" for more information.)
A16: Precise customizations vary from template to template. Examples:
A17: − Specify the starting time, time range, time grain and rollup time grains (such as annual sums).
A18: − Specify the items in a dimension and levels of hierarchy (such as product families and products).
A19: − Include or exclude entire sub-models in the template.
A20: − These features address the most serious problem with conventional spreadsheet templates: You can customize a template in many ways without having to interpret and edit numerous cell formulas.
A22: • You can edit many aspects of your Excel template after receiving it. (Click on "+" for more information.)
A23: − Edit input data in clearly marked input cells.
A24: − Edit the model start date of a template, so your template is not out of date when the start date changes.
A25: − Edit names of dimension items in once place (such as products, departments, expense accounts).
A27: • ModelSheet Excel templates are easier to understand. (Click on "+" for more information.)
A28: − Each table has an Excel comment that provides a variable name and explains the variable.
A29: − Worksheet "Formulas" expresses the entire model with named variables and symbolic formulas. Although the symbolic formulas are not executable in Excel, they are what the model is made from in ModelSheet.
A30: − You never need to read inscrutable cell formulas to understand a ModelSheet customized template.
A32: Explore our customized templates.
A34: 2. If you want more customizations, retain ModelSheet Software to build them for you.
A35: Click "+" for more information.
A36: • Our staff has extensive experience in many areas of business and engineering analysis.
A37: • ModelSheet technology enables us to offer you more value for your consulting dollar.
A39: Learn more about consulting services.
A41: 3. Use the ModelSheet Authoring Environment to build and customize your spreadsheet models.
A43: The ModelSheet Authoring Environment is a SaaS application for developing and maintaining business models and delivering them in conventional spreadsheets.
A44: Click "+" to learn more about ModelSheet technology that makes customized template possible.
A46: This Excel workbook was generated using ModelSheet, a revolutionary new spreadsheet technology. ModelSheet allows you to develop business models using readable formulas, while avoiding the details of cell addresses and hard-to-change sheet layouts. The end result is a conventional Excel workbook just like this one. We built ModelSheet because we believe that spreadsheets are a great way of communicating results but we think it's just too hard to use them to develop reliable, maintainable, expressive and collaborative models.
A48: You'll get a glimpse of ModelSheet's advantages when you take a look at the "Formulas" tab and realize how few separate, readable formulas are needed to produce all of the other worksheets. In addition to formulas, ModelSheet knows about the "dimensions" in your model (e.g., products, locations, departments) as well as the time series that you're using (e.g., 5 years in quarters.) ModelSheet raises the level of thinking and acting from individual cells to natural modeling concepts. It enhances model reliabilty, auditability and maintainability; it enables you to build models that better reflect your intentions; it allows easier collaboration between modelers, developers, and report users; and it improves productivity, especially when making changes to a model.
A50: The ModelSheet authoring environment raises the level of thinking and acting from individual cells to natural modeling concepts like variables, dimensions, time series and accounting types. It enhances model reliabilty, auditability and maintainability; it enables you to build models that better reflect your intentions; it allows easier collaboration between modelers, developers, and report users; and it improves productivity, especially when making changes to a model.
A52: We have more to tell you about ModelSheet and we'd like to hear about your needs for templates and models.
A53: Please visit our website at www.modelsheetsoft.com
A54: or contact us at info@modelsheetsoft.com.
A58: Description of the Capitalization Table Model
A60: Capitalization tables track investments, common and preferred shares, options, notes, preference rights through multiple rounds of financing of a company. The complexity of this application makes it an ideal application for ModelSheet. The Standard version does not contain all featurse listed below. See the comparison table on our website for more information.
A62: Types of Securities
A64: The model includes five types of securities.
A66: • Convertible notes earn non-cash payments (termed dividends). See Technical Notes below for default conversion rules.
A68: • Preferred shares earn a dividend and can convert to common stock.
A70: • Common stock
A72: • Warrants have an exercise price, a selling price, and exercise conditions. See Technical Notes below for default exercise rules.
A74: • Options have an exercise price, a selling price, and exercise conditions.
A76: ModelSheet can easily change the number of series for each types of security. (Such changes would present a major challenge if authoring were performed using conventional spreadsheets).
A78: Major Computed Results
A80: The model computes:
A82: • the value and share units of each type of security owned before and after each transaction round.
A84: • the number of share units of each type purchased at each transaction round.
A86: • the number of fully diluted common share units before and after each conversion event.
A88: • the valuation of each type of security before and after each transaction round, and the value of the enterprise before and after each transaction round.
A90: • the payout at liquidation to each type of security, accounting for liquidation preferences of senior securities.
A92: Investment Rounds
A94: The model includes a number of investment rounds that you can set, including 'Exit'. You can specify the number of rounds in your customized template.
A96: Phases within Each Investment Round
A98: Each investment round has five phases that occur in this order, and include these transactions.
A100: 1. "Start Phase": Stock splits occur and dividends in kind are paid at the start of each investment round.
A102: 2. "New Sales Phase": Sell new securities (convertible notes, preferred stock, warrants, options, common stock)
A104: 3. "Post Sales Phase": Record investments and share units after sale of new securities.
A106: 4. "Conversion Phase": Stakeholders can convert notes and preferred shares and can exercise warrants and options to obtain common stock.
A108: 5. "End Phase": Record security holdings, prices and values at the end of the investment round.
A110: All five phases are assumed to occur on the date of the investment round.
A112: You can edit this phase structure of a round in customized templates. You can edit the phase structure using ModelSheet Authoring. This is a fairly complex process, but it is much easier to do with ModelSheet Authoring than with conventional spreadsheets.
A114: Investment and Return on Investment
A116: The model reports three measures of return on investment for each series of each type of security.
A118: • Return multiples: the multiple of investment that is paid out
A120: • Present value of the cash flow for each series of each type of security. The discount rates can differ across series and types of securities to reflect different risk profiles.
A122: • Internal rate of return for the cash flow from each type of security
A124: The key results are collected on worksheets 'Investment', 'Shares', 'Valuation', and 'Payout'.
A128: Technical Notes
A130: Valuation and Security Prices
A132: The following principles determine valuation and securities prices
A133: 1. The value of the firm at the start of each investment round is an exogenous input that reflects the expected future cash flows of the firm.
A134: 2. In any phase of an investment round, the sum of the values of all five types of securities equals the value of the firm. Similarly, the sum of th values of all series of a given type of security equals the value of that type of security.
A135: 3. All unconverted notes and preferred shares are valued at their liquidation preferences.
A136: 4. All unexercised warrants and options are valued at max(0, common share price - exercise price). This valuation ignores impact on option price of stock volatility, riskless returns, and dividend rate.
A137: 5. The total value of all common shares equals the value of the firm less liquidiation preferences of unconverted notes and preferred shares less valuation of unexercised warrants and options. The price of a common share equals the value of all common shares / number of common shares.
A139: Conversion and Exercise Decisions
A141: The model includes default decisions for conversion of notes and preferred shares and exercise of warrants and options. Five criteria just be satisfied in order for the default conversion and exercise decision to be positive.
A142: 1. The date of the current round >= a specified trigger date
A143: 2. The sum of investments in common, preferred and notes > a specified trigger investment threshhold
A144: 3. For notes and preferred: investment in notes + preferred < a stated fraction of firm value.
A145: 4. For notes and preferred: value of common shares obtained > (1+premium) * liquidation preference.
A146: 5. For warrants and options: common share price >= exercise price."
A148: You can set numerous parameters that influence these default conversion and exercise decisions. You can also override these default decision rules entirely by entering how much of each type of security is converted or exercised in each investment round.
A150: Inputs to the Model
A152: You can edit inputs in cells shaded darker blue on the worksheets 'Inputs' and 'Scenario Inputs.'
A153: • The number of investment rounds and their names and dates.
A154: • The valuation of the enterprise at the start of each investment round.
A155: • The amount invested in new common shares, preferred shares, and convertible notes in each round.
A156: • The number of new warrants and options purchased in each investment round.
A157: − The number of shares for convertible notes is not determined until conversion.
A158: − Parameters that determine unit purchase prices, conversion timing, and conversion prices for preferred stock, warrants and options.
A159: • The exercise price and purchase price of each type of option at each transaction event.
A160: You can also override the model's assumption for conversion and exercise of securities by entering new conversion percentages in the dark blue cells in variable 'Converting %' on worksheet 'Conversion'.
A162: If this Spreadsheet Solution lacks some of the features you need…
A164: We offer custom development services to add features you want to our spreadsheet solutions, and to build new solutions from scratch. For more information about our consulting services, see:
A165: http://www.modelsheetsoft.com/consulting-business-analysis.aspx
A166: To discuss your specific needs, please contact us at:
A167: info@modelsheetsoft.com.
A170: This Excel workbook was generated by ModelSheet on August 28, 2010, except for this worksheet of comments.
A172: Copyright © 2009, 2010 ModelSheet Software, LLC
A173: ModelSheet and the ModelSheet logo are registered trademarks of ModelSheet Software, LLC.

Sheet Graphs

Sheet Inputs
A1: ="Capitalization Table" -> Capitalization Table
A2: =B8 -> ABC Corp.
A3: =IF("Inputs"="(Default Input)","Ignore this sheet in normal use.","Investment Scenario "&1&", Valuation Scenario "&1) -> Investment Scenario 1, Valuation Scenario 1
A4: ="Input Data"&"" -> Input Data
A5: =" " -> 
A6: ="Shaded cells are input cells. You can enter data in them." -> Shaded cells are input cells. You can enter data in them.
A7: ="Formulas in shaded cells are starting suggestions. You can overwrite them." -> Formulas in shaded cells are starting suggestions. You can overwrite them.
A8: =Labels!B5 -> Company Name | B8: ABC Corp.
A11: ="Event Data" -> Event Data
A12: =" " -> 
B13: =Labels!B98 -> Seed | C13: =Labels!B99 -> Round A | D13: =Labels!B100 -> Exit
A14: =Labels!B21 -> Event Date | B14: =DATE(2010,11*1-3,1) -> 2010-08-01 | C14: =DATE(2010,11*2-3,1) -> 2011-07-01 | D14: =DATE(2010,11*3-3,1) -> 2012-06-01
A15: ="" -> 
A19: ="Convertible Notes" -> Convertible Notes
A20: =" " -> 
A21: =" " -> 
B22: =Labels!B13 -> Conv Discount % | C22: =Labels!B47 -> Liq Multiple | D22: =Labels!B19 -> Dividend % (Yr)
A23: =Labels!B104 -> Series B | B23: =0.3 -> 30% | C23: =1 -> 1.000 | D23: =0.04 -> 4.0%
A24: =Labels!B105 -> Series A | B24: =0.3 -> 30% | C24: =1 -> 1.000 | D24: =0.04 -> 4.0%
A26: ="Conversion Criteria" -> Conversion Criteria
B27: =Labels!B9 -> Trigger Date | C27: =Labels!B10 -> Trigger Invest | D27: =Labels!B11 -> Trigger Value % | E27: =Labels!B8 -> Liq Premium %
A28: =Labels!B104 -> Series B | B28: =DATE(2011,4,1) -> 2011-04-01 | C28: =1000000 -> $1,000,000 | D28: =0.5 -> 50% | E28: =0.2 -> 0.20
A29: =Labels!B105 -> Series A | B29: =DATE(2011,4,1) -> 2011-04-01 | C29: =1000000 -> $1,000,000 | D29: =0.5 -> 50% | E29: =0.2 -> 0.20
A31: ="Rates of Return" -> Rates of Return
B32: =Labels!B14 -> Discount Rate (Yr) | C32: =Labels!B45 -> IRR Initial Guess (Yr)
A33: =Labels!B104 -> Series B | B33: =0.3 -> 30% | C33: =0.5 -> 50.0%
A34: =Labels!B105 -> Series A | B34: =0.3 -> 30% | C34: =0.5 -> 50.0%
B36: =Labels!B98 -> Seed | C36: =Labels!B99 -> Round A | D36: =Labels!B100 -> Exit | E36: =Labels!C97 -> Total
A37: =Labels!B43 -> New Investment
A38: =" "&Labels!B104 -> Series B | B38: =0 -> $0 | C38: =0 -> $0 | D38: =0 -> $0 | E38: =SUM(B38:D38) -> $0
A39: =" "&Labels!B105 -> Series A | B39: =0 -> $0 | C39: =0 -> $0 | D39: =0 -> $0 | E39: =SUM(B39:D39) -> $0
A40: =" "&Labels!C103 -> Subtotal | B40: =SUM(B38:B39) -> $0 | C40: =SUM(C38:C39) -> $0 | D40: =SUM(D38:D39) -> $0 | E40: =SUM(E38:E39) -> $0
A44: ="Stock" -> Stock
A45: =" " -> 
A46: ="Preferred Shares" -> Preferred Shares
A47: =" " -> 
B48: =Labels!B98 -> Seed | C48: =Labels!B99 -> Round A | D48: =Labels!B100 -> Exit
A49: =Labels!B66 -> Price Premium %
A50: =" "&Labels!B107 -> Series A | B50: =0.1 -> 10.0% | C50: =B50 -> 10.0% | D50: =C50 -> 10.0%
B52: =Labels!B47 -> Liq Multiple | C52: =Labels!B19 -> Dividend % (Yr)
A53: =Labels!B107 -> Series A | B53: =1 -> 1.000 | C53: =0.06 -> 6.0%
A55: ="Conversion Criteria" -> Conversion Criteria
B56: =Labels!B9 -> Trigger Date | C56: =Labels!B10 -> Trigger Invest | D56: =Labels!B11 -> Trigger Value % | E56: =Labels!B8 -> Liq Premium %
A57: =Labels!B107 -> Series A | B57: =DATE(2011,4,1) -> 2011-04-01 | C57: =1500000 -> $1,500,000 | D57: =0.5 -> 50% | E57: =-0.2 -> -0.20
A59: ="Rates of Return" -> Rates of Return
B60: =Labels!B14 -> Discount Rate (Yr) | C60: =Labels!B45 -> IRR Initial Guess (Yr)
A61: =Labels!B107 -> Series A | B61: =0.3 -> 30% | C61: =0.5 -> 50.0%
B63: =Labels!B98 -> Seed | C63: =Labels!B99 -> Round A | D63: =Labels!B100 -> Exit | E63: =Labels!C97 -> Total
A64: =Labels!B43 -> New Investment
A65: =" "&Labels!B107 -> Series A | B65: =0 -> $0 | C65: =0 -> $0 | D65: =0 -> $0 | E65: =SUM(B65:D65) -> $0
A66: =" "&Labels!C106 -> Subtotal | B66: =B65 -> $0 | C66: =C65 -> $0 | D66: =D65 -> $0 | E66: =E65 -> $0
A69: ="Common Shares" -> Common Shares
A70: =" " -> 
A71: =Labels!B65 -> Initial Common Price | B71: $1.00
B73: =Labels!B98 -> Seed | C73: =Labels!B99 -> Round A | D73: =Labels!B100 -> Exit
A74: =Labels!B77 -> Split Factor | B74: =1 -> 1.000 | C74: =1 -> 1.000 | D74: =1 -> 1.000
A76: =Labels!B18 -> Dividend Common | B76: =0/3 -> $0.00 | C76: =0/3 -> $0.00 | D76: =0/3 -> $0.00 | E76: =SUM(B76:D76) -> $0.00
A78: ="Rates of Return" -> Rates of Return
B79: =Labels!B14 -> Discount Rate (Yr) | C79: =Labels!B45 -> IRR Initial Guess (Yr)
B80: =0.3 -> 30% | C80: =0.5 -> 50.0%
B82: =Labels!B98 -> Seed | C82: =Labels!B99 -> Round A | D82: =Labels!B100 -> Exit | E82: =Labels!C97 -> Total
A83: =Labels!B43 -> New Investment | B83: =1 -> $1 | C83: =0 -> $0 | D83: =0 -> $0 | E83: =SUM(B83:D83) -> $1
A88: ="Options" -> Options
A89: =" " -> 
A90: =Labels!B69 -> New Unit Price %
A91: =" "&Labels!B111 -> Series B | B91: =1 -> 100%
A92: =" "&Labels!B112 -> Series A | B92: =1 -> 100%
B94: =Labels!B98 -> Seed | C94: =Labels!B99 -> Round A | D94: =Labels!B100 -> Exit
A95: =Labels!B68 -> Price New Unit
A96: =" "&Labels!B111 -> Series B | B96: =MAX(0,B91*Prices!B18+B91*(-B101)) -> $1.00 | C96: =MAX(0,B91*Prices!C18+B91*(-B101)) -> $1,000,000.00 | D96: =MAX(0,B91*Prices!D18+B91*(-B101)) -> $1,000,000.00
A97: =" "&Labels!B112 -> Series A | B97: =MAX(0,B92*Prices!B18+B92*(-B102)) -> $1.00 | C97: =MAX(0,B92*Prices!C18+B92*(-B102)) -> $1,000,000.00 | D97: =MAX(0,B92*Prices!D18+B92*(-B102)) -> $1,000,000.00
A99: ="Exercise Criteria" -> Exercise Criteria
B100: =Labels!B53 -> Exercise Price | C100: =Labels!B9 -> Trigger Date | D100: =Labels!B10 -> Trigger Invest | E100: =Labels!B11 -> Trigger Value %
A101: =Labels!B111 -> Series B | B101: =0 -> $0.00 | C101: =DATE(2011,4,1) -> 2011-04-01 | D101: =1500000 -> $1,500,000 | E101: =0.5 -> 50%
A102: =Labels!B112 -> Series A | B102: =0 -> $0.00 | C102: =DATE(2011,4,1) -> 2011-04-01 | D102: =1500000 -> $1,500,000 | E102: =0.5 -> 50%
A103: ="You can edit exercise prices for individual series even though the cells are not shaded." -> You can edit exercise prices for individual series even though the cells are not shaded.
A105: ="Rates of Return" -> Rates of Return
B106: =Labels!B14 -> Discount Rate (Yr) | C106: =Labels!B45 -> IRR Initial Guess (Yr)
A107: =Labels!B111 -> Series B | B107: =0.3 -> 30% | C107: =0.5 -> 50.0%
A108: =Labels!B112 -> Series A | B108: =0.3 -> 30% | C108: =0.5 -> 50.0%
B110: =Labels!B98 -> Seed | C110: =Labels!B99 -> Round A | D110: =Labels!B100 -> Exit | E110: =Labels!C97 -> Total
A111: =Labels!B80 -> New Units
A112: =" "&Labels!B111 -> Series B | B112: =0/3/10 -> 0.0 | C112: 0.0 | D112: 0.0 | E112: =SUM(B112:D112) -> 0.0
A113: =" "&Labels!B112 -> Series A | B113: 0.0 | C113: 0.0 | D113: 0.0 | E113: =SUM(B113:D113) -> 0.0
A114: =" "&Labels!C110 -> Subtotal | B114: =SUM(B112:B113) -> 0.0 | C114: =SUM(C112:C113) -> 0.0 | D114: =SUM(D112:D113) -> 0.0 | E114: =SUM(E112:E113) -> 0.0
A118: ="Firm Value" -> Firm Value
A119: =" " -> 
A120: =Labels!B25 -> Firm Value
A121: =" "&Labels!B98 -> Seed | B121: =1000000 -> $1,000,000
A122: =" "&Labels!B99 -> Round A | B122: =1000000 -> $1,000,000
A123: =" "&Labels!B100 -> Exit | B123: =1000000 -> $1,000,000

Sheet Investment
A1: ="Capitalization Table" -> Capitalization Table
A2: =Inputs!B8 -> ABC Corp.
A3: =IF("Investment"="(Default Input)","Ignore this sheet in normal use.","Investment Scenario "&1&", Valuation Scenario "&1) -> Investment Scenario 1, Valuation Scenario 1
A4: ="Investment" -> Investment
A5: ="" -> 
A6: ="Return on Investment" -> Return on Investment
A7: =" " -> 
A8: ="Investment and Payout" -> Investment and Payout
A9: ="" -> 
B10: =Labels!B29 -> Invest by Origin ex-Div | C10: =Labels!B17 -> Dividend by Origin | D10: =Labels!B56 -> Payout by Origin | E10: =Labels!B58 -> Payout by Origin % | F10: =Labels!B71 -> Return Multiple
A11: =Labels!B103 -> Conv Note
A12: =" "&Labels!B104 -> Series B | B12: =D190 -> $0 | C12: ='(Other Variables)'!D246 -> $0 | D12: ='(Other Variables)'!D274 -> $0 | E12: ='(Other Variables)'!D306 -> 0.00% | F12: =IF(D190+0*0=0,0,('(Other Variables)'!D274+SUM(B290:D290))/(D190+0*0)) -> 0.00
A13: =" "&Labels!B105 -> Series A | B13: =D191 -> $0 | C13: ='(Other Variables)'!D247 -> $0 | D13: ='(Other Variables)'!D275 -> $0 | E13: ='(Other Variables)'!D307 -> 0.00% | F13: =IF(D191+0*0=0,0,('(Other Variables)'!D275+SUM(B291:D291))/(D191+0*0)) -> 0.00
A14: =" "&Labels!C103 -> Subtotal | B14: =SUM(B12:B13) -> $0 | C14: =SUM(C12:C13) -> $0 | D14: ='(Other Variables)'!D276 -> $0 | E14: ='(Other Variables)'!D308 -> 0.00% | F14: =IF(D192+0*0=0,0,('(Other Variables)'!D276+SUM(B292:D292))/(D192+0*0)) -> 0.00
A15: =Labels!B106 -> Preferred
A16: =" "&Labels!B107 -> Series A | B16: =D194 -> $0 | C16: ='(Other Variables)'!D250 -> $0 | D16: ='(Other Variables)'!D278 -> $0 | E16: ='(Other Variables)'!D310 -> 0.00% | F16: =IF(D194+0*0=0,0,('(Other Variables)'!D278+SUM(B294:D294))/(D194+0*0)) -> 0.00
A17: =" "&Labels!C106 -> Subtotal | B17: =B16 -> $0 | C17: =C16 -> $0 | D17: ='(Other Variables)'!D279 -> $0 | E17: ='(Other Variables)'!D311 -> 0.00% | F17: =IF(D195+0*0=0,0,('(Other Variables)'!D279+SUM(B295:D295))/(D195+0*0)) -> 0.00
A18: =Labels!B108 -> Common | B18: =D196 -> $1 | C18: ='(Other Variables)'!D252 -> $0 | D18: ='(Other Variables)'!D280 -> $1,000,000 | E18: ='(Other Variables)'!D312 -> 100.00% | F18: =IF(D196+0*0=0,0,('(Other Variables)'!D280+SUM(B296:D296))/(D196+0*0)) -> 1,000,000.00
A19: =Labels!B109 -> Warrant | B19: =D197 -> $0 | C19: ='(Other Variables)'!D253 -> $0 | D19: ='(Other Variables)'!D281 -> $0 | E19: ='(Other Variables)'!D313 -> 0.00% | F19: =IF(D197+0*0=0,0,('(Other Variables)'!D281+SUM(B297:D297))/(D197+0*0)) -> 0.00
A20: =Labels!B110 -> Option
A21: =" "&Labels!B111 -> Series B | B21: =D199 -> $0 | C21: ='(Other Variables)'!D255 -> $0 | D21: ='(Other Variables)'!D283 -> $0 | E21: ='(Other Variables)'!D315 -> 0.00% | F21: =IF(D199+0*0=0,0,('(Other Variables)'!D283+SUM(B299:D299))/(D199+0*0)) -> 0.00
A22: =" "&Labels!B112 -> Series A | B22: =D200 -> $0 | C22: ='(Other Variables)'!D256 -> $0 | D22: ='(Other Variables)'!D284 -> $0 | E22: ='(Other Variables)'!D316 -> 0.00% | F22: =IF(D200+0*0=0,0,('(Other Variables)'!D284+SUM(B300:D300))/(D200+0*0)) -> 0.00
A23: =" "&Labels!C110 -> Subtotal | B23: =SUM(B21:B22) -> $0 | C23: =SUM(C21:C22) -> $0 | D23: ='(Other Variables)'!D285 -> $0 | E23: ='(Other Variables)'!D317 -> 0.00% | F23: =IF(D201+0*0=0,0,('(Other Variables)'!D285+SUM(B301:D301))/(D201+0*0)) -> 0.00
A24: =Labels!C102 -> Total | B24: =SUM(B14,B17:B19,B23) -> $1 | C24: =SUM(C14,C17:C19,C23) -> $0 | D24: ='(Other Variables)'!D286 -> $1,000,000 | E24: ='(Other Variables)'!D318 -> 100.00% | F24: =IF(D202+0*0=0,0,('(Other Variables)'!D286+SUM(B302:D302))/(D202+0*0)) -> 1,000,000.00
A27: ="Measures of Return" -> Measures of Return
A28: ="" -> 
B29: =Labels!B46 -> IRR (Yr) | C29: =Labels!B51 -> Net Present Value | D29: =Labels!B14 -> Discount Rate (Yr)
A30: =Labels!B103 -> Conv Note
A31: =" "&Labels!B104 -> Series B | B31: =XIRR('(Other Variables)'!B322:D322,B209:D209,Inputs!C33) ->  | C31: =(-XNPV(D31,'(Other Variables)'!B322:D322,B209:D209)) -> $0 | D31: =Inputs!B33 -> 30%
A32: =" "&Labels!B105 -> Series A | B32: =XIRR('(Other Variables)'!B323:D323,B209:D209,Inputs!C34) ->  | C32: =(-XNPV(D32,'(Other Variables)'!B323:D323,B209:D209)) -> $0 | D32: =Inputs!B34 -> 30%
A33: =" "&Labels!C103 -> Subtotal | B33: =XIRR('(Other Variables)'!B324:D324,B209:D209,Boneyard!B82) ->  | C33: =SUM(C31:C32) -> $0 | D33: =" " -> 
A34: =Labels!B106 -> Preferred
A35: =" "&Labels!B107 -> Series A | B35: =XIRR('(Other Variables)'!B326:D326,B209:D209,Inputs!C61) ->  | C35: =(-XNPV(D35,'(Other Variables)'!B326:D326,B209:D209)) -> $0 | D35: =Inputs!B61 -> 30%
A36: =" "&Labels!C106 -> Subtotal | B36: =XIRR('(Other Variables)'!B327:D327,B209:D209,Boneyard!B85) ->  | C36: =C35 -> $0 | D36: =" " -> 
A37: =Labels!B108 -> Common | B37: =XIRR('(Other Variables)'!B328:D328,B209:D209,Inputs!C80) -> 185,534% | C37: =(-XNPV(D37,'(Other Variables)'!B328:D328,B209:D209)) -> $617,793 | D37: =Inputs!B80 -> 30%
A38: =Labels!B109 -> Warrant | B38: =XIRR('(Other Variables)'!B329:D329,B209:D209,Boneyard!B87) ->  | C38: =(-XNPV(D38,'(Other Variables)'!B329:D329,B209:D209)) -> $0 | D38: =0.3 -> 30%
A39: =Labels!B110 -> Option
A40: =" "&Labels!B111 -> Series B | B40: =XIRR('(Other Variables)'!B331:D331,B209:D209,Inputs!C107) ->  | C40: =(-XNPV(D40,'(Other Variables)'!B331:D331,B209:D209)) -> $0 | D40: =Inputs!B107 -> 30%
A41: =" "&Labels!B112 -> Series A | B41: =XIRR('(Other Variables)'!B332:D332,B209:D209,Inputs!C108) ->  | C41: =(-XNPV(D41,'(Other Variables)'!B332:D332,B209:D209)) -> $0 | D41: =Inputs!B108 -> 30%
A42: =" "&Labels!C110 -> Subtotal | B42: =XIRR('(Other Variables)'!B333:D333,B209:D209,Boneyard!B91) ->  | C42: =SUM(C40:C41) -> $0 | D42: =" " -> 
A43: =Labels!C102 -> Total | B43: =XIRR('(Other Variables)'!B334:D334,B209:D209,Boneyard!B92) -> 185,534% | C43: =SUM(C33,C36:C38,C42) -> $617,793 | D43: =" " -> 
A47: ="Investment by Origin" -> Investment by Origin
A48: =" " -> 
B49: =Labels!B98 -> Seed | C49: =Labels!B99 -> Round A | D49: =Labels!B100 -> Exit | E49: =Labels!C97 -> Total
A50: =Labels!B38 -> Investment by Origin
A51: =" "&Labels!B91 -> Start
A52: =" "&Labels!B103 -> Conv Note
A53: =" "&Labels!B104 -> Series B | B53: =0+B290 -> $0 | C53: =B113+C290 -> $0 | D53: =C113+D290 -> $0 | E53: =SUM(B53:D53) -> $0
A54: =" "&Labels!B105 -> Series A | B54: =0+B291 -> $0 | C54: =B114+C291 -> $0 | D54: =C114+D291 -> $0 | E54: =SUM(B54:D54) -> $0
A55: =" "&Labels!C103 -> Subtotal | B55: =SUM(B53:B54) -> $0 | C55: =SUM(C53:C54) -> $0 | D55: =SUM(D53:D54) -> $0 | E55: =SUM(E53:E54) -> $0
A56: =" "&Labels!B106 -> Preferred
A57: =" "&Labels!B107 -> Series A | B57: =0+B294 -> $0 | C57: =B117+C294 -> $0 | D57: =C117+D294 -> $0 | E57: =SUM(B57:D57) -> $0
A58: =" "&Labels!C106 -> Subtotal | B58: =B57 -> $0 | C58: =C57 -> $0 | D58: =D57 -> $0 | E58: =E57 -> $0
A59: =" "&Labels!B108 -> Common | B59: =0+B296 -> $0 | C59: =B119+C296 -> $1 | D59: =C119+D296 -> $1 | E59: =SUM(B59:D59) -> $2
A60: =" "&Labels!B109 -> Warrant | B60: =0+B297 -> $0 | C60: =B120+C297 -> $0 | D60: =C120+D297 -> $0 | E60: =SUM(B60:D60) -> $0
A61: =" "&Labels!B110 -> Option
A62: =" "&Labels!B111 -> Series B | B62: =0+B299 -> $0 | C62: =B122+C299 -> $0 | D62: =C122+D299 -> $0 | E62: =SUM(B62:D62) -> $0
A63: =" "&Labels!B112 -> Series A | B63: =0+B300 -> $0 | C63: =B123+C300 -> $0 | D63: =C123+D300 -> $0 | E63: =SUM(B63:D63) -> $0
A64: =" "&Labels!C110 -> Subtotal | B64: =SUM(B62:B63) -> $0 | C64: =SUM(C62:C63) -> $0 | D64: =SUM(D62:D63) -> $0 | E64: =SUM(E62:E63) -> $0
A65: =" "&Labels!C102 -> Total | B65: =SUM(B55,B58:B60,B64) -> $0 | C65: =SUM(C55,C58:C60,C64) -> $1 | D65: =SUM(D55,D58:D60,D64) -> $1 | E65: =SUM(E55,E58:E60,E64) -> $2
A66: =" "&Labels!B92 -> New Sales
A67: =" "&Labels!B103 -> Conv Note
A68: =" "&Labels!B104 -> Series B | B68: =B229 -> $0 | C68: $0 | D68: $0 | E68: =SUM(B68:D68) -> $0
A69: =" "&Labels!B105 -> Series A | B69: $0 | C69: $0 | D69: $0 | E69: =SUM(B69:D69) -> $0
A70: =" "&Labels!C103 -> Subtotal | B70: =SUM(B68:B69) -> $0 | C70: =SUM(C68:C69) -> $0 | D70: =SUM(D68:D69) -> $0 | E70: =SUM(E68:E69) -> $0
A71: =" "&Labels!B106 -> Preferred
A72: =" "&Labels!B107 -> Series A | B72: =B233 -> $0 | C72: =C233 -> $0 | D72: =D233 -> $0 | E72: =SUM(B72:D72) -> $0
A73: =" "&Labels!C106 -> Subtotal | B73: =B72 -> $0 | C73: =C72 -> $0 | D73: =D72 -> $0 | E73: =E72 -> $0
A74: =" "&Labels!B108 -> Common | B74: =B235 -> $1 | C74: $0 | D74: $0 | E74: =SUM(B74:D74) -> $1
A75: =" "&Labels!B109 -> Warrant | B75: $0 | C75: $0 | D75: $0 | E75: =SUM(B75:D75) -> $0
A76: =" "&Labels!B110 -> Option
A77: =" "&Labels!B111 -> Series B | B77: =B238 -> $0 | C77: $0 | D77: $0 | E77: =SUM(B77:D77) -> $0
A78: =" "&Labels!B112 -> Series A | B78: $0 | C78: $0 | D78: $0 | E78: =SUM(B78:D78) -> $0
A79: =" "&Labels!C110 -> Subtotal | B79: =SUM(B77:B78) -> $0 | C79: =SUM(C77:C78) -> $0 | D79: =SUM(D77:D78) -> $0 | E79: =SUM(E77:E78) -> $0
A80: =" "&Labels!C102 -> Total | B80: =SUM(B70,B73:B75,B79) -> $1 | C80: =SUM(C70,C73:C75,C79) -> $0 | D80: =SUM(D70,D73:D75,D79) -> $0 | E80: =SUM(E70,E73:E75,E79) -> $1
A81: =" "&Labels!B93 -> Post Sales
A82: =" "&Labels!B103 -> Conv Note
A83: =" "&Labels!B104 -> Series B | B83: =B53+B68 -> $0 | C83: $0 | D83: $0 | E83: =SUM(B83:D83) -> $0
A84: =" "&Labels!B105 -> Series A | B84: $0 | C84: $0 | D84: $0 | E84: =SUM(B84:D84) -> $0
A85: =" "&Labels!C103 -> Subtotal | B85: =SUM(B83:B84) -> $0 | C85: =SUM(C83:C84) -> $0 | D85: =SUM(D83:D84) -> $0 | E85: =SUM(E83:E84) -> $0
A86: =" "&Labels!B106 -> Preferred
A87: =" "&Labels!B107 -> Series A | B87: =B57+B72 -> $0 | C87: =C57+C72 -> $0 | D87: =D57+D72 -> $0 | E87: =SUM(B87:D87) -> $0
A88: =" "&Labels!C106 -> Subtotal | B88: =B87 -> $0 | C88: =C87 -> $0 | D88: =D87 -> $0 | E88: =E87 -> $0
A89: =" "&Labels!B108 -> Common | B89: =B59+B74 -> $1 | C89: $1 | D89: $1 | E89: =SUM(B89:D89) -> $3
A90: =" "&Labels!B109 -> Warrant | B90: $0 | C90: $0 | D90: $0 | E90: =SUM(B90:D90) -> $0
A91: =" "&Labels!B110 -> Option
A92: =" "&Labels!B111 -> Series B | B92: =B62+B77 -> $0 | C92: $0 | D92: $0 | E92: =SUM(B92:D92) -> $0
A93: =" "&Labels!B112 -> Series A | B93: $0 | C93: $0 | D93: $0 | E93: =SUM(B93:D93) -> $0
A94: =" "&Labels!C110 -> Subtotal | B94: =SUM(B92:B93) -> $0 | C94: =SUM(C92:C93) -> $0 | D94: =SUM(D92:D93) -> $0 | E94: =SUM(E92:E93) -> $0
A95: =" "&Labels!C102 -> Total | B95: =SUM(B85,B88:B90,B94) -> $1 | C95: =SUM(C85,C88:C90,C94) -> $1 | D95: =SUM(D85,D88:D90,D94) -> $1 | E95: =SUM(E85,E88:E90,E94) -> $3
A96: =" "&Labels!B94 -> Convert
A97: =" "&Labels!B103 -> Conv Note
A98: =" "&Labels!B104 -> Series B | B98: =0/3/10 -> $0 | C98: $0 | D98: $0 | E98: =SUM(B98:D98) -> $0
A99: =" "&Labels!B105 -> Series A | B99: $0 | C99: $0 | D99: $0 | E99: =SUM(B99:D99) -> $0
A100: =" "&Labels!C103 -> Subtotal | B100: =SUM(B98:B99) -> $0 | C100: =SUM(C98:C99) -> $0 | D100: =SUM(D98:D99) -> $0 | E100: =SUM(E98:E99) -> $0
A101: =" "&Labels!B106 -> Preferred
A102: =" "&Labels!B107 -> Series A | B102: =0/3/5 -> $0 | C102: =0/3/5 -> $0 | D102: =0/3/5 -> $0 | E102: =SUM(B102:D102) -> $0
A103: =" "&Labels!C106 -> Subtotal | B103: =B102 -> $0 | C103: =C102 -> $0 | D103: =D102 -> $0 | E103: =E102 -> $0
A104: =" "&Labels!B108 -> Common | B104: =0/3/5 -> $0 | C104: =0/3/5 -> $0 | D104: =0/3/5 -> $0 | E104: =SUM(B104:D104) -> $0
A105: =" "&Labels!B109 -> Warrant | B105: =Options!B16 -> $0 | C105: =Options!C16 -> $0 | D105: =Options!D16 -> $0 | E105: =SUM(B105:D105) -> $0
A106: =" "&Labels!B110 -> Option
A107: =" "&Labels!B111 -> Series B | B107: =Options!B39 -> $0 | C107: =Options!C39 -> $0 | D107: =Options!D39 -> $0 | E107: =SUM(B107:D107) -> $0
A108: =" "&Labels!B112 -> Series A | B108: =Options!B40 -> $0 | C108: =Options!C40 -> $0 | D108: =Options!D40 -> $0 | E108: =SUM(B108:D108) -> $0
A109: =" "&Labels!C110 -> Subtotal | B109: =SUM(B107:B108) -> $0 | C109: =SUM(C107:C108) -> $0 | D109: =SUM(D107:D108) -> $0 | E109: =SUM(E107:E108) -> $0
A110: =" "&Labels!C102 -> Total | B110: =SUM(B100,B103:B105,B109) -> $0 | C110: =SUM(C100,C103:C105,C109) -> $0 | D110: =SUM(D100,D103:D105,D109) -> $0 | E110: =SUM(E100,E103:E105,E109) -> $0
A111: =" "&Labels!B95 -> End
A112: =" "&Labels!B103 -> Conv Note
A113: =" "&Labels!B104 -> Series B | B113: =B83+B98 -> $0 | C113: $0 | D113: $0 | E113: =SUM(B113:D113) -> $0
A114: =" "&Labels!B105 -> Series A | B114: $0 | C114: $0 | D114: $0 | E114: =SUM(B114:D114) -> $0
A115: =" "&Labels!C103 -> Subtotal | B115: =SUM(B113:B114) -> $0 | C115: =SUM(C113:C114) -> $0 | D115: =SUM(D113:D114) -> $0 | E115: =SUM(E113:E114) -> $0
A116: =" "&Labels!B106 -> Preferred
A117: =" "&Labels!B107 -> Series A | B117: =B87+B102 -> $0 | C117: =C87+C102 -> $0 | D117: =D87+D102 -> $0 | E117: =SUM(B117:D117) -> $0
A118: =" "&Labels!C106 -> Subtotal | B118: =B117 -> $0 | C118: =C117 -> $0 | D118: =D117 -> $0 | E118: =E117 -> $0
A119: =" "&Labels!B108 -> Common | B119: =B89+B104 -> $1 | C119: $1 | D119: $1 | E119: =SUM(B119:D119) -> $3
A120: =" "&Labels!B109 -> Warrant | B120: $0 | C120: $0 | D120: $0 | E120: =SUM(B120:D120) -> $0
A121: =" "&Labels!B110 -> Option
A122: =" "&Labels!B111 -> Series B | B122: =B92+B107 -> $0 | C122: $0 | D122: $0 | E122: =SUM(B122:D122) -> $0
A123: =" "&Labels!B112 -> Series A | B123: $0 | C123: $0 | D123: $0 | E123: =SUM(B123:D123) -> $0
A124: =" "&Labels!C110 -> Subtotal | B124: =SUM(B122:B123) -> $0 | C124: =SUM(C122:C123) -> $0 | D124: =SUM(D122:D123) -> $0 | E124: =SUM(E122:E123) -> $0
A125: =" "&Labels!C102 -> Total | B125: =SUM(B115,B118:B120,B124) -> $1 | C125: =SUM(C115,C118:C120,C124) -> $1 | D125: =SUM(D115,D118:D120,D124) -> $1 | E125: =SUM(E115,E118:E120,E124) -> $3
A127: =Labels!B28 -> Invest by Origin ex-Dividend
A128: =" "&Labels!B91 -> Start
A129: =" "&Labels!B103 -> Conv Note
A130: =" "&Labels!B104 -> Series B | B130: =0 -> $0 | C130: =B190 -> $0 | D130: =C190 -> $0 | E130: =SUM(B130:D130) -> $0
A131: =" "&Labels!B105 -> Series A | B131: =0 -> $0 | C131: =B191 -> $0 | D131: =C191 -> $0 | E131: =SUM(B131:D131) -> $0
A132: =" "&Labels!C103 -> Subtotal | B132: =SUM(B130:B131) -> $0 | C132: =SUM(C130:C131) -> $0 | D132: =SUM(D130:D131) -> $0 | E132: =SUM(E130:E131) -> $0
A133: =" "&Labels!B106 -> Preferred
A134: =" "&Labels!B107 -> Series A | B134: =0 -> $0 | C134: =B194 -> $0 | D134: =C194 -> $0 | E134: =SUM(B134:D134) -> $0
A135: =" "&Labels!C106 -> Subtotal | B135: =B134 -> $0 | C135: =C134 -> $0 | D135: =D134 -> $0 | E135: =E134 -> $0
A136: =" "&Labels!B108 -> Common | B136: =0 -> $0 | C136: =B196 -> $1 | D136: =C196 -> $1 | E136: =SUM(B136:D136) -> $2
A137: =" "&Labels!B109 -> Warrant | B137: =0 -> $0 | C137: =B197 -> $0 | D137: =C197 -> $0 | E137: =SUM(B137:D137) -> $0
A138: =" "&Labels!B110 -> Option
A139: =" "&Labels!B111 -> Series B | B139: =0 -> $0 | C139: =B199 -> $0 | D139: =C199 -> $0 | E139: =SUM(B139:D139) -> $0
A140: =" "&Labels!B112 -> Series A | B140: =0 -> $0 | C140: =B200 -> $0 | D140: =C200 -> $0 | E140: =SUM(B140:D140) -> $0
A141: =" "&Labels!C110 -> Subtotal | B141: =SUM(B139:B140) -> $0 | C141: =SUM(C139:C140) -> $0 | D141: =SUM(D139:D140) -> $0 | E141: =SUM(E139:E140) -> $0
A142: =" "&Labels!C102 -> Total | B142: =SUM(B132,B135:B137,B141) -> $0 | C142: =SUM(C132,C135:C137,C141) -> $1 | D142: =SUM(D132,D135:D137,D141) -> $1 | E142: =SUM(E132,E135:E137,E141) -> $2
A143: =" "&Labels!B92 -> New Sales
A144: =" "&Labels!B103 -> Conv Note
A145: =" "&Labels!B104 -> Series B | B145: =B68 -> $0 | C145: $0 | D145: $0 | E145: =SUM(B145:D145) -> $0
A146: =" "&Labels!B105 -> Series A | B146: $0 | C146: $0 | D146: $0 | E146: =SUM(B146:D146) -> $0
A147: =" "&Labels!C103 -> Subtotal | B147: =SUM(B145:B146) -> $0 | C147: =SUM(C145:C146) -> $0 | D147: =SUM(D145:D146) -> $0 | E147: =SUM(E145:E146) -> $0
A148: =" "&Labels!B106 -> Preferred
A149: =" "&Labels!B107 -> Series A | B149: =B72 -> $0 | C149: =C72 -> $0 | D149: =D72 -> $0 | E149: =SUM(B149:D149) -> $0
A150: =" "&Labels!C106 -> Subtotal | B150: =B149 -> $0 | C150: =C149 -> $0 | D150: =D149 -> $0 | E150: =E149 -> $0
A151: =" "&Labels!B108 -> Common | B151: =B74 -> $1 | C151: $0 | D151: $0 | E151: =SUM(B151:D151) -> $1
A152: =" "&Labels!B109 -> Warrant | B152: $0 | C152: $0 | D152: $0 | E152: =SUM(B152:D152) -> $0
A153: =" "&Labels!B110 -> Option
A154: =" "&Labels!B111 -> Series B | B154: =B77 -> $0 | C154: $0 | D154: $0 | E154: =SUM(B154:D154) -> $0
A155: =" "&Labels!B112 -> Series A | B155: $0 | C155: $0 | D155: $0 | E155: =SUM(B155:D155) -> $0
A156: =" "&Labels!C110 -> Subtotal | B156: =SUM(B154:B155) -> $0 | C156: =SUM(C154:C155) -> $0 | D156: =SUM(D154:D155) -> $0 | E156: =SUM(E154:E155) -> $0
A157: =" "&Labels!C102 -> Total | B157: =SUM(B147,B150:B152,B156) -> $1 | C157: =SUM(C147,C150:C152,C156) -> $0 | D157: =SUM(D147,D150:D152,D156) -> $0 | E157: =SUM(E147,E150:E152,E156) -> $1
A158: =" "&Labels!B93 -> Post Sales
A159: =" "&Labels!B103 -> Conv Note
A160: =" "&Labels!B104 -> Series B | B160: =B130+B145 -> $0 | C160: $0 | D160: $0 | E160: =SUM(B160:D160) -> $0
A161: =" "&Labels!B105 -> Series A | B161: $0 | C161: $0 | D161: $0 | E161: =SUM(B161:D161) -> $0
A162: =" "&Labels!C103 -> Subtotal | B162: =SUM(B160:B161) -> $0 | C162: =SUM(C160:C161) -> $0 | D162: =SUM(D160:D161) -> $0 | E162: =SUM(E160:E161) -> $0
A163: =" "&Labels!B106 -> Preferred
A164: =" "&Labels!B107 -> Series A | B164: =B134+B149 -> $0 | C164: =C134+C149 -> $0 | D164: =D134+D149 -> $0 | E164: =SUM(B164:D164) -> $0
A165: =" "&Labels!C106 -> Subtotal | B165: =B164 -> $0 | C165: =C164 -> $0 | D165: =D164 -> $0 | E165: =E164 -> $0
A166: =" "&Labels!B108 -> Common | B166: =B136+B151 -> $1 | C166: $1 | D166: $1 | E166: =SUM(B166:D166) -> $3
A167: =" "&Labels!B109 -> Warrant | B167: $0 | C167: $0 | D167: $0 | E167: =SUM(B167:D167) -> $0
A168: =" "&Labels!B110 -> Option
A169: =" "&Labels!B111 -> Series B | B169: =B139+B154 -> $0 | C169: $0 | D169: $0 | E169: =SUM(B169:D169) -> $0
A170: =" "&Labels!B112 -> Series A | B170: $0 | C170: $0 | D170: $0 | E170: =SUM(B170:D170) -> $0
A171: =" "&Labels!C110 -> Subtotal | B171: =SUM(B169:B170) -> $0 | C171: =SUM(C169:C170) -> $0 | D171: =SUM(D169:D170) -> $0 | E171: =SUM(E169:E170) -> $0
A172: =" "&Labels!C102 -> Total | B172: =SUM(B162,B165:B167,B171) -> $1 | C172: =SUM(C162,C165:C167,C171) -> $1 | D172: =SUM(D162,D165:D167,D171) -> $1 | E172: =SUM(E162,E165:E167,E171) -> $3
A173: =" "&Labels!B94 -> Convert
A174: =" "&Labels!B103 -> Conv Note
A175: =" "&Labels!B104 -> Series B | B175: =B98 -> $0 | C175: $0 | D175: $0 | E175: =SUM(B175:D175) -> $0
A176: =" "&Labels!B105 -> Series A | B176: $0 | C176: $0 | D176: $0 | E176: =SUM(B176:D176) -> $0
A177: =" "&Labels!C103 -> Subtotal | B177: =SUM(B175:B176) -> $0 | C177: =SUM(C175:C176) -> $0 | D177: =SUM(D175:D176) -> $0 | E177: =SUM(E175:E176) -> $0
A178: =" "&Labels!B106 -> Preferred
A179: =" "&Labels!B107 -> Series A | B179: =B102 -> $0 | C179: =C102 -> $0 | D179: =D102 -> $0 | E179: =SUM(B179:D179) -> $0
A180: =" "&Labels!C106 -> Subtotal | B180: =B179 -> $0 | C180: =C179 -> $0 | D180: =D179 -> $0 | E180: =E179 -> $0
A181: =" "&Labels!B108 -> Common | B181: =B104 -> $0 | C181: $0 | D181: $0 | E181: =SUM(B181:D181) -> $0
A182: =" "&Labels!B109 -> Warrant | B182: $0 | C182: $0 | D182: $0 | E182: =SUM(B182:D182) -> $0
A183: =" "&Labels!B110 -> Option
A184: =" "&Labels!B111 -> Series B | B184: =B107 -> $0 | C184: $0 | D184: $0 | E184: =SUM(B184:D184) -> $0
A185: =" "&Labels!B112 -> Series A | B185: $0 | C185: $0 | D185: $0 | E185: =SUM(B185:D185) -> $0
A186: =" "&Labels!C110 -> Subtotal | B186: =SUM(B184:B185) -> $0 | C186: =SUM(C184:C185) -> $0 | D186: =SUM(D184:D185) -> $0 | E186: =SUM(E184:E185) -> $0
A187: =" "&Labels!C102 -> Total | B187: =SUM(B177,B180:B182,B186) -> $0 | C187: =SUM(C177,C180:C182,C186) -> $0 | D187: =SUM(D177,D180:D182,D186) -> $0 | E187: =SUM(E177,E180:E182,E186) -> $0
A188: =" "&Labels!B95 -> End
A189: =" "&Labels!B103 -> Conv Note
A190: =" "&Labels!B104 -> Series B | B190: =B160+B175 -> $0 | C190: $0 | D190: $0 | E190: =SUM(B190:D190) -> $0
A191: =" "&Labels!B105 -> Series A | B191: $0 | C191: $0 | D191: $0 | E191: =SUM(B191:D191) -> $0
A192: =" "&Labels!C103 -> Subtotal | B192: =SUM(B190:B191) -> $0 | C192: =SUM(C190:C191) -> $0 | D192: =SUM(D190:D191) -> $0 | E192: =SUM(E190:E191) -> $0
A193: =" "&Labels!B106 -> Preferred
A194: =" "&Labels!B107 -> Series A | B194: =B164+B179 -> $0 | C194: =C164+C179 -> $0 | D194: =D164+D179 -> $0 | E194: =SUM(B194:D194) -> $0
A195: =" "&Labels!C106 -> Subtotal | B195: =B194 -> $0 | C195: =C194 -> $0 | D195: =D194 -> $0 | E195: =E194 -> $0
A196: =" "&Labels!B108 -> Common | B196: =B166+B181 -> $1 | C196: $1 | D196: $1 | E196: =SUM(B196:D196) -> $3
A197: =" "&Labels!B109 -> Warrant | B197: $0 | C197: $0 | D197: $0 | E197: =SUM(B197:D197) -> $0
A198: =" "&Labels!B110 -> Option
A199: =" "&Labels!B111 -> Series B | B199: =B169+B184 -> $0 | C199: $0 | D199: $0 | E199: =SUM(B199:D199) -> $0
A200: =" "&Labels!B112 -> Series A | B200: $0 | C200: $0 | D200: $0 | E200: =SUM(B200:D200) -> $0
A201: =" "&Labels!C110 -> Subtotal | B201: =SUM(B199:B200) -> $0 | C201: =SUM(C199:C200) -> $0 | D201: =SUM(D199:D200) -> $0 | E201: =SUM(E199:E200) -> $0
A202: =" "&Labels!C102 -> Total | B202: =SUM(B192,B195:B197,B201) -> $1 | C202: =SUM(C192,C195:C197,C201) -> $1 | D202: =SUM(D192,D195:D197,D201) -> $1 | E202: =SUM(E192,E195:E197,E201) -> $3
A206: ="Net Investment" -> Net Investment
A207: =" " -> 
B208: =Labels!B98 -> Seed | C208: =Labels!B99 -> Round A | D208: =Labels!B100 -> Exit
A209: =Labels!B20 -> Event Date | B209: =Inputs!B14 -> 2010-08-01 | C209: =Inputs!C14 -> 2011-07-01 | D209: =Inputs!D14 -> 2012-06-01
... 91 more rows

Sheet Shares
A1: ="Capitalization Table" -> Capitalization Table
A2: =Inputs!B8 -> ABC Corp.
A3: =IF("Shares"="(Default Input)","Ignore this sheet in normal use.","Investment Scenario "&1&", Valuation Scenario "&1) -> Investment Scenario 1, Valuation Scenario 1
A4: ="Shares" -> Shares
A5: ="" -> 
B6: =Labels!B98 -> Seed | C6: =Labels!B99 -> Round A | D6: =Labels!B100 -> Exit
A7: =Labels!B20 -> Event Date | B7: =Investment!B209 -> 2010-08-01 | C7: =Investment!C209 -> 2011-07-01 | D7: =Investment!D209 -> 2012-06-01
A9: ="Common Shares by Origin" -> Common Shares by Origin
A10: =" " -> 
B11: =Labels!B98 -> Seed | C11: =Labels!B99 -> Round A | D11: =Labels!B100 -> Exit
A12: =Labels!B76 -> Common Shares by Origin
A13: =" "&Labels!B103 -> Conv Note
A14: =" "&Labels!B104 -> Series B | B14: =0*Inputs!B74+B96 -> 0.0 | C14: =B14*Inputs!C74+C96 -> 0.0 | D14: =C14*Inputs!D74+D96 -> 0.0
A15: =" "&Labels!B105 -> Series A | B15: =0*Inputs!B74+B97 -> 0.0 | C15: =B15*Inputs!C74+C97 -> 0.0 | D15: =C15*Inputs!D74+D97 -> 0.0
A16: =" "&Labels!B106 -> Preferred
A17: =" "&Labels!B107 -> Series A | B17: =0*Inputs!B74+B100 -> 0.0 | C17: =B17*Inputs!C74+C100 -> 0.0 | D17: =C17*Inputs!D74+D100 -> 0.0
A18: =" "&Labels!B108 -> Common | B18: =0*Inputs!B74+B72 -> 1.0 | C18: =B18*Inputs!C74+C72 -> 1.0 | D18: =C18*Inputs!D74+D72 -> 1.0
A19: =" "&Labels!B109 -> Warrant | B19: =0*Inputs!B74+B103 -> 0.0 | C19: =B19*Inputs!C74+C103 -> 0.0 | D19: =C19*Inputs!D74+D103 -> 0.0
A20: =" "&Labels!B110 -> Option
A21: =" "&Labels!B111 -> Series B | B21: =0*Inputs!B74+B105 -> 0.0 | C21: =B21*Inputs!C74+C105 -> 0.0 | D21: =C21*Inputs!D74+D105 -> 0.0
A22: =" "&Labels!B112 -> Series A | B22: =0*Inputs!B74+B106 -> 0.0 | C22: =B22*Inputs!C74+C106 -> 0.0 | D22: =C22*Inputs!D74+D106 -> 0.0
A25: ="Net Units of Securities at End of Round" -> Net Units of Securities at End of Round
A26: =" " -> 
B27: =Labels!B98 -> Seed | C27: =Labels!B99 -> Round A | D27: =Labels!B100 -> Exit | E27: =Labels!C97 -> Total
A28: =Labels!B78 -> Net Units
A29: =" "&Labels!B103 -> Conv Note
A30: =" "&Labels!B104 -> Series B | B30: =0/3/2 -> 0.0 | C30: 0.0 | D30: 0.0 | E30: =SUM(B30:D30) -> 0.0
A31: =" "&Labels!B105 -> Series A | B31: 0.0 | C31: 0.0 | D31: 0.0 | E31: =SUM(B31:D31) -> 0.0
A32: =" "&Labels!C103 -> Subtotal | B32: =SUM(B30:B31) -> 0.0 | C32: =SUM(C30:C31) -> 0.0 | D32: =SUM(D30:D31) -> 0.0 | E32: =SUM(E30:E31) -> 0.0
A33: =" "&Labels!B106 -> Preferred
A34: =" "&Labels!B107 -> Series A | B34: =B85-B100 -> 0.0 | C34: =C85-C100 -> 0.0 | D34: =D85-D100 -> 0.0 | E34: =SUM(B34:D34) -> 0.0
A35: =" "&Labels!C106 -> Subtotal | B35: =B34 -> 0.0 | C35: =C34 -> 0.0 | D35: =D34 -> 0.0 | E35: =E34 -> 0.0
A36: =" "&Labels!B108 -> Common | B36: =B87+B108 -> 1.0 | C36: =C87+C108 -> 1.0 | D36: =D87+D108 -> 1.0 | E36: =SUM(B36:D36) -> 3.0
A37: =" "&Labels!B109 -> Warrant | B37: =B88-B103 -> 0.0 | C37: =C88-C103 -> 0.0 | D37: =D88-D103 -> 0.0 | E37: =SUM(B37:D37) -> 0.0
A38: =" "&Labels!B110 -> Option
A39: =" "&Labels!B111 -> Series B | B39: =B90-B105 -> 0.0 | C39: 0.0 | D39: 0.0 | E39: =SUM(B39:D39) -> 0.0
A40: =" "&Labels!B112 -> Series A | B40: 0.0 | C40: 0.0 | D40: 0.0 | E40: =SUM(B40:D40) -> 0.0
A41: =" "&Labels!C110 -> Subtotal | B41: =SUM(B39:B40) -> 0.0 | C41: =SUM(C39:C40) -> 0.0 | D41: =SUM(D39:D40) -> 0.0 | E41: =SUM(E39:E40) -> 0.0
A42: =" "&Labels!C102 -> Total | B42: =SUM(B32,B35:B37,B41) -> 1.0 | C42: =SUM(C32,C35:C37,C41) -> 1.0 | D42: =SUM(D32,D35:D37,D41) -> 1.0 | E42: =SUM(E32,E35:E37,E41) -> 3.0
A45: ="Net Units During Rounds" -> Net Units During Rounds
A46: =" " -> 
B47: =Labels!B98 -> Seed | C47: =Labels!B99 -> Round A | D47: =Labels!B100 -> Exit | E47: =Labels!C97 -> Total
A48: =Labels!B78 -> Net Units
A49: =" "&Labels!B91 -> Start
A50: =" "&Labels!B103 -> Conv Note
A51: =" "&Labels!B104 -> Series B | B51: =0*Inputs!B74 -> 0.0 | C51: =B111*Inputs!C74 -> 0.0 | D51: =C111*Inputs!D74 -> 0.0 | E51: =SUM(B51:D51) -> 0.0
A52: =" "&Labels!B105 -> Series A | B52: =0*Inputs!B74 -> 0.0 | C52: =B112*Inputs!C74 -> 0.0 | D52: =C112*Inputs!D74 -> 0.0 | E52: =SUM(B52:D52) -> 0.0
A53: =" "&Labels!C103 -> Subtotal | B53: =SUM(B51:B52) -> 0.0 | C53: =SUM(C51:C52) -> 0.0 | D53: =SUM(D51:D52) -> 0.0 | E53: =SUM(E51:E52) -> 0.0
A54: =" "&Labels!B106 -> Preferred
A55: =" "&Labels!B107 -> Series A | B55: =0*Inputs!B74 -> 0.0 | C55: =B115*Inputs!C74 -> 0.0 | D55: =C115*Inputs!D74 -> 0.0 | E55: =SUM(B55:D55) -> 0.0
A56: =" "&Labels!C106 -> Subtotal | B56: =B55 -> 0.0 | C56: =C55 -> 0.0 | D56: =D55 -> 0.0 | E56: =E55 -> 0.0
A57: =" "&Labels!B108 -> Common | B57: =0*Inputs!B74 -> 0.0 | C57: =B117*Inputs!C74 -> 1.0 | D57: =C117*Inputs!D74 -> 1.0 | E57: =SUM(B57:D57) -> 2.0
A58: =" "&Labels!B109 -> Warrant | B58: =0*Inputs!B74 -> 0.0 | C58: =B118*Inputs!C74 -> 0.0 | D58: =C118*Inputs!D74 -> 0.0 | E58: =SUM(B58:D58) -> 0.0
A59: =" "&Labels!B110 -> Option
A60: =" "&Labels!B111 -> Series B | B60: =0*Inputs!B74 -> 0.0 | C60: =B120*Inputs!C74 -> 0.0 | D60: =C120*Inputs!D74 -> 0.0 | E60: =SUM(B60:D60) -> 0.0
A61: =" "&Labels!B112 -> Series A | B61: =0*Inputs!B74 -> 0.0 | C61: =B121*Inputs!C74 -> 0.0 | D61: =C121*Inputs!D74 -> 0.0 | E61: =SUM(B61:D61) -> 0.0
A62: =" "&Labels!C110 -> Subtotal | B62: =SUM(B60:B61) -> 0.0 | C62: =SUM(C60:C61) -> 0.0 | D62: =SUM(D60:D61) -> 0.0 | E62: =SUM(E60:E61) -> 0.0
A63: =" "&Labels!C102 -> Total | B63: =SUM(B53,B56:B58,B62) -> 0.0 | C63: =SUM(C53,C56:C58,C62) -> 1.0 | D63: =SUM(D53,D56:D58,D62) -> 1.0 | E63: =SUM(E53,E56:E58,E62) -> 2.0
A64: =" "&Labels!B92 -> New Sales
A65: =" "&Labels!B103 -> Conv Note
A66: =" "&Labels!B104 -> Series B | B66: =0/3/2 -> 0.0 | C66: 0.0 | D66: 0.0 | E66: =SUM(B66:D66) -> 0.0
A67: =" "&Labels!B105 -> Series A | B67: 0.0 | C67: 0.0 | D67: 0.0 | E67: =SUM(B67:D67) -> 0.0
A68: =" "&Labels!C103 -> Subtotal | B68: =SUM(B66:B67) -> 0.0 | C68: =SUM(C66:C67) -> 0.0 | D68: =SUM(D66:D67) -> 0.0 | E68: =SUM(E66:E67) -> 0.0
A69: =" "&Labels!B106 -> Preferred
A70: =" "&Labels!B107 -> Series A | B70: =Investment!B233/'(Other Variables)'!B23/(1-Inputs!B50) -> 0.0 | C70: =Investment!C233/'(Other Variables)'!C23/(1-Inputs!C50) -> 0.0 | D70: =Investment!D233/'(Other Variables)'!D23/(1-Inputs!D50) -> 0.0 | E70: =SUM(B70:D70) -> 0.0
A71: =" "&Labels!C106 -> Subtotal | B71: =B70 -> 0.0 | C71: =C70 -> 0.0 | D71: =D70 -> 0.0 | E71: =E70 -> 0.0
A72: =" "&Labels!B108 -> Common | B72: =IF('(Other Variables)'!B25=0,0,Investment!B235/'(Other Variables)'!B25) -> 1.0 | C72: =IF('(Other Variables)'!C25=0,0,Investment!C235/'(Other Variables)'!C25) -> 0.0 | D72: =IF('(Other Variables)'!D25=0,0,Investment!D235/'(Other Variables)'!D25) -> 0.0 | E72: =SUM(B72:D72) -> 1.0
A73: =" "&Labels!B109 -> Warrant | B73: ='(Other Variables)'!B119 -> 0.0 | C73: ='(Other Variables)'!C119 -> 0.0 | D73: ='(Other Variables)'!D119 -> 0.0 | E73: =SUM(B73:D73) -> 0.0
A74: =" "&Labels!B110 -> Option
A75: =" "&Labels!B111 -> Series B | B75: ='(Other Variables)'!B121 -> 0.0 | C75: ='(Other Variables)'!C121 -> 0.0 | D75: ='(Other Variables)'!D121 -> 0.0 | E75: =SUM(B75:D75) -> 0.0
A76: =" "&Labels!B112 -> Series A | B76: ='(Other Variables)'!B122 -> 0.0 | C76: ='(Other Variables)'!C122 -> 0.0 | D76: ='(Other Variables)'!D122 -> 0.0 | E76: =SUM(B76:D76) -> 0.0
A77: =" "&Labels!C110 -> Subtotal | B77: =SUM(B75:B76) -> 0.0 | C77: =SUM(C75:C76) -> 0.0 | D77: =SUM(D75:D76) -> 0.0 | E77: =SUM(E75:E76) -> 0.0
A78: =" "&Labels!C102 -> Total | B78: =SUM(B68,B71:B73,B77) -> 1.0 | C78: =SUM(C68,C71:C73,C77) -> 0.0 | D78: =SUM(D68,D71:D73,D77) -> 0.0 | E78: =SUM(E68,E71:E73,E77) -> 1.0
A79: =" "&Labels!B93 -> Post Sales
A80: =" "&Labels!B103 -> Conv Note
A81: =" "&Labels!B104 -> Series B | B81: =B51+B66 -> 0.0 | C81: 0.0 | D81: 0.0 | E81: =SUM(B81:D81) -> 0.0
A82: =" "&Labels!B105 -> Series A | B82: 0.0 | C82: 0.0 | D82: 0.0 | E82: =SUM(B82:D82) -> 0.0
A83: =" "&Labels!C103 -> Subtotal | B83: =SUM(B81:B82) -> 0.0 | C83: =SUM(C81:C82) -> 0.0 | D83: =SUM(D81:D82) -> 0.0 | E83: =SUM(E81:E82) -> 0.0
A84: =" "&Labels!B106 -> Preferred
A85: =" "&Labels!B107 -> Series A | B85: =B55+B70 -> 0.0 | C85: =C55+C70 -> 0.0 | D85: =D55+D70 -> 0.0 | E85: =SUM(B85:D85) -> 0.0
A86: =" "&Labels!C106 -> Subtotal | B86: =B85 -> 0.0 | C86: =C85 -> 0.0 | D86: =D85 -> 0.0 | E86: =E85 -> 0.0
A87: =" "&Labels!B108 -> Common | B87: =B57+B72 -> 1.0 | C87: 1.0 | D87: 1.0 | E87: =SUM(B87:D87) -> 3.0
A88: =" "&Labels!B109 -> Warrant | B88: 0.0 | C88: 0.0 | D88: 0.0 | E88: =SUM(B88:D88) -> 0.0
A89: =" "&Labels!B110 -> Option
A90: =" "&Labels!B111 -> Series B | B90: =B60+B75 -> 0.0 | C90: 0.0 | D90: 0.0 | E90: =SUM(B90:D90) -> 0.0
A91: =" "&Labels!B112 -> Series A | B91: 0.0 | C91: 0.0 | D91: 0.0 | E91: =SUM(B91:D91) -> 0.0
A92: =" "&Labels!C110 -> Subtotal | B92: =SUM(B90:B91) -> 0.0 | C92: =SUM(C90:C91) -> 0.0 | D92: =SUM(D90:D91) -> 0.0 | E92: =SUM(E90:E91) -> 0.0
A93: =" "&Labels!C102 -> Total | B93: =SUM(B83,B86:B88,B92) -> 1.0 | C93: =SUM(C83,C86:C88,C92) -> 1.0 | D93: =SUM(D83,D86:D88,D92) -> 1.0 | E93: =SUM(E83,E86:E88,E92) -> 3.0
A94: =" "&Labels!B94 -> Convert
A95: =" "&Labels!B103 -> Conv Note
A96: =" "&Labels!B104 -> Series B | B96: =Conversion!B28*Investment!B244/'(Other Variables)'!B181/(1-Inputs!B23) -> 0.0 | C96: =Conversion!C28*Investment!C244/'(Other Variables)'!C181/(1-Inputs!B23) -> 0.0 | D96: =Conversion!D28*Investment!D244/'(Other Variables)'!D181/(1-Inputs!B23) -> 0.0 | E96: =SUM(B96:D96) -> 0.0
A97: =" "&Labels!B105 -> Series A | B97: =Conversion!B29*Investment!B245/'(Other Variables)'!B181/(1-Inputs!B24) -> 0.0 | C97: =Conversion!C29*Investment!C245/'(Other Variables)'!C181/(1-Inputs!B24) -> 0.0 | D97: =Conversion!D29*Investment!D245/'(Other Variables)'!D181/(1-Inputs!B24) -> 0.0 | E97: =SUM(B97:D97) -> 0.0
A98: =" "&Labels!C103 -> Subtotal | B98: =SUM(B96:B97) -> 0.0 | C98: =SUM(C96:C97) -> 0.0 | D98: =SUM(D96:D97) -> 0.0 | E98: =SUM(E96:E97) -> 0.0
A99: =" "&Labels!B106 -> Preferred
A100: =" "&Labels!B107 -> Series A | B100: =Conversion!B31*B85 -> 0.0 | C100: =Conversion!C31*C85 -> 0.0 | D100: =Conversion!D31*D85 -> 0.0 | E100: =SUM(B100:D100) -> 0.0
A101: =" "&Labels!C106 -> Subtotal | B101: =B100 -> 0.0 | C101: =C100 -> 0.0 | D101: =D100 -> 0.0 | E101: =E100 -> 0.0
A102: =" "&Labels!B108 -> Common | B102: =Conversion!B32*B87 -> 0.0 | C102: =Conversion!C32*C87 -> 0.0 | D102: =Conversion!D32*D87 -> 0.0 | E102: =SUM(B102:D102) -> 0.0
A103: =" "&Labels!B109 -> Warrant | B103: =Conversion!B33*B88 -> 0.0 | C103: =Conversion!C33*C88 -> 0.0 | D103: =Conversion!D33*D88 -> 0.0 | E103: =SUM(B103:D103) -> 0.0
A104: =" "&Labels!B110 -> Option
A105: =" "&Labels!B111 -> Series B | B105: =Conversion!B35*B90 -> 0.0 | C105: =Conversion!C35*C90 -> 0.0 | D105: =Conversion!D35*D90 -> 0.0 | E105: =SUM(B105:D105) -> 0.0
A106: =" "&Labels!B112 -> Series A | B106: =Conversion!B36*B91 -> 0.0 | C106: =Conversion!C36*C91 -> 0.0 | D106: =Conversion!D36*D91 -> 0.0 | E106: =SUM(B106:D106) -> 0.0
A107: =" "&Labels!C110 -> Subtotal | B107: =SUM(B105:B106) -> 0.0 | C107: =SUM(C105:C106) -> 0.0 | D107: =SUM(D105:D106) -> 0.0 | E107: =SUM(E105:E106) -> 0.0
A108: =" "&Labels!C102 -> Total | B108: =SUM(B98,B101:B103,B107) -> 0.0 | C108: =SUM(C98,C101:C103,C107) -> 0.0 | D108: =SUM(D98,D101:D103,D107) -> 0.0 | E108: =SUM(E98,E101:E103,E107) -> 0.0
A109: =" "&Labels!B95 -> End
A110: =" "&Labels!B103 -> Conv Note
A111: =" "&Labels!B104 -> Series B | B111: =B30 -> 0.0 | C111: 0.0 | D111: 0.0 | E111: =SUM(B111:D111) -> 0.0
A112: =" "&Labels!B105 -> Series A | B112: 0.0 | C112: 0.0 | D112: 0.0 | E112: =SUM(B112:D112) -> 0.0
A113: =" "&Labels!C103 -> Subtotal | B113: =SUM(B111:B112) -> 0.0 | C113: =SUM(C111:C112) -> 0.0 | D113: =SUM(D111:D112) -> 0.0 | E113: =SUM(E111:E112) -> 0.0
A114: =" "&Labels!B106 -> Preferred
A115: =" "&Labels!B107 -> Series A | B115: =B34 -> 0.0 | C115: =C34 -> 0.0 | D115: =D34 -> 0.0 | E115: =SUM(B115:D115) -> 0.0
A116: =" "&Labels!C106 -> Subtotal | B116: =B34 -> 0.0 | C116: =C34 -> 0.0 | D116: =D34 -> 0.0 | E116: =E34 -> 0.0
A117: =" "&Labels!B108 -> Common | B117: =B36 -> 1.0 | C117: 1.0 | D117: 1.0 | E117: =SUM(B117:D117) -> 3.0
A118: =" "&Labels!B109 -> Warrant | B118: 0.0 | C118: 0.0 | D118: 0.0 | E118: =SUM(B118:D118) -> 0.0
A119: =" "&Labels!B110 -> Option
A120: =" "&Labels!B111 -> Series B | B120: =B39 -> 0.0 | C120: 0.0 | D120: 0.0 | E120: =SUM(B120:D120) -> 0.0
A121: =" "&Labels!B112 -> Series A | B121: 0.0 | C121: 0.0 | D121: 0.0 | E121: =SUM(B121:D121) -> 0.0
A122: =" "&Labels!C110 -> Subtotal | B122: =SUM(B120:B121) -> 0.0 | C122: =SUM(C120:C121) -> 0.0 | D122: =SUM(D120:D121) -> 0.0 | E122: =SUM(E120:E121) -> 0.0
A123: =" "&Labels!C102 -> Total | B123: =SUM(B113,B116:B118,B122) -> 1.0 | C123: =SUM(C113,C116:C118,C122) -> 1.0 | D123: =SUM(D113,D116:D118,D122) -> 1.0 | E123: =SUM(E113,E116:E118,E122) -> 3.0

Sheet Conversion
A1: ="Capitalization Table" -> Capitalization Table
A2: =Inputs!B8 -> ABC Corp.
A3: =IF("Conversion"="(Default Input)","Ignore this sheet in normal use.","Investment Scenario "&1&", Valuation Scenario "&1) -> Investment Scenario 1, Valuation Scenario 1
A4: ="Conversion to Common Shares" -> Conversion to Common Shares
A5: ="" -> 
B6: =Labels!B98 -> Seed | C6: =Labels!B99 -> Round A | D6: =Labels!B100 -> Exit
A7: =Labels!B20 -> Event Date | B7: =Investment!B209 -> 2010-08-01 | C7: =Investment!C209 -> 2011-07-01 | D7: =Investment!D209 -> 2012-06-01
A9: ="Units Converted to Common Stock" -> Units Converted to Common Stock
A10: =Labels!B78 -> Net Units
A11: =" "&Labels!B103 -> Conv Note
A12: =" "&Labels!B104 -> Series B | B12: =Shares!B96 -> 0.0 | C12: =Shares!C96 -> 0.0 | D12: =Shares!D96 -> 0.0 | E12: =SUM(B12:D12) -> 0.0
A13: =" "&Labels!B105 -> Series A | B13: =Shares!B97 -> 0.0 | C13: =Shares!C97 -> 0.0 | D13: =Shares!D97 -> 0.0 | E13: =SUM(B13:D13) -> 0.0
A14: =" "&Labels!C103 -> Subtotal | B14: =SUM(B12:B13) -> 0.0 | C14: =SUM(C12:C13) -> 0.0 | D14: =SUM(D12:D13) -> 0.0 | E14: =SUM(E12:E13) -> 0.0
A15: =" "&Labels!B106 -> Preferred
A16: =" "&Labels!B107 -> Series A | B16: =Shares!B100 -> 0.0 | C16: =Shares!C100 -> 0.0 | D16: =Shares!D100 -> 0.0 | E16: =SUM(B16:D16) -> 0.0
A17: =" "&Labels!C106 -> Subtotal | B17: =Shares!B100 -> 0.0 | C17: =Shares!C100 -> 0.0 | D17: =Shares!D100 -> 0.0 | E17: =Shares!E100 -> 0.0
A18: =" "&Labels!B108 -> Common | B18: =Shares!B102 -> 0.0 | C18: =Shares!C102 -> 0.0 | D18: =Shares!D102 -> 0.0 | E18: =SUM(B18:D18) -> 0.0
A19: =" "&Labels!B109 -> Warrant | B19: =Shares!B103 -> 0.0 | C19: =Shares!C103 -> 0.0 | D19: =Shares!D103 -> 0.0 | E19: =SUM(B19:D19) -> 0.0
A20: =" "&Labels!B110 -> Option
A21: =" "&Labels!B111 -> Series B | B21: =Shares!B105 -> 0.0 | C21: =Shares!C105 -> 0.0 | D21: =Shares!D105 -> 0.0 | E21: =SUM(B21:D21) -> 0.0
A22: =" "&Labels!B112 -> Series A | B22: =Shares!B106 -> 0.0 | C22: =Shares!C106 -> 0.0 | D22: =Shares!D106 -> 0.0 | E22: =SUM(B22:D22) -> 0.0
A23: =" "&Labels!C110 -> Subtotal | B23: =SUM(B21:B22) -> 0.0 | C23: =SUM(C21:C22) -> 0.0 | D23: =SUM(D21:D22) -> 0.0 | E23: =SUM(E21:E22) -> 0.0
A24: =" "&Labels!C102 -> Total | B24: =SUM(B14,B17:B19,B23) -> 0.0 | C24: =SUM(C14,C17:C19,C23) -> 0.0 | D24: =SUM(D14,D17:D19,D23) -> 0.0 | E24: =SUM(E14,E17:E19,E23) -> 0.0
A26: =Labels!B12 -> % Converting
A27: =" "&Labels!B103 -> Conv Note
A28: =" "&Labels!B104 -> Series B | B28: =B44 -> 0.00% | C28: 0.00% | D28: 0.00%
A29: =" "&Labels!B105 -> Series A | B29: 0.00% | C29: 0.00% | D29: 0.00%
A30: =" "&Labels!B106 -> Preferred
A31: =" "&Labels!B107 -> Series A | B31: =B47 -> 0.00% | C31: 0.00% | D31: 0.00%
A32: =" "&Labels!B108 -> Common | B32: 0.00% | C32: 0.00% | D32: 0.00%
A33: =" "&Labels!B109 -> Warrant | B33: 0.00% | C33: 0.00% | D33: 0.00%
A34: =" "&Labels!B110 -> Option
A35: =" "&Labels!B111 -> Series B | B35: =B51 -> 0.00% | C35: 0.00% | D35: 0.00%
A36: =" "&Labels!B112 -> Series A | B36: 0.00% | C36: 0.00% | D36: 0.00%
A37: ="Note: You can override the model's default conversion decisions by entering numerical values." -> Note: You can override the model's default conversion decisions by entering numerical values.
A39: ="Default Conversion Decisions" -> Default Conversion Decisions
A40: =" " -> 
B41: =Labels!B98 -> Seed | C41: =Labels!B99 -> Round A | D41: =Labels!B100 -> Exit
A42: =Labels!B6 -> Default Conversion Decisions
A43: =" "&Labels!B103 -> Conv Note
A44: =" "&Labels!B104 -> Series B | B44: =ABS(PRODUCT(B61:B65)) -> 0 | C44: =ABS(PRODUCT(C61:C65)) -> 0 | D44: =ABS(PRODUCT(D61:D65)) -> 0
A45: =" "&Labels!B105 -> Series A | B45: =ABS(PRODUCT(B67:B71)) -> 0 | C45: =ABS(PRODUCT(C67:C71)) -> 0 | D45: =ABS(PRODUCT(D67:D71)) -> 0
A46: =" "&Labels!B106 -> Preferred
A47: =" "&Labels!B107 -> Series A | B47: =ABS(PRODUCT(B74:B78)) -> 0 | C47: =ABS(PRODUCT(C74:C78)) -> 0 | D47: =ABS(PRODUCT(D74:D78)) -> 0
A48: =" "&Labels!B108 -> Common | B48: =0 -> 0 | C48: =0 -> 0 | D48: =0 -> 0
A49: =" "&Labels!B109 -> Warrant | B49: =ABS(PRODUCT(B86:B90)) -> 0 | C49: =ABS(PRODUCT(C86:C90)) -> 0 | D49: =ABS(PRODUCT(D86:D90)) -> 0
A50: =" "&Labels!B110 -> Option
A51: =" "&Labels!B111 -> Series B | B51: =ABS(PRODUCT(B93:B97)) -> 0 | C51: =ABS(PRODUCT(C93:C97)) -> 0 | D51: =ABS(PRODUCT(D93:D97)) -> 0
A52: =" "&Labels!B112 -> Series A | B52: =ABS(PRODUCT(B99:B103)) -> 0 | C52: =ABS(PRODUCT(C99:C103)) -> 0 | D52: =ABS(PRODUCT(D99:D103)) -> 0
A53: ="Key: 1 means convert, 0 means don't convert" -> Key: 1 means convert, 0 means don't convert
A55: ="Decision Details" -> Decision Details
A56: =" " -> 
B57: =Labels!B98 -> Seed | C57: =Labels!B99 -> Round A | D57: =Labels!B100 -> Exit
A58: =Labels!B7 -> Conversion Decisions Detail
A59: =" "&Labels!B103 -> Conv Note
A60: =" "&Labels!B104 -> Series B
A61: =" "&Labels!B84 -> Trigger Date | B61: =IF(B7>=Inputs!B28,1,0) -> 0 | C61: =IF(C7>=Inputs!B28,1,0) -> 1 | D61: =IF(D7>=Inputs!B28,1,0) -> 1
A62: =" "&Labels!B85 -> Trigger Invest | B62: =IF(Investment!B89+Investment!B88+Investment!B85>=Inputs!C28,1,0) -> 0 | C62: =IF(Investment!C89+Investment!C88+Investment!C85>=Inputs!C28,1,0) -> 0 | D62: =IF(Investment!D89+Investment!D88+Investment!D85>=Inputs!C28,1,0) -> 0
A63: =" "&Labels!B86 -> Trigger Value % | B63: =IF(Inputs!D28*'(Other Variables)'!B192>Investment!B85,1,0) -> 1 | C63: =IF(Inputs!D28*'(Other Variables)'!C192>Investment!C85,1,0) -> 1 | D63: =IF(Inputs!D28*'(Other Variables)'!D192>Investment!D85,1,0) -> 1
A64: =" "&Labels!B87 -> Liquidation | B64: =IF((0+Investment!B290+'(Other Variables)'!B230)/(1-Inputs!B23)>(1+Inputs!E28)*(0+'(Other Variables)'!B230*Inputs!C23),1,0) -> 0 | C64: =IF((Investment!B274+Investment!C290+'(Other Variables)'!C230)/(1-Inputs!B23)>(1+Inputs!E28)*(Payout!B75+'(Other Variables)'!C230*Inputs!C23),1,0) -> 0 | D64: =IF((Investment!C274+Investment!D290+'(Other Variables)'!D230)/(1-Inputs!B23)>(1+Inputs!E28)*(Payout!C75+'(Other Variables)'!D230*Inputs!C23),1,0) -> 0
A65: =" "&Labels!B88 -> Trigger Price | B65: =-1 -> -1 | C65: =-1 -> -1 | D65: =-1 -> -1
A66: =" "&Labels!B105 -> Series A
A67: =" "&Labels!B84 -> Trigger Date | B67: =IF(B7>=Inputs!B29,1,0) -> 0 | C67: =IF(C7>=Inputs!B29,1,0) -> 1 | D67: =IF(D7>=Inputs!B29,1,0) -> 1
A68: =" "&Labels!B85 -> Trigger Invest | B68: =IF(Investment!B89+Investment!B88+Investment!B85>=Inputs!C29,1,0) -> 0 | C68: =IF(Investment!C89+Investment!C88+Investment!C85>=Inputs!C29,1,0) -> 0 | D68: =IF(Investment!D89+Investment!D88+Investment!D85>=Inputs!C29,1,0) -> 0
A69: =" "&Labels!B86 -> Trigger Value % | B69: =IF(Inputs!D29*'(Other Variables)'!B192>Investment!B85,1,0) -> 1 | C69: =IF(Inputs!D29*'(Other Variables)'!C192>Investment!C85,1,0) -> 1 | D69: =IF(Inputs!D29*'(Other Variables)'!D192>Investment!D85,1,0) -> 1
A70: =" "&Labels!B87 -> Liquidation | B70: =IF((0+Investment!B291+'(Other Variables)'!B231)/(1-Inputs!B24)>(1+Inputs!E29)*(0+'(Other Variables)'!B231*Inputs!C24),1,0) -> 0 | C70: =IF((Investment!B275+Investment!C291+'(Other Variables)'!C231)/(1-Inputs!B24)>(1+Inputs!E29)*(Payout!B76+'(Other Variables)'!C231*Inputs!C24),1,0) -> 0 | D70: =IF((Investment!C275+Investment!D291+'(Other Variables)'!D231)/(1-Inputs!B24)>(1+Inputs!E29)*(Payout!C76+'(Other Variables)'!D231*Inputs!C24),1,0) -> 0
A71: =" "&Labels!B88 -> Trigger Price | B71: =-1 -> -1 | C71: =-1 -> -1 | D71: =-1 -> -1
A72: =" "&Labels!B106 -> Preferred
A73: =" "&Labels!B107 -> Series A
A74: =" "&Labels!B84 -> Trigger Date | B74: =IF(B7>=Inputs!B57,1,0) -> 0 | C74: =IF(C7>=Inputs!B57,1,0) -> 1 | D74: =IF(D7>=Inputs!B57,1,0) -> 1
A75: =" "&Labels!B85 -> Trigger Invest | B75: =IF(Investment!B89+Investment!B88+Investment!B85>=Inputs!C57,1,0) -> 0 | C75: =IF(Investment!C89+Investment!C88+Investment!C85>=Inputs!C57,1,0) -> 0 | D75: =IF(Investment!D89+Investment!D88+Investment!D85>=Inputs!C57,1,0) -> 0
A76: =" "&Labels!B86 -> Trigger Value % | B76: =IF(Inputs!D57*'(Other Variables)'!B192>Investment!B85,1,0) -> 1 | C76: =IF(Inputs!D57*'(Other Variables)'!C192>Investment!C85,1,0) -> 1 | D76: =IF(Inputs!D57*'(Other Variables)'!D192>Investment!D85,1,0) -> 1
A77: =" "&Labels!B87 -> Liquidation | B77: =IF((0+Investment!B294+'(Other Variables)'!B234)/(1+Inputs!B50)>(1+Inputs!E57)*0+'(Other Variables)'!B234*Inputs!B53,1,0) -> 0 | C77: =IF((Investment!B278+Investment!C294+'(Other Variables)'!C234)/(1+Inputs!C50)>(1+Inputs!E57)*Payout!B81+'(Other Variables)'!C234*Inputs!B53,1,0) -> 0 | D77: =IF((Investment!C278+Investment!D294+'(Other Variables)'!D234)/(1+Inputs!D50)>(1+Inputs!E57)*Payout!C81+'(Other Variables)'!D234*Inputs!B53,1,0) -> 0
A78: =" "&Labels!B88 -> Trigger Price | B78: =-1 -> -1 | C78: =-1 -> -1 | D78: =-1 -> -1
A79: =" "&Labels!B108 -> Common
A80: =" "&Labels!B84 -> Trigger Date | B80: =-1 -> -1 | C80: -1 | D80: -1
A81: =" "&Labels!B85 -> Trigger Invest | B81: -1 | C81: -1 | D81: -1
A82: =" "&Labels!B86 -> Trigger Value % | B82: -1 | C82: -1 | D82: -1
A83: =" "&Labels!B87 -> Liquidation | B83: -1 | C83: -1 | D83: -1
A84: =" "&Labels!B88 -> Trigger Price | B84: -1 | C84: -1 | D84: -1
A85: =" "&Labels!B109 -> Warrant
A86: =" "&Labels!B84 -> Trigger Date | B86: =IF(B7>=Boneyard!D14,1,0) -> 0 | C86: =IF(C7>=Boneyard!D14,1,0) -> 1 | D86: =IF(D7>=Boneyard!D14,1,0) -> 1
A87: =" "&Labels!B85 -> Trigger Invest | B87: =IF(Investment!B89+Investment!B88+Investment!B85>=Boneyard!F14,1,0) -> 0 | C87: =IF(Investment!C89+Investment!C88+Investment!C85>=Boneyard!F14,1,0) -> 0 | D87: =IF(Investment!D89+Investment!D88+Investment!D85>=Boneyard!F14,1,0) -> 0
A88: =" "&Labels!B86 -> Trigger Value % | B88: =-1 -> -1 | C88: -1 | D88: -1
A89: =" "&Labels!B87 -> Liquidation | B89: -1 | C89: -1 | D89: -1
A90: =" "&Labels!B88 -> Trigger Price | B90: =IF('(Other Variables)'!B12<'(Other Variables)'!B181,1,0) -> 1 | C90: =IF('(Other Variables)'!B12<'(Other Variables)'!C181,1,0) -> 1 | D90: =IF('(Other Variables)'!B12<'(Other Variables)'!D181,1,0) -> 1
A91: =" "&Labels!B110 -> Option
A92: =" "&Labels!B111 -> Series B
A93: =" "&Labels!B84 -> Trigger Date | B93: =IF(B7>=Inputs!C101,1,0) -> 0 | C93: =IF(C7>=Inputs!C101,1,0) -> 1 | D93: =IF(D7>=Inputs!C101,1,0) -> 1
A94: =" "&Labels!B85 -> Trigger Invest | B94: =IF(Investment!B89+Investment!B88+Investment!B85>=Inputs!D101,1,0) -> 0 | C94: =IF(Investment!C89+Investment!C88+Investment!C85>=Inputs!D101,1,0) -> 0 | D94: =IF(Investment!D89+Investment!D88+Investment!D85>=Inputs!D101,1,0) -> 0
A95: =" "&Labels!B86 -> Trigger Value % | B95: =-1 -> -1 | C95: -1 | D95: -1
A96: =" "&Labels!B87 -> Liquidation | B96: -1 | C96: -1 | D96: -1
A97: =" "&Labels!B88 -> Trigger Price | B97: =IF(Inputs!B101<'(Other Variables)'!B181,1,0) -> 1 | C97: =IF(Inputs!B101<'(Other Variables)'!C181,1,0) -> 1 | D97: =IF(Inputs!B101<'(Other Variables)'!D181,1,0) -> 1
A98: =" "&Labels!B112 -> Series A
A99: =" "&Labels!B84 -> Trigger Date | B99: =IF(B7>=Inputs!C102,1,0) -> 0 | C99: =IF(C7>=Inputs!C102,1,0) -> 1 | D99: =IF(D7>=Inputs!C102,1,0) -> 1
A100: =" "&Labels!B85 -> Trigger Invest | B100: =IF(Investment!B89+Investment!B88+Investment!B85>=Inputs!D102,1,0) -> 0 | C100: =IF(Investment!C89+Investment!C88+Investment!C85>=Inputs!D102,1,0) -> 0 | D100: =IF(Investment!D89+Investment!D88+Investment!D85>=Inputs!D102,1,0) -> 0
A101: =" "&Labels!B86 -> Trigger Value % | B101: =-1 -> -1 | C101: -1 | D101: -1
A102: =" "&Labels!B87 -> Liquidation | B102: -1 | C102: -1 | D102: -1
A103: =" "&Labels!B88 -> Trigger Price | B103: =IF(Inputs!B102<'(Other Variables)'!B181,1,0) -> 1 | C103: =IF(Inputs!B102<'(Other Variables)'!C181,1,0) -> 1 | D103: =IF(Inputs!B102<'(Other Variables)'!D181,1,0) -> 1
A104: ="The default conversion decision for each security is positive (negative)" -> The default conversion decision for each security is positive (negative)
A105: ="if all these built-in conditions are satisfied (not satisfied)." -> if all these built-in conditions are satisfied (not satisfied).
A106: ="1) The date of the current round >= the trigger date" -> 1) The date of the current round >= the trigger date
A107: ="2) The sum of investments in common, preferred and notes > the trigger investment threshhold" -> 2) The sum of investments in common, preferred and notes > the trigger investment threshhold
A108: ="3) For notes and preferred: investment in notes + preferred < a stated fraction of firm value." -> 3) For notes and preferred: investment in notes + preferred < a stated fraction of firm value.
A109: ="4) For notes and preferred: value of common shares obtained > (1+premium) * liquidation preference." -> 4) For notes and preferred: value of common shares obtained > (1+premium) * liquidation preference.
A110: ="5) For warrants and options: common share price >= exercise price." -> 5) For warrants and options: common share price >= exercise price.
A111: ="Key" -> Key
A112: ="-1 : condition is satisfied" -> -1 : condition is satisfied
A113: =" 0 : condition is not satisfied" -> 0 : condition is not satisfied
A114: ="-1 : condition is not relevant" -> -1 : condition is not relevant

Sheet Prices
A1: ="Capitalization Table" -> Capitalization Table
A2: =Inputs!B8 -> ABC Corp.
A3: =IF("Prices"="(Default Input)","Ignore this sheet in normal use.","Investment Scenario "&1&", Valuation Scenario "&1) -> Investment Scenario 1, Valuation Scenario 1
A4: ="Preferred Shares" -> Preferred Shares
A5: ="" -> 
B6: =Labels!B98 -> Seed | C6: =Labels!B99 -> Round A | D6: =Labels!B100 -> Exit
A7: =Labels!B20 -> Event Date | B7: =Investment!B209 -> 2010-08-01 | C7: =Investment!C209 -> 2011-07-01 | D7: =Investment!D209 -> 2012-06-01
A9: ="Prices - New Securities" -> Prices - New Securities
A10: =" " -> 
B11: =Labels!B98 -> Seed | C11: =Labels!B99 -> Round A | D11: =Labels!B100 -> Exit
A12: =Labels!B68 -> Price New Unit
A13: =" "&Labels!B103 -> Conv Note
A14: =" "&Labels!B104 -> Series B | B14: ='(Other Variables)'!B19 -> $0.00 | C14: ='(Other Variables)'!C19 -> $0.00 | D14: ='(Other Variables)'!D19 -> $0.00
A15: =" "&Labels!B105 -> Series A | B15: ='(Other Variables)'!B20 -> $0.00 | C15: ='(Other Variables)'!C20 -> $0.00 | D15: ='(Other Variables)'!D20 -> $0.00
A16: =" "&Labels!B106 -> Preferred
A17: =" "&Labels!B107 -> Series A | B17: ='(Other Variables)'!B23 -> $1.10 | C17: ='(Other Variables)'!C23 -> $1,100,000.00 | D17: ='(Other Variables)'!D23 -> $1,100,000.00
A18: =" "&Labels!B108 -> Common | B18: ='(Other Variables)'!B25 -> $1.00 | C18: ='(Other Variables)'!C25 -> $1,000,000.00 | D18: ='(Other Variables)'!D25 -> $1,000,000.00
A19: =" "&Labels!B109 -> Warrant | B19: =MAX(0,Boneyard!D26*B18+Boneyard!D26*(-'(Other Variables)'!B12)) -> $1.00 | C19: =MAX(0,Boneyard!D26*C18+Boneyard!D26*(-'(Other Variables)'!B12)) -> $1,000,000.00 | D19: =MAX(0,Boneyard!D26*D18+Boneyard!D26*(-'(Other Variables)'!B12)) -> $1,000,000.00
A20: =" "&Labels!B110 -> Option
A21: =" "&Labels!B111 -> Series B | B21: =Inputs!B96 -> $1.00 | C21: =Inputs!C96 -> $1,000,000.00 | D21: =Inputs!D96 -> $1,000,000.00
A22: =" "&Labels!B112 -> Series A | B22: =Inputs!B97 -> $1.00 | C22: =Inputs!C97 -> $1,000,000.00 | D22: =Inputs!D97 -> $1,000,000.00
A25: ="Conversion and Exercise Prices" -> Conversion and Exercise Prices
A26: =" " -> 
A27: ="Convertible Notes" -> Convertible Notes
B28: =Labels!B98 -> Seed | C28: =Labels!B99 -> Round A | D28: =Labels!B100 -> Exit | E28: =Labels!C97 -> Total
A29: =Labels!B67 -> Conversion Price
A30: =" "&Labels!B104 -> Series B | B30: =MAX(0,'(Other Variables)'!B181*1+'(Other Variables)'!B181*(-Inputs!B23)) -> $700,000.70 | C30: =MAX(0,'(Other Variables)'!C181*1+'(Other Variables)'!C181*(-Inputs!B23)) -> $700,000.00 | D30: =MAX(0,'(Other Variables)'!D181*1+'(Other Variables)'!D181*(-Inputs!B23)) -> $700,000.00 | E30: =D30 -> $700,000.00
A31: =" "&Labels!B105 -> Series A | B31: =MAX(0,'(Other Variables)'!B181*1+'(Other Variables)'!B181*(-Inputs!B24)) -> $700,000.70 | C31: =MAX(0,'(Other Variables)'!C181*1+'(Other Variables)'!C181*(-Inputs!B24)) -> $700,000.00 | D31: =MAX(0,'(Other Variables)'!D181*1+'(Other Variables)'!D181*(-Inputs!B24)) -> $700,000.00 | E31: =D31 -> $700,000.00
A32: =" "&Labels!C103 -> Subtotal | B32: =B31 -> $700,000.70 | C32: =C31 -> $700,000.00 | D32: =D31 -> $700,000.00 | E32: =E31 -> $700,000.00
A34: ="Preferred Stock" -> Preferred Stock
A35: =Labels!B67 -> Conversion Price
A36: =" "&Labels!B107 -> Series A | B36: =MAX(0,'(Other Variables)'!B181) -> $1,000,001.00 | C36: =MAX(0,'(Other Variables)'!C181) -> $1,000,000.00 | D36: =MAX(0,'(Other Variables)'!D181) -> $1,000,000.00 | E36: =D36 -> $1,000,000.00
A37: =" "&Labels!C106 -> Subtotal | B37: =B36 -> $1,000,001.00 | C37: =C36 -> $1,000,000.00 | D37: =D36 -> $1,000,000.00 | E37: =E36 -> $1,000,000.00
A39: ="Warrants" -> Warrants
A40: =Labels!B67 -> Conversion Price | B40: =MAX(0,'(Other Variables)'!B181-'(Other Variables)'!B12) -> $1,000,001.00 | C40: =MAX(0,'(Other Variables)'!C181-'(Other Variables)'!B12) -> $1,000,000.00 | D40: =MAX(0,'(Other Variables)'!D181-'(Other Variables)'!B12) -> $1,000,000.00 | E40: =D40 -> $1,000,000.00
A42: ="Options" -> Options
A43: =Labels!B67 -> Conversion Price
A44: =" "&Labels!B111 -> Series B | B44: =MAX(0,'(Other Variables)'!B181-Inputs!B101) -> $1,000,001.00 | C44: =MAX(0,'(Other Variables)'!C181-Inputs!B101) -> $1,000,000.00 | D44: =MAX(0,'(Other Variables)'!D181-Inputs!B101) -> $1,000,000.00 | E44: =D44 -> $1,000,000.00
A45: =" "&Labels!B112 -> Series A | B45: =MAX(0,'(Other Variables)'!B181-Inputs!B102) -> $1,000,001.00 | C45: =MAX(0,'(Other Variables)'!C181-Inputs!B102) -> $1,000,000.00 | D45: =MAX(0,'(Other Variables)'!D181-Inputs!B102) -> $1,000,000.00 | E45: =D45 -> $1,000,000.00
A46: =" "&Labels!C110 -> Subtotal | B46: =B45 -> $1,000,001.00 | C46: =C45 -> $1,000,000.00 | D46: =D45 -> $1,000,000.00 | E46: =E45 -> $1,000,000.00

Sheet Options
A1: ="Capitalization Table" -> Capitalization Table
A2: =Inputs!B8 -> ABC Corp.
A3: =IF("Options"="(Default Input)","Ignore this sheet in normal use.","Investment Scenario "&1&", Valuation Scenario "&1) -> Investment Scenario 1, Valuation Scenario 1
A4: ="Option Summary" -> Option Summary
A5: ="" -> 
B6: =Labels!B98 -> Seed | C6: =Labels!B99 -> Round A | D6: =Labels!B100 -> Exit
A7: =Labels!B20 -> Event Date | B7: =Investment!B209 -> 2010-08-01 | C7: =Investment!C209 -> 2011-07-01 | D7: =Investment!D209 -> 2012-06-01
A9: ="Warrants" -> Warrants
A10: =" " -> 
B11: =Labels!B98 -> Seed | C11: =Labels!B99 -> Round A | D11: =Labels!B100 -> Exit | E11: =Labels!C97 -> Total
A12: =Labels!B52 -> Exercise Amt
A13: =" "&Labels!B91 -> Start | B13: =0 -> $0 | C13: =B17 -> $0 | D13: =C17 -> $0 | E13: =SUM(B13:D13) -> $0
A14: =" "&Labels!B92 -> New Sales | B14: ='(Other Variables)'!B119*'(Other Variables)'!B12 -> $0 | C14: ='(Other Variables)'!C119*'(Other Variables)'!B12 -> $0 | D14: ='(Other Variables)'!D119*'(Other Variables)'!B12 -> $0 | E14: =SUM(B14:D14) -> $0
A15: =" "&Labels!B93 -> Post Sales | B15: =B13+B14 -> $0 | C15: =C13+C14 -> $0 | D15: =D13+D14 -> $0 | E15: =SUM(B15:D15) -> $0
A16: =" "&Labels!B94 -> Convert | B16: =Conversion!B33*B15 -> $0 | C16: =Conversion!C33*C15 -> $0 | D16: =Conversion!D33*D15 -> $0 | E16: =SUM(B16:D16) -> $0
A17: =" "&Labels!B95 -> End | B17: =B15-B16 -> $0 | C17: =C15-C16 -> $0 | D17: =D15-D16 -> $0 | E17: =SUM(B17:D17) -> $0
A19: =Labels!B54 -> Units 'in the Money' | B19: =IF('(Other Variables)'!B181<='(Other Variables)'!B12,0,Shares!B37) -> 0.0 | C19: =IF('(Other Variables)'!C181<='(Other Variables)'!B12,0,Shares!C37) -> 0.0 | D19: =IF('(Other Variables)'!D181<='(Other Variables)'!B12,0,Shares!D37) -> 0.0 | E19: =SUM(B19:D19) -> 0.0
A22: ="Options" -> Options
A23: =" " -> 
B24: =Labels!B98 -> Seed | C24: =Labels!B99 -> Round A | D24: =Labels!B100 -> Exit | E24: =Labels!C97 -> Total
A25: =Labels!B52 -> Exercise Amt
A26: =" "&Labels!B91 -> Start
A27: =" "&Labels!B111 -> Series B | B27: =0 -> $0 | C27: =B43 -> $0 | D27: =C43 -> $0 | E27: =SUM(B27:D27) -> $0
A28: =" "&Labels!B112 -> Series A | B28: =0 -> $0 | C28: =B44 -> $0 | D28: =C44 -> $0 | E28: =SUM(B28:D28) -> $0
A29: =" "&Labels!C110 -> Subtotal | B29: =SUM(B27:B28) -> $0 | C29: =SUM(C27:C28) -> $0 | D29: =SUM(D27:D28) -> $0 | E29: =SUM(E27:E28) -> $0
A30: =" "&Labels!B92 -> New Sales
A31: =" "&Labels!B111 -> Series B | B31: ='(Other Variables)'!B121*Inputs!B101 -> $0 | C31: ='(Other Variables)'!C121*Inputs!B101 -> $0 | D31: ='(Other Variables)'!D121*Inputs!B101 -> $0 | E31: =SUM(B31:D31) -> $0
A32: =" "&Labels!B112 -> Series A | B32: ='(Other Variables)'!B122*Inputs!B102 -> $0 | C32: ='(Other Variables)'!C122*Inputs!B102 -> $0 | D32: ='(Other Variables)'!D122*Inputs!B102 -> $0 | E32: =SUM(B32:D32) -> $0
A33: =" "&Labels!C110 -> Subtotal | B33: =SUM(B31:B32) -> $0 | C33: =SUM(C31:C32) -> $0 | D33: =SUM(D31:D32) -> $0 | E33: =SUM(E31:E32) -> $0
A34: =" "&Labels!B93 -> Post Sales
A35: =" "&Labels!B111 -> Series B | B35: =B27+B31 -> $0 | C35: $0 | D35: $0 | E35: =SUM(B35:D35) -> $0
A36: =" "&Labels!B112 -> Series A | B36: $0 | C36: $0 | D36: $0 | E36: =SUM(B36:D36) -> $0
A37: =" "&Labels!C110 -> Subtotal | B37: =SUM(B35:B36) -> $0 | C37: =SUM(C35:C36) -> $0 | D37: =SUM(D35:D36) -> $0 | E37: =SUM(E35:E36) -> $0
A38: =" "&Labels!B94 -> Convert
A39: =" "&Labels!B111 -> Series B | B39: =Conversion!B35*B35 -> $0 | C39: =Conversion!C35*C35 -> $0 | D39: =Conversion!D35*D35 -> $0 | E39: =SUM(B39:D39) -> $0
A40: =" "&Labels!B112 -> Series A | B40: =Conversion!B36*B36 -> $0 | C40: =Conversion!C36*C36 -> $0 | D40: =Conversion!D36*D36 -> $0 | E40: =SUM(B40:D40) -> $0
A41: =" "&Labels!C110 -> Subtotal | B41: =SUM(B39:B40) -> $0 | C41: =SUM(C39:C40) -> $0 | D41: =SUM(D39:D40) -> $0 | E41: =SUM(E39:E40) -> $0
A42: =" "&Labels!B95 -> End
A43: =" "&Labels!B111 -> Series B | B43: =B35-B39 -> $0 | C43: $0 | D43: $0 | E43: =SUM(B43:D43) -> $0
A44: =" "&Labels!B112 -> Series A | B44: $0 | C44: $0 | D44: $0 | E44: =SUM(B44:D44) -> $0
A45: =" "&Labels!C110 -> Subtotal | B45: =SUM(B43:B44) -> $0 | C45: =SUM(C43:C44) -> $0 | D45: =SUM(D43:D44) -> $0 | E45: =SUM(E43:E44) -> $0
A47: =Labels!B54 -> Units 'in the Money'
A48: =" "&Labels!B111 -> Series B | B48: =IF('(Other Variables)'!B181<=Inputs!B101,0,Shares!B39) -> 0.0 | C48: =IF('(Other Variables)'!C181<=Inputs!B101,0,Shares!C39) -> 0.0 | D48: =IF('(Other Variables)'!D181<=Inputs!B101,0,Shares!D39) -> 0.0 | E48: =SUM(B48:D48) -> 0.0
A49: =" "&Labels!B112 -> Series A | B49: =IF('(Other Variables)'!B181<=Inputs!B102,0,Shares!B40) -> 0.0 | C49: =IF('(Other Variables)'!C181<=Inputs!B102,0,Shares!C40) -> 0.0 | D49: =IF('(Other Variables)'!D181<=Inputs!B102,0,Shares!D40) -> 0.0 | E49: =SUM(B49:D49) -> 0.0
A50: =" "&Labels!C110 -> Subtotal | B50: =SUM(B48:B49) -> 0.0 | C50: =SUM(C48:C49) -> 0.0 | D50: =SUM(D48:D49) -> 0.0 | E50: =SUM(E48:E49) -> 0.0

Sheet Valuation
A1: ="Capitalization Table" -> Capitalization Table
A2: =Inputs!B8 -> ABC Corp.
A3: =IF("Valuation"="(Default Input)","Ignore this sheet in normal use.","Investment Scenario "&1&", Valuation Scenario "&1) -> Investment Scenario 1, Valuation Scenario 1
A4: ="Valuation" -> Valuation
A5: ="" -> 
B6: =Labels!B98 -> Seed | C6: =Labels!B99 -> Round A | D6: =Labels!B100 -> Exit
A7: =Labels!B20 -> Event Date | B7: =Investment!B209 -> 2010-08-01 | C7: =Investment!C209 -> 2011-07-01 | D7: =Investment!D209 -> 2012-06-01
A9: ="Start of Round" -> Start of Round
A10: =Labels!B22 -> Firm Value | B10: ='Plot Support'!B50 -> $1,000,000 | C10: ='Plot Support'!B51 -> $1,000,000 | D10: ='Plot Support'!B52 -> $1,000,000
A12: ="New Investment" -> New Investment
A13: =Labels!B42 -> New Investment | B13: =SUM('(Other Variables)'!B232,'(Other Variables)'!B235:B237,'(Other Variables)'!B241) -> $1 | C13: =SUM('(Other Variables)'!C232,'(Other Variables)'!C235:C237,'(Other Variables)'!C241) -> $0 | D13: =SUM('(Other Variables)'!D232,'(Other Variables)'!D235:D237,'(Other Variables)'!D241) -> $0 | E13: =SUM('(Other Variables)'!E232,'(Other Variables)'!E235:E237,'(Other Variables)'!E241) -> $1
A15: ="Exercise of Warrants" -> Exercise of Warrants
A16: =Labels!B38 -> Investment by Origin | B16: =Investment!B105 -> $0 | C16: =Investment!C105 -> $0 | D16: =Investment!D105 -> $0 | E16: =SUM(B16:D16) -> $0
A18: ="Exercise of Options" -> Exercise of Options
A19: =Labels!B38 -> Investment by Origin | B19: =SUM(Investment!B107:B108) -> $0 | C19: =SUM(Investment!C107:C108) -> $0 | D19: =SUM(Investment!D107:D108) -> $0 | E19: =SUM(Investment!E107:E108) -> $0
A21: ="End of Round" -> End of Round
A22: =Labels!B22 -> Firm Value | B22: ='(Other Variables)'!B192+'(Other Variables)'!B193 -> $1,000,001 | C22: ='(Other Variables)'!C192+'(Other Variables)'!C193 -> $1,000,000 | D22: ='(Other Variables)'!D192+'(Other Variables)'!D193 -> $1,000,000

Sheet Payout
A1: ="Capitalization Table" -> Capitalization Table
A2: =Inputs!B8 -> ABC Corp.
A3: =IF("Payout"="(Default Input)","Ignore this sheet in normal use.","Investment Scenario "&1&", Valuation Scenario "&1) -> Investment Scenario 1, Valuation Scenario 1
A4: ="Payout" -> Payout
A5: ="" -> 
B6: =Labels!B64 -> Payout Pool | C6: =Labels!B49 -> Liq Preference | D6: =Labels!B61 -> Payout | E6: =Labels!B62 -> Payout %
A7: =Labels!B103 -> Conv Note
A8: =" "&Labels!B104 -> Series B | B8: =D27 -> $1,000,000 | C8: =D75 -> $0 | D8: =D43 -> $0 | E8: =D59 -> 0.00%
A9: =" "&Labels!B105 -> Series A | B9: =D28 -> $1,000,000 | C9: =D76 -> $0 | D9: =D44 -> $0 | E9: =D60 -> 0.00%
A10: =" "&Labels!C103 -> Subtotal | B10: ="" ->  | C10: =SUM(C8:C9) -> $0 | D10: =D45 -> $0 | E10: =D61 -> 0.00%
A11: =Labels!B106 -> Preferred
A12: =" "&Labels!B107 -> Series A | B12: =D31 -> $1,000,000 | C12: =D81 -> $0 | D12: =D47 -> $0 | E12: =D63 -> 0.00%
A13: =" "&Labels!C106 -> Subtotal | B13: ="" ->  | C13: =C12 -> $0 | D13: =D48 -> $0 | E13: =D64 -> 0.00%
A14: =Labels!B108 -> Common | B14: =D33 -> $1,000,000 | C14: ='(Other Variables)'!D204 -> $0 | D14: =D49 -> $1,000,000 | E14: =D65 -> 100.00%
A15: =Labels!B109 -> Warrant | B15: $0 | C15: ='(Other Variables)'!D205 -> $0 | D15: =D50 -> $0 | E15: =D66 -> 0.00%
A16: =Labels!B110 -> Option
A17: =" "&Labels!B111 -> Series B | B17: =0/2 -> $0 | C17: ='(Other Variables)'!D207 -> $0 | D17: =D52 -> $0 | E17: =D68 -> 0.00%
A18: =" "&Labels!B112 -> Series A | B18: =0/2 -> $0 | C18: ='(Other Variables)'!D208 -> $0 | D18: =D53 -> $0 | E18: =D69 -> 0.00%
A19: =" "&Labels!C110 -> Subtotal | B19: ="" ->  | C19: =SUM(C17:C18) -> $0 | D19: =D54 -> $0 | E19: =D70 -> 0.00%
A20: =Labels!C102 -> Total | B20: ="" ->  | C20: =SUM(C10,C13:C15,C19) -> $0 | D20: =D55 -> $1,000,000 | E20: =D71 -> 100.00%
A22: ="Payout Details" -> Payout Details
A23: =" " -> 
B24: =Labels!B98 -> Seed | C24: =Labels!B99 -> Round A | D24: =Labels!B100 -> Exit | E24: =Labels!C97 -> Total
A25: =Labels!B63 -> Payout Pool
A26: =" "&Labels!B103 -> Conv Note
A27: =" "&Labels!B104 -> Series B | B27: ='Plot Support'!B50+Investment!B241+'(Other Variables)'!B93 -> $1,000,001 | C27: ='Plot Support'!B51+Investment!C241+'(Other Variables)'!C93 -> $1,000,000 | D27: ='Plot Support'!B52+Investment!D241+'(Other Variables)'!D93 -> $1,000,000 | E27: ="" -> 
A28: =" "&Labels!B105 -> Series A | B28: =B27-B43 -> $1,000,001 | C28: =C27-C43 -> $1,000,000 | D28: =D27-D43 -> $1,000,000 | E28: ="" -> 
A29: =" "&Labels!C103 -> Subtotal | B29: ="" ->  | C29: ="" ->  | D29: ="" ->  | E29: ="" -> 
A30: =" "&Labels!B106 -> Preferred
A31: =" "&Labels!B107 -> Series A | B31: =B28-B44 -> $1,000,001 | C31: =C28-C44 -> $1,000,000 | D31: =D28-D44 -> $1,000,000 | E31: ="" -> 
A32: =" "&Labels!C106 -> Subtotal | B32: ="" ->  | C32: ="" ->  | D32: ="" ->  | E32: ="" -> 
A33: =" "&Labels!B108 -> Common | B33: =B31-B47 -> $1,000,001 | C33: =C31-C47 -> $1,000,000 | D33: =D31-D47 -> $1,000,000 | E33: ="" -> 
A34: =" "&Labels!B109 -> Warrant | B34: =0/3 -> $0 | C34: =0/3 -> $0 | D34: =0/3 -> $0 | E34: ="" -> 
A35: =" "&Labels!B110 -> Option
A36: =" "&Labels!B111 -> Series B | B36: =0/3/2 -> $0 | C36: $0 | D36: $0 | E36: ="" -> 
A37: =" "&Labels!B112 -> Series A | B37: $0 | C37: $0 | D37: $0 | E37: ="" -> 
A38: =" "&Labels!C110 -> Subtotal | B38: ="" ->  | C38: ="" ->  | D38: ="" ->  | E38: ="" -> 
A39: =" "&Labels!C102 -> Total | B39: ="" ->  | C39: ="" ->  | D39: ="" ->  | E39: ="" -> 
A41: =Labels!B59 -> Payout
A42: =" "&Labels!B103 -> Conv Note
A43: =" "&Labels!B104 -> Series B | B43: =MIN(B27,MAX(B75,Investment!B274/Prices!B30*'(Other Variables)'!B181)) -> $0 | C43: =MIN(C27,MAX(C75,Investment!C274/Prices!C30*'(Other Variables)'!C181)) -> $0 | D43: =MIN(D27,MAX(D75,Investment!D274/Prices!D30*'(Other Variables)'!D181)) -> $0 | E43: ="" -> 
A44: =" "&Labels!B105 -> Series A | B44: =MIN(B28,MAX(B76,Investment!B275/Prices!B31*'(Other Variables)'!B181)) -> $0 | C44: =MIN(C28,MAX(C76,Investment!C275/Prices!C31*'(Other Variables)'!C181)) -> $0 | D44: =MIN(D28,MAX(D76,Investment!D275/Prices!D31*'(Other Variables)'!D181)) -> $0 | E44: ="" -> 
A45: =" "&Labels!C103 -> Subtotal | B45: =SUM(B43:B44) -> $0 | C45: =SUM(C43:C44) -> $0 | D45: =SUM(D43:D44) -> $0 | E45: ="" -> 
A46: =" "&Labels!B106 -> Preferred
A47: =" "&Labels!B107 -> Series A | B47: =MIN(B31,MAX(B81,Shares!B34*'(Other Variables)'!B181)) -> $0 | C47: =MIN(C31,MAX(C81,Shares!C34*'(Other Variables)'!C181)) -> $0 | D47: =MIN(D31,MAX(D81,Shares!D34*'(Other Variables)'!D181)) -> $0 | E47: ="" -> 
A48: =" "&Labels!C106 -> Subtotal | B48: =SUM(B47) -> $0 | C48: =SUM(C47) -> $0 | D48: =SUM(D47) -> $0 | E48: ="" -> 
A49: =" "&Labels!B108 -> Common | B49: =Shares!B36*B33/(Shares!B36+'(Other Variables)'!B302) -> $1,000,001 | C49: =Shares!C36*C33/(Shares!C36+'(Other Variables)'!C302) -> $1,000,000 | D49: =Shares!D36*D33/(Shares!D36+'(Other Variables)'!D302) -> $1,000,000 | E49: ="" -> 
A50: =" "&Labels!B109 -> Warrant | B50: =Options!B19/(Shares!B36+'(Other Variables)'!B302)*B33 -> $0 | C50: =Options!C19/(Shares!C36+'(Other Variables)'!C302)*C33 -> $0 | D50: =Options!D19/(Shares!D36+'(Other Variables)'!D302)*D33 -> $0 | E50: ="" -> 
A51: =" "&Labels!B110 -> Option
A52: =" "&Labels!B111 -> Series B | B52: =Options!B48/(Shares!B36+'(Other Variables)'!B302)*B33 -> $0 | C52: =Options!C48/(Shares!C36+'(Other Variables)'!C302)*C33 -> $0 | D52: =Options!D48/(Shares!D36+'(Other Variables)'!D302)*D33 -> $0 | E52: ="" -> 
A53: =" "&Labels!B112 -> Series A | B53: =Options!B49/(Shares!B36+'(Other Variables)'!B302)*B33 -> $0 | C53: =Options!C49/(Shares!C36+'(Other Variables)'!C302)*C33 -> $0 | D53: =Options!D49/(Shares!D36+'(Other Variables)'!D302)*D33 -> $0 | E53: ="" -> 
A54: =" "&Labels!C110 -> Subtotal | B54: =SUM(B52:B53) -> $0 | C54: =SUM(C52:C53) -> $0 | D54: =SUM(D52:D53) -> $0 | E54: ="" -> 
A55: =" "&Labels!C102 -> Total | B55: =SUM(B45,B48:B50,B54) -> $1,000,001 | C55: =SUM(C45,C48:C50,C54) -> $1,000,000 | D55: =SUM(D45,D48:D50,D54) -> $1,000,000 | E55: ="" -> 
A57: =Labels!B60 -> Payout %
A58: =" "&Labels!B103 -> Conv Note
A59: =" "&Labels!B104 -> Series B | B59: =B43/B55 -> 0.00% | C59: =C43/C55 -> 0.00% | D59: =D43/D55 -> 0.00% | E59: ="" -> 
A60: =" "&Labels!B105 -> Series A | B60: =B44/B55 -> 0.00% | C60: =C44/C55 -> 0.00% | D60: =D44/D55 -> 0.00% | E60: ="" -> 
A61: =" "&Labels!C103 -> Subtotal | B61: =B45/B55 -> 0.00% | C61: =C45/C55 -> 0.00% | D61: =D45/D55 -> 0.00% | E61: ="" -> 
A62: =" "&Labels!B106 -> Preferred
A63: =" "&Labels!B107 -> Series A | B63: =B47/B55 -> 0.00% | C63: =C47/C55 -> 0.00% | D63: =D47/D55 -> 0.00% | E63: ="" -> 
A64: =" "&Labels!C106 -> Subtotal | B64: =B48/B55 -> 0.00% | C64: =C48/C55 -> 0.00% | D64: =D48/D55 -> 0.00% | E64: ="" -> 
A65: =" "&Labels!B108 -> Common | B65: =B49/B55 -> 100.00% | C65: =C49/C55 -> 100.00% | D65: =D49/D55 -> 100.00% | E65: ="" -> 
A66: =" "&Labels!B109 -> Warrant | B66: =B50/B55 -> 0.00% | C66: =C50/C55 -> 0.00% | D66: =D50/D55 -> 0.00% | E66: ="" -> 
A67: =" "&Labels!B110 -> Option
A68: =" "&Labels!B111 -> Series B | B68: =B52/B55 -> 0.00% | C68: =C52/C55 -> 0.00% | D68: =D52/D55 -> 0.00% | E68: ="" -> 
A69: =" "&Labels!B112 -> Series A | B69: =B53/B55 -> 0.00% | C69: =C53/C55 -> 0.00% | D69: =D53/D55 -> 0.00% | E69: ="" -> 
A70: =" "&Labels!C110 -> Subtotal | B70: =B54/B55 -> 0.00% | C70: =C54/C55 -> 0.00% | D70: =D54/D55 -> 0.00% | E70: ="" -> 
A71: =" "&Labels!C102 -> Total | B71: =B55/B55 -> 100.00% | C71: =C55/C55 -> 100.00% | D71: =D55/D55 -> 100.00% | E71: ="" -> 
A73: ="Liquidation Preference - Notes" -> Liquidation Preference - Notes
A74: =Labels!B48 -> Liquidation Preference
A75: =" "&Labels!B104 -> Series B | B75: =MAX(0,0+(Investment!B290+Investment!B229-Investment!B259)*Inputs!C23) -> $0 | C75: =MAX(0,B75+(Investment!C290+Investment!C229-Investment!C259)*Inputs!C23) -> $0 | D75: =MAX(0,C75+(Investment!D290+Investment!D229-Investment!D259)*Inputs!C23) -> $0 | E75: =SUM(B75:D75) -> $0
A76: =" "&Labels!B105 -> Series A | B76: =MAX(0,0+(Investment!B291+Investment!B230-Investment!B260)*Inputs!C24) -> $0 | C76: =MAX(0,B76+(Investment!C291+Investment!C230-Investment!C260)*Inputs!C24) -> $0 | D76: =MAX(0,C76+(Investment!D291+Investment!D230-Investment!D260)*Inputs!C24) -> $0 | E76: =SUM(B76:D76) -> $0
A77: =" "&Labels!C103 -> Subtotal | B77: =SUM(B75:B76) -> $0 | C77: =SUM(C75:C76) -> $0 | D77: =SUM(D75:D76) -> $0 | E77: =SUM(E75:E76) -> $0
A79: ="Liquuidation Preference - Preferred" -> Liquuidation Preference - Preferred
A80: =Labels!B48 -> Liquidation Preference
A81: =" "&Labels!B107 -> Series A | B81: =MAX(0,0+(Investment!B294+Investment!B233-Investment!B263)*Inputs!B53) -> $0 | C81: =MAX(0,B81+(Investment!C294+Investment!C233-Investment!C263)*Inputs!B53) -> $0 | D81: =MAX(0,C81+(Investment!D294+Investment!D233-Investment!D263)*Inputs!B53) -> $0 | E81: =SUM(B81:D81) -> $0
A82: =" "&Labels!C106 -> Subtotal | B82: =B81 -> $0 | C82: =C81 -> $0 | D82: =D81 -> $0 | E82: =E81 -> $0

Sheet Formulas
A1: ="Capitalization Table" -> Capitalization Table
A2: =Inputs!B8 -> ABC Corp.
A3: =IF("Formulas"="(Default Input)","Ignore this sheet in normal use.","Investment Scenario "&1&", Valuation Scenario "&1) -> Investment Scenario 1, Valuation Scenario 1
A4: =" " -> 
A5: Variable | B5: Display As | C5: Dimension Index | E5: Formula / Data
A6: Company_Name | B6: =Labels!B5 -> Company Name
A8: Conversion_Decisions_Default | B8: =Labels!B6 -> Default Conversion Decisions | C8: Rounds, Securities | D8: Data: | E8: abs(product(ranged("Convert_Conditions", Conversion_Decisions_Detail)))
A10: Conversion_Decisions_Detail | B10: =Labels!B7 -> Conversion Decisions Detail | C10: Rounds, Securities.Warrant, Convert_Conditions.Trigger_Price | D10: Data: | E10: if(OptionWar_Exercise_Price<Price_Unit_Conv["Securities.Common"], 1, 0)
C11: Rounds, Securities.Conv_Note, Convert_Conditions.Liquidation | D11: Data: | E11: if((prevde(0, "Rounds", Investment_Net["Phases.End"])+Dividend+Investment_New)/(1-ConvNote_Discount_pct)>(1+Convert_Liq_Premium_pct)*(prevde(0, "Rounds", Liq_Preference_End)+Investment_New*Liq_Multiple), 1, 0)
C12: Rounds, Securities.Preferred, Convert_Conditions.Liquidation | D12: Data: | E12: if((prevde(0, "Rounds", Investment_Net["Phases.End"])+Dividend+Investment_New)/(1+Price_Premium_pct)>(1+Convert_Liq_Premium_pct)*prevde(0, "Rounds", Liq_Preference_End)+Investment_New*Liq_Multiple, 1, 0)
C13: Rounds, Securities.Preferred, Convert_Conditions.Trigger_Value_pct | D13: Data: | E13: if(Convert_Trigger_Value_pct*Firm_Value["Phases.Post_Sales"]>Investment_by_Origin["Securities.Conv_Note", "Phases.Post_Sales"], 1, 0)
C14: Rounds, Securities.Option, Convert_Conditions.Trigger_Price | D14: Data: | E14: if(OptionWar_Exercise_Price<Price_Unit_Conv["Securities.Common"], 1, 0)
C15: Rounds, Securities.Conv_Note, Convert_Conditions.Trigger_Value_pct | D15: Data: | E15: if(Convert_Trigger_Value_pct*Firm_Value["Phases.Post_Sales"]>Investment_by_Origin["Securities.Conv_Note", "Phases.Post_Sales"], 1, 0)
C16: Rounds, Securities, Convert_Conditions.Trigger_Invest | D16: Data: | E16: if(Investment_by_Origin["Securities.Common", "Phases.Post_Sales"]+Investment_by_Origin["Securities.Preferred", "Phases.Post_Sales"]+Investment_by_Origin["Securities.Conv_Note", "Phases.Post_Sales"]>=var(Convert_Trigger_Invest_Amt), 1, 0)
C17: Rounds, Securities, Convert_Conditions.Trigger_Date | D17: Data: | E17: var(if(Event_Date>=Convert_Trigger_Date, 1, 0))
C18: Rounds, Securities.Common, Convert_Conditions | D18: Roll-up: | E18: 0
C19: Rounds, Securities, Convert_Conditions | D19: Roll-up: | E19: ifm(and(isleafd("Securities"), isleafd("Rounds")), abs(product(ranged("Convert_Conditions"))), " ")
A21: Convert_Liq_Premium_pct | B21: =Labels!B8 -> Liq Premium %
A23: Convert_Trigger_Date | B23: =Labels!B9 -> Trigger Date
A25: Convert_Trigger_Invest_Amt | B25: =Labels!B10 -> Trigger Invest
A27: Convert_Trigger_Value_pct | B27: =Labels!B11 -> Trigger Value %
A29: Converting_pct | B29: =Labels!B12 -> % Converting | C29: Rounds, Securities | D29: Data: | E29: Conversion_Decisions_Default
A31: ConvNote_Discount_pct | B31: =Labels!B13 -> Conv Discount %
A33: Discount_Rate_Yr | B33: =Labels!B14 -> Discount Rate (Yr) | C33: Securities | D33: Roll-up: | E33: " "
A35: Dividend | B35: =Labels!B15 -> Dividend | C35: Rounds, Securities.Common | D35: Data: | E35: Dividend_Common
C36: Rounds, Securities | D36: Data: | E36: Dividend_pct_Yr*prevde(0, "Rounds", Lastd("Phases", Investment_Net))*var(datediff(Event_Date, prevde(firstd("Rounds", Event_Date), "Rounds", Event_Date)))/365
A38: Dividend_by_Origin | B38: =Labels!B16 -> Dividend by Origin | C38: Rounds, Securities.Common | D38: Data: | E38: Dividend_Common*prevde(0, "Rounds", Shares_Common_by_Origin/Lastd("Phases", Units_Net["Securities.Common"]))
C39: Rounds, Securities | D39: Data: | E39: Dividend_pct_Yr*prevde(0, "Rounds", Lastd("Phases", Investment_Net))*var(Event_Date-prevde(firstd("Rounds", Event_Date), "Rounds", Event_Date))/365+Dividend_Common*prevde(0, "Rounds", Shares_Common_by_Origin/Lastd("Phases", Units_Net["Securities.Common"]))
A41: Dividend_by_Origin_Last | B41: =Labels!B17 -> Dividend by Origin | C41: Securities | D41: Data: | E41: lastd("Rounds", Dividend_by_Origin)
A43: Dividend_Common | B43: =Labels!B18 -> Dividend Common
A45: Dividend_pct_Yr | B45: =Labels!B19 -> Dividend % (Yr)
A47: Event_Date | B47: =Labels!B20 -> Event Date | C47: Rounds | D47: Data: | E47: Event_Date_Sc0
A49: Event_Date_Sc0 | B49: =Labels!B21 -> Event Date | C49: Rounds | D49: Data: | E49: date(2010, 11*dimitemnum("Rounds")-3, 1)
A51: Firm_Value | B51: =Labels!B22 -> Firm Value | C51: Rounds, Phases.Post_Sales | D51: Data: | E51: Firstd("Phases", Firm_Value)+Firm_Value["Phases.New_Sales"]
C52: Rounds, Phases.Convert | D52: Data: | E52: OptionWar_Exercise_Amt["Phases.Convert"]
C53: Rounds, Phases.End | D53: Data: | E53: Firm_Value["Phases.Post_Sales"]+Firm_Value["Phases.Convert"]
C54: Rounds, Phases.Start | D54: Data: | E54: Firm_Value_Start
C55: Rounds, Phases.New_Sales | D55: Data: | E55: Investment_Net
A57: Firm_Value_End | B57: =Labels!B23 -> Firm Value | C57: Rounds | D57: Data: | E57: Firm_Value["Phases.End"]
A59: Firm_Value_Start | B59: =Labels!B24 -> Firm Value Start | C59: Rounds | D59: Data: | E59: Firm_Value_Start_Sc0
A61: Firm_Value_Start_Sc0 | B61: =Labels!B25 -> Firm Value | C61: Rounds | D61: Data: | E61: 1000000
A63: Invest_by_Origin_Common_plt | B63: =Labels!B26 -> Invest by Origin Common | C63: Rounds | D63: Data: | E63: Investment_by_Origin["Securities.Common", "Phases.End"]
A65: Invest_by_Origin_Conv_plt | B65: =Labels!B27 -> Invest by Origin Conv Notes | C65: Rounds | D65: Data: | E65: Investment_by_Origin["Securities.Conv_Note", "Phases.End"]
A67: Invest_by_Origin_exDiv | B67: =Labels!B28 -> Invest by Origin ex-Dividend | C67: Rounds, Phases.Convert, Securities | D67: Data: | E67: Investment_by_Origin
C68: Rounds, Phases.Post_Sales, Securities | D68: Data: | E68: Firstd("Phases", Invest_by_Origin_exDiv)+Invest_by_Origin_exDiv["Phases.New_Sales"]
C69: Rounds, Phases.New_Sales, Securities | D69: Data: | E69: Investment_by_Origin
C70: Rounds, Phases.Start, Securities | D70: Data: | E70: prevde(0, "Rounds", Lastd("Phases", Invest_by_Origin_exDiv))
C71: Rounds, Phases.End, Securities | D71: Data: | E71: Invest_by_Origin_exDiv["Phases.Post_Sales"]+Invest_by_Origin_exDiv["Phases.Convert"]
A73: Invest_by_Origin_exDiv_LastRnd | B73: =Labels!B29 -> Invest by Origin ex-Div | C73: Phases, Securities | D73: Data: | E73: Lastd("Rounds", Invest_by_Origin_exDiv)
A75: Invest_by_Origin_Opt_plt | B75: =Labels!B30 -> Invest by Origin Options | C75: Rounds | D75: Data: | E75: Investment_by_Origin["Securities.Option", "Phases.End"]
A77: Invest_by_Origin_Preferred_plt | B77: =Labels!B31 -> Invest by Origin Preferred | C77: Rounds | D77: Data: | E77: Investment_by_Origin["Securities.Preferred", "Phases.End"]
A79: Invest_by_Origin_War_plt | B79: =Labels!B32 -> Invest by Origin Warrants | C79: Rounds | D79: Data: | E79: Investment_by_Origin["Securities.Warrant", "Phases.End"]
A81: Invest_End_Common_plt | B81: =Labels!B33 -> Invest End of Round Common | C81: Rounds | D81: Data: | E81: Investment_Net["Securities.Common", "Phases.End"]
A83: Invest_End_Conv_plt | B83: =Labels!B34 -> Invest End Round Notes | C83: Rounds | D83: Data: | E83: Investment_Net["Securities.Conv_Note", "Phases.End"]
A85: Invest_End_Opt_plt | B85: =Labels!B35 -> Invest End Round Options | C85: Rounds | D85: Data: | E85: Investment_Net["Securities.Option", "Phases.End"]
A87: Invest_End_Preferred_plt | B87: =Labels!B36 -> Invest End Round Preferred | C87: Rounds | D87: Data: | E87: Investment_Net["Securities.Preferred", "Phases.End"]
A89: Invest_End_War_plt | B89: =Labels!B37 -> Invest End Round Warrants | C89: Rounds | D89: Data: | E89: Investment_Net["Securities.Warrant", "Phases.End"]
A91: Investment_by_Origin | B91: =Labels!B38 -> Investment by Origin | C91: Rounds, Phases.Convert, Securities.Warrant | D91: Data: | E91: OptionWar_Exercise_Amt["Phases.Convert"]
C92: Rounds, Phases.Convert, Securities.Option | D92: Data: | E92: OptionWar_Exercise_Amt["Phases.Convert"]
C93: Rounds, Phases.New_Sales, Securities | D93: Data: | E93: Investment_Net
C94: Rounds, Phases.End, Securities | D94: Data: | E94: Investment_by_Origin["Phases.Post_Sales"]+Investment_by_Origin["Phases.Convert"]
C95: Rounds, Phases.Post_Sales, Securities | D95: Data: | E95: Firstd("Phases", Investment_by_Origin)+Investment_by_Origin["Phases.New_Sales"]
C96: Rounds, Phases.Start, Securities | D96: Data: | E96: prevde(0, "Rounds", Lastd("Phases", Investment_by_Origin))+Dividend
A98: Investment_Net | B98: =Labels!B39 -> Net Investment | C98: Rounds, Phases.End, Securities.Common | D98: Data: | E98: Investment_Net["Phases.Post_Sales"]+Investment_Net["Securities", "Phases.Convert"]+OptionWar_Exercise_Amt["Securities", "Phases.Convert"]
C99: Rounds, Phases.New_Sales, Securities.Warrant | D99: Data: | E99: Units_Net["Phases.New_Sales"]*Price_Unit_New
C100: Rounds, Phases.New_Sales, Securities.Option | D100: Data: | E100: Units_Net["Phases.New_Sales"]*Price_Unit_New
C101: Rounds, Phases.Start, Securities | D101: Data: | E101: prevde(0, "Rounds", Lastd("Phases", Investment_Net))+Dividend
C102: Rounds, Phases.End, Securities | D102: Data: | E102: Investment_Net["Phases.Post_Sales"]-Investment_Net["Phases.Convert"]
C103: Rounds, Phases.Post_Sales, Securities | D103: Data: | E103: Firstd("Phases", Investment_Net)+Investment_Net["Phases.New_Sales"]
C104: Rounds, Phases.New_Sales, Securities | D104: Data: | E104: Investment_New
C105: Rounds, Phases.Convert, Securities | D105: Data: | E105: Converting_pct*Investment_Net["Phases.Post_Sales"]
A107: Investment_Net_End_plt | B107: =Labels!B40 -> Net Investment | C107: Rounds | D107: Data: | E107: Investment_Net["Phases.End"]
A109: Investment_Net_New_plt | B109: =Labels!B41 -> Net New Invest | C109: Rounds | D109: Data: | E109: Investment_Net["Phases.New_Sales"]
A111: Investment_New | B111: =Labels!B42 -> New Investment | C111: Rounds, Securities | D111: Data: | E111: Investment_New_Sc0
A113: Investment_New_Sc0 | B113: =Labels!B43 -> New Investment | C113: Rounds, Securities | D113: Data: | E113: var(ifm(and(dimitemnum("Rounds")=1, diminfo("Securities", 0)="Common"), 1, 0))
A115: IRR_Cash_Flow | B115: =Labels!B44 -> Cash Flow | C115: Securities, Rounds | D115: Data: | E115: Investment_by_Origin["Phases.New_Sales"]+Investment_by_Origin["Phases.Convert"]+var(ifm(dimitemnum("Rounds", 0)=1, 0*0, 0))-if(iserror(nextd("Rounds", Payout_by_Origin)), lastd("Phases", Payout_by_Origin), 0)
D116: Roll-up: | E116: ifm(isleafd("Rounds"), sum(rangedru("Securities", IRR_Cash_Flow)), "")
A118: IRR_Initial_Guess_Yr | B118: =Labels!B45 -> IRR Initial Guess (Yr)
A120: IRR_XIRR_Yr | B120: =Labels!B46 -> IRR (Yr) | C120: Securities | D120: Roll-up: | E120: XIRR(ranged("Rounds", IRR_Cash_Flow), ranged("Rounds", Event_Date), IRR_Initial_Guess_Yr)
A122: Liq_Multiple | B122: =Labels!B47 -> Liq Multiple
A124: Liq_Preference_End | B124: =Labels!B48 -> Liquidation Preference | C124: Rounds, Securities | D124: Data: | E124: max(0, prevde(0, "Rounds", Liq_Preference_End)+(Dividend+Investment_Net["Phases.New_Sales"]-Investment_Net["Phases.Convert"])*Liq_Multiple)
A126: Liq_Preference_EndLast | B126: =Labels!B49 -> Liq Preference | C126: Securities | D126: Data: | E126: lastd("Rounds", Liq_Preference_End)
A128: Liq_Preference_New | B128: =Labels!B50 -> Liq Preference New | C128: Rounds, Securities | D128: Data: | E128: max(0, (Dividend+Investment_Net["Phases.New_Sales"])*Liq_Multiple)
A130: Net_Present_Value_XNPV | B130: =Labels!B51 -> Net Present Value | C130: Securities | D130: Data: | E130: -xnpv(Discount_Rate_Yr, ranged("Rounds", IRR_Cash_Flow), ranged("Rounds", Event_Date))
A132: OptionWar_Exercise_Amt | B132: =Labels!B52 -> Exercise Amt | C132: Rounds, Phases.End, Securities | D132: Data: | E132: OptionWar_Exercise_Amt["Phases.Post_Sales"]-OptionWar_Exercise_Amt["Phases.Convert"]
C133: Rounds, Phases.Start, Securities | D133: Data: | E133: prevde(0, "Rounds", Lastd("Phases", OptionWar_Exercise_Amt))
C134: Rounds, Phases.New_Sales, Securities | D134: Data: | E134: Units_New*OptionWar_Exercise_Price
C135: Rounds, Phases.Post_Sales, Securities | D135: Data: | E135: Firstd("Phases", OptionWar_Exercise_Amt)+OptionWar_Exercise_Amt["Phases.New_Sales"]
C136: Rounds, Phases.Convert, Securities | D136: Data: | E136: Converting_pct*OptionWar_Exercise_Amt["Phases.Post_Sales"]
A138: OptionWar_Exercise_Price | B138: =Labels!B53 -> Exercise Price
A140: OptionWar_in_Money | B140: =Labels!B54 -> Units 'in the Money' | C140: Rounds, Securities.Warrant | D140: Data: | E140: if(Price_Unit_Conv["Securities.Common"]<=OptionWar_Exercise_Price, 0, Lastd("Phases", Units_Net))
C141: Rounds, Securities.Option | D141: Data: | E141: if(Price_Unit_Conv["Securities.Common"]<=OptionWar_Exercise_Price, 0, Lastd("Phases", Units_Net))
A143: Payout_by_Origin | B143: =Labels!B55 -> Payout by Origin | C143: Rounds, Securities.Common | D143: Data: | E143: if(Lastd("Phases", Units_Net["Securities.Common"])=0, 0, Shares_Common_by_Origin/Lastd("Phases", Units_Net["Securities.Common"])*Payout_End["Securities.Common"])
C144: Rounds, Securities | D144: Data: | E144: Payout_End+if(Lastd("Phases", Units_Net["Securities.Common"])=0, 0, Shares_Common_by_Origin/Lastd("Phases", Units_Net["Securities.Common"])*Payout_End["Securities.Common"])
D145: Roll-up: | E145: ifm(isleafd("rounds"), sum(rangedru("Securities", Payout_by_Origin)), "")
A147: Payout_by_Origin_Last | B147: =Labels!B56 -> Payout by Origin | C147: Securities | D147: Roll-up: | E147: Lastd("Rounds", Payout_by_Origin)
A149: Payout_by_Origin_pct | B149: =Labels!B57 -> Payout by Origin % | C149: Securities, Rounds | D149: Roll-up: | E149: ifm(isleafd("Rounds"), Payout_by_Origin/Payout_by_Origin["Securities"], " ")
A151: Payout_by_Origin_pct_LastRnd | B151: =Labels!B58 -> Payout by Origin % | C151: Securities | D151: Roll-up: | E151: Lastd("Rounds", Payout_by_Origin_pct)
A153: Payout_End | B153: =Labels!B59 -> Payout | C153: Rounds, Securities.Common | D153: Data: | E153: Lastd("Phases", Units_Net)/(Lastd("Phases", Units_Net)+OptionWar_in_Money["Securities"])*Payout_Pool_End
C154: Rounds, Securities.Warrant | D154: Data: | E154: OptionWar_in_Money/(Lastd("Phases", Units_Net["Securities.Common"])+OptionWar_in_Money["Securities"])*Payout_Pool_End["Securities.Common"]
C155: Rounds, Securities.Preferred | D155: Data: | E155: min(Payout_Pool_End, max(Liq_Preference_End, Lastd("Phases", Units_Net)*Price_Unit_Conv["Securities.Common"]))
C156: Rounds, Securities.Conv_Note | D156: Data: | E156: min(Payout_Pool_End, max(Liq_Preference_End, Lastd("Phases", Investment_Net)/Price_Unit_Conv*Price_Unit_Conv["Securities.Common"]))
C157: Rounds, Securities.Option | D157: Data: | E157: OptionWar_in_Money/(Lastd("Phases", Units_Net["Securities.Common"])+OptionWar_in_Money["Securities"])*Payout_Pool_End["Securities.Common"]
C158: Rounds, Securities | D158: Roll-up: | E158: ifm(isleafd("Rounds"), sum(rangedru("Securities", Payout_End)), "")
A160: Payout_End_pct | B160: =Labels!B60 -> Payout % | C160: Securities, Rounds | D160: Roll-up: | E160: ifm(isleafd("Rounds"), Payout_End/Payout_End["Securities"], "")
A162: Payout_EndLast | B162: =Labels!B61 -> Payout | C162: Securities | D162: Roll-up: | E162: lastd("Rounds", Payout_End)
A164: Payout_EndLast_pct | B164: =Labels!B62 -> Payout % | C164: Securities | D164: Roll-up: | E164: lastd("Rounds", Payout_End_pct)
A166: Payout_Pool_End | B166: =Labels!B63 -> Payout Pool | C166: Rounds, Securities | D166: Data: | E166: prevde(var(Firm_Value_Start)+Investment_Net["Securities", "Phases.New_Sales"]+OptionWar_Exercise_Amt["Securities", "Phases.Convert"], "Securities", Payout_Pool_End-Payout_End, 1, 0)
D167: Roll-up: | E167: ""
A169: Payout_Pool_EndLast | B169: =Labels!B64 -> Payout Pool | C169: Securities | D169: Data: | E169: lastd("Rounds", Payout_Pool_End)
D170: Roll-up: | E170: ""
A172: Price_Common_Init | B172: =Labels!B65 -> Initial Common Price
A174: Price_Premium_pct | B174: =Labels!B66 -> Price Premium % | C174: Rounds, Securities.Preferred | D174: Data: | E174: prevde(0.10, "Rounds")
C175: Rounds, Securities | D175: Data: | E175: prevde(0, "Rounds")
A177: Price_Unit_Conv | B177: =Labels!B67 -> Conversion Price | C177: Rounds, Securities.Common | D177: Data: | E177: max(0, if(Units_Net["Phases.Post_Sales"]=0, 0, (Firm_Value["Phases.Post_Sales"]-Liq_Preference_End["Securities.Conv_Note"]-Liq_Preference_End["Securities.Preferred"]-sum(ranged("Securities.Conv_Note", Liq_Preference_New))-sum(ranged("Securities.Preferred", Liq_Preference_New)))/Units_Net["Phases.Post_Sales"]))
C178: Rounds, Securities.Warrant | D178: Data: | E178: max(0, Price_Unit_Conv["Securities.Common"]-OptionWar_Exercise_Price)
C179: Rounds, Securities.Preferred | D179: Data: | E179: max(0, Price_Unit_Conv["Securities.Common"])
C180: Rounds, Securities.Option | D180: Data: | E180: max(0, Price_Unit_Conv["Securities.Common"]-OptionWar_Exercise_Price)
C181: Rounds, Securities.Conv_Note | D181: Data: | E181: max(0, Price_Unit_Conv["Securities.Common"]*(1-ConvNote_Discount_pct))
A183: Price_Unit_New | B183: =Labels!B68 -> Price New Unit | C183: Rounds, Securities.Warrant | D183: Data: | E183: max(0, Price_Unit_New_pct*(var(Price_Unit_New["Securities.Common"])-OptionWar_Exercise_Price))
C184: Rounds, Securities.Option | D184: Data: | E184: max(0, Price_Unit_New_pct*(var(Price_Unit_New["Securities.Common"])-OptionWar_Exercise_Price))
C185: Rounds, Securities | D185: Data: | E185: Price_Unit_Start
A187: Price_Unit_New_pct | B187: =Labels!B69 -> New Unit Price %
A189: Price_Unit_Start | B189: =Labels!B70 -> Share Price | C189: Rounds, Securities.Common | D189: Data: | E189: if(dimitemnum("Rounds")=1, Price_Common_Init, (Firstd("Phases", Firm_Value)-Firstd("Phases", Investment_by_Origin["Securities.Conv_Note"])-Firstd("Phases", Investment_by_Origin["Securities.Preferred"]))/(Firstd("Phases", Units_Net["Securities.Preferred"])+Firstd("Phases", Units_Net["Securities.Warrant"])+Firstd("Phases", Units_Net["Securities.Option"])+Firstd("Phases", Units_Net["Securities.Common"])))
C190: Rounds, Securities.Warrant | D190: Data: | E190: max(0, var(Price_Unit_Start["Securities.Common"])-OptionWar_Exercise_Price)
C191: Rounds, Securities.Option | D191: Data: | E191: max(0, var(Price_Unit_Start["Securities.Common"])-OptionWar_Exercise_Price)
C192: Rounds, Securities.Preferred | D192: Data: | E192: Price_Unit_Start["Securities.Common"]*(1+Price_Premium_pct)
C193: Rounds, Securities | D193: Roll-up: | E193: ifm(isleafd("Rounds"), if(sum(rangedru("Securities", Units_New))=0, 0, sumproduct(rangedru("Securities", Price_Unit_Start), rangedru("Securities", Units_New))/sum(rangedru("Securities", Units_New))), "")
A195: Return_Multiple | B195: =Labels!B71 -> Return Multiple | C195: Securities | D195: Roll-up: | E195: If(Lastd("Rounds", Lastd("Phases", Invest_by_Origin_exDiv))+0*0=0, 0, (Lastd("Rounds", Payout_by_Origin)+sum(ranged("Rounds", Dividend)))/(Lastd("Rounds", Lastd("Phases", Invest_by_Origin_exDiv))+0*0))
A197: Rounds_plt | B197: =Labels!B72 -> Rounds | C197: Rounds | D197: Data: | E197: diminfo("Rounds", 7, ", ")
A199: Scenarios_Invest_Dim | B199: =Labels!B73 -> Investment Scenarios | C199: Scenarios_Invest | D199: Data: | E199: dimitemnum("Scenarios_Invest")
A201: Scenarios_Value_Dim | B201: =Labels!B74 -> Scenarios_Value_Dim | C201: Scenarios_Value | D201: Data: | E201: dimitemnum("Scenarios_Value")
A203: Securities_plt | B203: =Labels!B75 -> Securities | C203: Securities | D203: Data: | E203: diminfo("Securities", 7, ", ")
A205: Shares_Common_by_Origin | B205: =Labels!B76 -> Common Shares by Origin | C205: Rounds, Securities.Common | D205: Data: | E205: prevde(0, "Rounds", Shares_Common_by_Origin)*Split_Factor_Start+Units_Net["Phases.New_Sales"]
C206: Rounds, Securities | D206: Data: | E206: prevde(0, "Rounds", Shares_Common_by_Origin)*Split_Factor_Start+Units_Net["Phases.Convert"]
D207: Roll-up: | E207: ifm(isleafd("Rounds"), sum(rangedru("Securities", Shares_Common_by_Origin)), lastd("Rounds", Shares_Common_by_Origin))
A209: Split_Factor_Start | B209: =Labels!B77 -> Split Factor
A211: Units_Net | B211: =Labels!B78 -> Net Units | C211: Rounds, Phases.End, Securities.Common | D211: Data: | E211: Units_Net["Phases.Post_Sales"]+Units_Net["Phases.Convert", "Securities"]
C212: Rounds, Phases.New_Sales, Securities.Common | D212: Data: | E212: if(Price_Unit_Start["Securities.Common"]=0, 0, Investment_Net/Price_Unit_Start["Securities.Common"])
C213: Rounds, Phases.Convert, Securities.Conv_Note | D213: Data: | E213: Converting_pct*Investment_Net["Phases.Post_Sales"]/var(Price_Unit_Conv["Securities.Common"])/(1-ConvNote_Discount_pct)
C214: Rounds, Phases.New_Sales, Securities.Preferred | D214: Data: | E214: Investment_Net/Price_Unit_Start/(1-Price_Premium_pct)
C215: Rounds, Phases.New_Sales, Securities | D215: Data: | E215: Units_New
C216: Rounds, Phases.Start, Securities | D216: Data: | E216: prevde(0, "Rounds", Lastd("Phases", Units_Net))*Split_Factor_Start
C217: Rounds, Phases.Convert, Securities | D217: Data: | E217: Converting_pct*Units_Net["Phases.Post_Sales"]
C218: Rounds, Phases.End, Securities | D218: Data: | E218: Units_Net["Phases.Post_Sales"]-Units_Net["Phases.Convert"]
C219: Rounds, Phases.Post_Sales, Securities | D219: Data: | E219: Firstd("Phases", Units_Net)+Units_Net["Phases.New_Sales"]
A221: Units_New | B221: =Labels!B79 -> New Units Sold | C221: Securities, Rounds | D221: Data: | E221: Units_New_Sc0
A223: Units_New_Sc0 | B223: =Labels!B80 -> New Units

Sheet Boneyard (hidden)
A1: ="Capitalization Table" -> Capitalization Table
A2: =Inputs!B8 -> ABC Corp.
A3: =IF("Boneyard"="(Default Input)","Ignore this sheet in normal use.","Investment Scenario "&1&", Valuation Scenario "&1) -> Investment Scenario 1, Valuation Scenario 1
A4: =" " -> 
A5: ="Ignore this sheet. It should be hidden." -> Ignore this sheet. It should be hidden.
A6: =" " -> 
A7: =Labels!B13 -> Conv Discount % | C7: =Labels!B9 -> Trigger Date | E7: =Labels!B10 -> Trigger Invest | G7: =Labels!B11 -> Trigger Value %
A8: =" "&Labels!B103 -> Conv Note | C8: =" "&Labels!B103 -> Conv Note | E8: =" "&Labels!B103 -> Conv Note | G8: =" "&Labels!B103 -> Conv Note
A9: =" "&Labels!B104 -> Series B | B9: =Inputs!B23 -> 30% | C9: =" "&Labels!B104 -> Series B | D9: =Inputs!B28 -> 2011-04-01 | E9: =" "&Labels!B104 -> Series B | F9: =Inputs!C28 -> $1,000,000 | G9: =" "&Labels!B104 -> Series B | H9: =Inputs!D28 -> 50%
A10: =" "&Labels!B105 -> Series A | B10: =Inputs!B24 -> 30% | C10: =" "&Labels!B105 -> Series A | D10: =Inputs!B29 -> 2011-04-01 | E10: =" "&Labels!B105 -> Series A | F10: =Inputs!C29 -> $1,000,000 | G10: =" "&Labels!B105 -> Series A | H10: =Inputs!D29 -> 50%
A11: =" "&Labels!B106 -> Preferred | C11: =" "&Labels!B106 -> Preferred | E11: =" "&Labels!B106 -> Preferred | G11: =" "&Labels!B106 -> Preferred
A12: =" "&Labels!B107 -> Series A | B12: =0 -> 0% | C12: =" "&Labels!B107 -> Series A | D12: =Inputs!B57 -> 2011-04-01 | E12: =" "&Labels!B107 -> Series A | F12: =Inputs!C57 -> $1,500,000 | G12: =" "&Labels!B107 -> Series A | H12: =Inputs!D57 -> 50%
A13: =" "&Labels!B108 -> Common | B13: =0 -> 0% | C13: =" "&Labels!B108 -> Common | D13: =DATE(2011,4,1) -> 2011-04-01 | E13: =" "&Labels!B108 -> Common | F13: =1500000 -> $1,500,000 | G13: =" "&Labels!B108 -> Common | H13: =0.5 -> 50%
A14: =" "&Labels!B109 -> Warrant | B14: =0 -> 0% | C14: =" "&Labels!B109 -> Warrant | D14: =DATE(2011,4,1) -> 2011-04-01 | E14: =" "&Labels!B109 -> Warrant | F14: =1500000 -> $1,500,000 | G14: =" "&Labels!B109 -> Warrant | H14: =0.5 -> 50%
A15: =" "&Labels!B110 -> Option | C15: =" "&Labels!B110 -> Option | E15: =" "&Labels!B110 -> Option | G15: =" "&Labels!B110 -> Option
A16: =" "&Labels!B111 -> Series B | B16: =0 -> 0% | C16: =" "&Labels!B111 -> Series B | D16: =Inputs!C101 -> 2011-04-01 | E16: =" "&Labels!B111 -> Series B | F16: =Inputs!D101 -> $1,500,000 | G16: =" "&Labels!B111 -> Series B | H16: =Inputs!E101 -> 50%
A17: =" "&Labels!B112 -> Series A | B17: =0 -> 0% | C17: =" "&Labels!B112 -> Series A | D17: =Inputs!C102 -> 2011-04-01 | E17: =" "&Labels!B112 -> Series A | F17: =Inputs!D102 -> $1,500,000 | G17: =" "&Labels!B112 -> Series A | H17: =Inputs!E102 -> 50%
A19: =Labels!B19 -> Dividend % (Yr) | C19: =Labels!B69 -> New Unit Price % | E19: =Labels!B47 -> Liq Multiple | G19: =Labels!B8 -> Liq Premium %
A20: =" "&Labels!B103 -> Conv Note | C20: =" "&Labels!B103 -> Conv Note | E20: =" "&Labels!B103 -> Conv Note | G20: =" "&Labels!B103 -> Conv Note
A21: =" "&Labels!B104 -> Series B | B21: =Inputs!D23 -> 4.0% | C21: =" "&Labels!B104 -> Series B | D21: =1 -> 100% | E21: =" "&Labels!B104 -> Series B | F21: =Inputs!C23 -> 1.000 | G21: =" "&Labels!B104 -> Series B | H21: =Inputs!E28 -> 0.20
A22: =" "&Labels!B105 -> Series A | B22: =Inputs!D24 -> 4.0% | C22: =" "&Labels!B105 -> Series A | D22: =1 -> 100% | E22: =" "&Labels!B105 -> Series A | F22: =Inputs!C24 -> 1.000 | G22: =" "&Labels!B105 -> Series A | H22: =Inputs!E29 -> 0.20
A23: =" "&Labels!B106 -> Preferred | C23: =" "&Labels!B106 -> Preferred | E23: =" "&Labels!B106 -> Preferred | G23: =" "&Labels!B106 -> Preferred
A24: =" "&Labels!B107 -> Series A | B24: =Inputs!C53 -> 6.0% | C24: =" "&Labels!B107 -> Series A | D24: =1 -> 100% | E24: =" "&Labels!B107 -> Series A | F24: =Inputs!B53 -> 1.000 | G24: =" "&Labels!B107 -> Series A | H24: =Inputs!E57 -> -0.20
A25: =" "&Labels!B108 -> Common | B25: =0 -> 0.0% | C25: =" "&Labels!B108 -> Common | D25: =1 -> 100% | E25: =" "&Labels!B108 -> Common | F25: =0 -> 0.000 | G25: =" "&Labels!B108 -> Common | H25: =0 -> 0.00
A26: =" "&Labels!B109 -> Warrant | B26: =0 -> 0.0% | C26: =" "&Labels!B109 -> Warrant | D26: =1 -> 100% | E26: =" "&Labels!B109 -> Warrant | F26: =0 -> 0.000 | G26: =" "&Labels!B109 -> Warrant | H26: =0 -> 0.00
A27: =" "&Labels!B110 -> Option | C27: =" "&Labels!B110 -> Option | E27: =" "&Labels!B110 -> Option | G27: =" "&Labels!B110 -> Option
A28: =" "&Labels!B111 -> Series B | B28: =0 -> 0.0% | C28: =" "&Labels!B111 -> Series B | D28: =Inputs!B91 -> 100% | E28: =" "&Labels!B111 -> Series B | F28: =0 -> 0.000 | G28: =" "&Labels!B111 -> Series B | H28: =0 -> 0.00
A29: =" "&Labels!B112 -> Series A | B29: =0 -> 0.0% | C29: =" "&Labels!B112 -> Series A | D29: =Inputs!B92 -> 100% | E29: =" "&Labels!B112 -> Series A | F29: =0 -> 0.000 | G29: =" "&Labels!B112 -> Series A | H29: =0 -> 0.00
B32: =Labels!B98 -> Seed | C32: =Labels!B99 -> Round A | D32: =Labels!B100 -> Exit
A33: =Labels!B66 -> Price Premium %
A34: =" "&Labels!B103 -> Conv Note
A35: =" "&Labels!B104 -> Series B | B35: =0 -> 0.0% | C35: =B35 -> 0.0% | D35: =C35 -> 0.0%
A36: =" "&Labels!B105 -> Series A | B36: =0 -> 0.0% | C36: =B36 -> 0.0% | D36: =C36 -> 0.0%
A37: =" "&Labels!B106 -> Preferred
A38: =" "&Labels!B107 -> Series A | B38: =Inputs!B50 -> 10.0% | C38: =Inputs!C50 -> 10.0% | D38: =Inputs!D50 -> 10.0%
A39: =" "&Labels!B108 -> Common | B39: =0 -> 0.0% | C39: =B39 -> 0.0% | D39: =C39 -> 0.0%
A40: =" "&Labels!B109 -> Warrant | B40: =0 -> 0.0% | C40: =B40 -> 0.0% | D40: =C40 -> 0.0%
A41: =" "&Labels!B110 -> Option
A42: =" "&Labels!B111 -> Series B | B42: =0 -> 0.0% | C42: =B42 -> 0.0% | D42: =C42 -> 0.0%
A43: =" "&Labels!B112 -> Series A | B43: =0 -> 0.0% | C43: =B43 -> 0.0% | D43: =C43 -> 0.0%
A45: =Labels!B43 -> New Investment
A46: =" "&Labels!B103 -> Conv Note
A47: =" "&Labels!B104 -> Series B | B47: =Inputs!B38 -> $0 | C47: =Inputs!C38 -> $0 | D47: =Inputs!D38 -> $0 | E47: =SUM(B47:D47) -> $0
A48: =" "&Labels!B105 -> Series A | B48: =Inputs!B39 -> $0 | C48: =Inputs!C39 -> $0 | D48: =Inputs!D39 -> $0 | E48: =SUM(B48:D48) -> $0
A49: =" "&Labels!C103 -> Subtotal | B49: =SUM(B47:B48) -> $0 | C49: =SUM(C47:C48) -> $0 | D49: =SUM(D47:D48) -> $0 | E49: =SUM(E47:E48) -> $0
A50: =" "&Labels!B106 -> Preferred
A51: =" "&Labels!B107 -> Series A | B51: =Inputs!B65 -> $0 | C51: =Inputs!C65 -> $0 | D51: =Inputs!D65 -> $0 | E51: =SUM(B51:D51) -> $0
A52: =" "&Labels!C106 -> Subtotal | B52: =Inputs!B65 -> $0 | C52: =Inputs!C65 -> $0 | D52: =Inputs!D65 -> $0 | E52: =Inputs!E65 -> $0
A53: =" "&Labels!B108 -> Common | B53: =Inputs!B83 -> $1 | C53: =Inputs!C83 -> $0 | D53: =Inputs!D83 -> $0 | E53: =SUM(B53:D53) -> $1
A54: =" "&Labels!B109 -> Warrant | B54: =0 -> $0 | C54: =0 -> $0 | D54: =0 -> $0 | E54: =SUM(B54:D54) -> $0
A55: =" "&Labels!B110 -> Option
A56: =" "&Labels!B111 -> Series B | B56: =0 -> $0 | C56: =0 -> $0 | D56: =0 -> $0 | E56: =SUM(B56:D56) -> $0
A57: =" "&Labels!B112 -> Series A | B57: =0 -> $0 | C57: =0 -> $0 | D57: =0 -> $0 | E57: =SUM(B57:D57) -> $0
A58: =" "&Labels!C110 -> Subtotal | B58: =SUM(B56:B57) -> $0 | C58: =SUM(C56:C57) -> $0 | D58: =SUM(D56:D57) -> $0 | E58: =SUM(E56:E57) -> $0
A59: =" "&Labels!C102 -> Total | B59: =SUM(B49,B52:B54,B58) -> $1 | C59: =SUM(C49,C52:C54,C58) -> $0 | D59: =SUM(D49,D52:D54,D58) -> $0 | E59: =SUM(E49,E52:E54,E58) -> $1
A61: =Labels!B80 -> New Units
A62: =" "&Labels!B103 -> Conv Note
A63: =" "&Labels!B104 -> Series B | B63: =0/3/10 -> 0.0 | C63: 0.0 | D63: 0.0 | E63: =SUM(B63:D63) -> 0.0
A64: =" "&Labels!B105 -> Series A | B64: 0.0 | C64: 0.0 | D64: 0.0 | E64: =SUM(B64:D64) -> 0.0
A65: =" "&Labels!C103 -> Subtotal | B65: =SUM(B63:B64) -> 0.0 | C65: =SUM(C63:C64) -> 0.0 | D65: =SUM(D63:D64) -> 0.0 | E65: =SUM(E63:E64) -> 0.0
A66: =" "&Labels!B106 -> Preferred
A67: =" "&Labels!B107 -> Series A | B67: =0/3/5 -> 0.0 | C67: =0/3/5 -> 0.0 | D67: =0/3/5 -> 0.0 | E67: =SUM(B67:D67) -> 0.0
A68: =" "&Labels!C106 -> Subtotal | B68: =B67 -> 0.0 | C68: =C67 -> 0.0 | D68: =D67 -> 0.0 | E68: =E67 -> 0.0
A69: =" "&Labels!B108 -> Common | B69: =0/3/5 -> 0.0 | C69: 0.0 | D69: 0.0 | E69: =SUM(B69:D69) -> 0.0
A70: =" "&Labels!B109 -> Warrant | B70: 0.0 | C70: 0.0 | D70: 0.0 | E70: =SUM(B70:D70) -> 0.0
A71: =" "&Labels!B110 -> Option
A72: =" "&Labels!B111 -> Series B | B72: =Inputs!B112 -> 0.0 | C72: =Inputs!C112 -> 0.0 | D72: =Inputs!D112 -> 0.0 | E72: =SUM(B72:D72) -> 0.0
A73: =" "&Labels!B112 -> Series A | B73: =Inputs!B113 -> 0.0 | C73: =Inputs!C113 -> 0.0 | D73: =Inputs!D113 -> 0.0 | E73: =SUM(B73:D73) -> 0.0
A74: =" "&Labels!C110 -> Subtotal | B74: =SUM(B72:B73) -> 0.0 | C74: =SUM(C72:C73) -> 0.0 | D74: =SUM(D72:D73) -> 0.0 | E74: =SUM(E72:E73) -> 0.0
A75: =" "&Labels!C102 -> Total | B75: =SUM(B65,B68:B70,B74) -> 0.0 | C75: =SUM(C65,C68:C70,C74) -> 0.0 | D75: =SUM(D65,D68:D70,D74) -> 0.0 | E75: =SUM(E65,E68:E70,E74) -> 0.0
A78: =Labels!B45 -> IRR Initial Guess (Yr)
A79: =" "&Labels!B103 -> Conv Note
A80: =" "&Labels!B104 -> Series B | B80: =Inputs!C33 -> 50.0%
A81: =" "&Labels!B105 -> Series A | B81: =Inputs!C34 -> 50.0%
A82: =" "&Labels!C103 -> Subtotal | B82: =AVERAGE(B80:B81) -> 50.0%
A83: =" "&Labels!B106 -> Preferred
A84: =" "&Labels!B107 -> Series A | B84: =Inputs!C61 -> 50.0%
A85: =" "&Labels!C106 -> Subtotal | B85: =Inputs!C61 -> 50.0%
A86: =" "&Labels!B108 -> Common | B86: =Inputs!C80 -> 50.0%
A87: =" "&Labels!B109 -> Warrant | B87: =0.5 -> 50.0%
A88: =" "&Labels!B110 -> Option
A89: =" "&Labels!B111 -> Series B | B89: =Inputs!C107 -> 50.0%
A90: =" "&Labels!B112 -> Series A | B90: =Inputs!C108 -> 50.0%
A91: =" "&Labels!C110 -> Subtotal | B91: =AVERAGE(B89:B90) -> 50.0%
A92: =" "&Labels!C102 -> Total | B92: =AVERAGE(B82,B85:B87,B91) -> 50.0%

Sheet Plot Support (hidden)
A1: ="Capitalization Table" -> Capitalization Table
A2: =Inputs!B8 -> ABC Corp.
A3: =IF("Plot Support"="(Default Input)","Ignore this sheet in normal use.","Investment Scenario "&1&", Valuation Scenario "&1) -> Investment Scenario 1, Valuation Scenario 1
A4: ="Plot Support" -> Plot Support
A5: ="" -> 
A6: =Labels!B75 -> Securities | D6: =Labels!B72 -> Rounds
A7: =" "&Labels!B103 -> Conv Note | D7: =" "&Labels!B98 -> Seed | E7: =Labels!B98 -> Seed
A8: =" "&Labels!B104 -> Series B | B8: =Labels!B103&", "&Labels!B104 -> Conv Note, Series B | D8: =" "&Labels!B99 -> Round A | E8: =Labels!B99 -> Round A
A9: =" "&Labels!B105 -> Series A | B9: =Labels!B103&", "&Labels!B105 -> Conv Note, Series A | D9: =" "&Labels!B100 -> Exit | E9: =Labels!B100 -> Exit
A10: =" "&Labels!B106 -> Preferred
A11: =" "&Labels!B107 -> Series A | B11: =Labels!B106&", "&Labels!B107 -> Preferred, Series A
A12: =" "&Labels!B108 -> Common | B12: =Labels!B108 -> Common
A13: =" "&Labels!B109 -> Warrant | B13: =Labels!B109 -> Warrant
A14: =" "&Labels!B110 -> Option
A15: =" "&Labels!B111 -> Series B | B15: =Labels!B110&", "&Labels!B111 -> Option, Series B
A16: =" "&Labels!B112 -> Series A | B16: =Labels!B110&", "&Labels!B112 -> Option, Series A
B18: =Labels!B41 -> Net New Invest | C18: =Labels!B40 -> Net Investment
A19: =Labels!B98 -> Seed | B19: =Investment!B241 -> $1 | C19: =Investment!B286 -> $1
A20: =Labels!B99 -> Round A | B20: =Investment!C241 -> $0 | C20: =Investment!C286 -> $1
A21: =Labels!B100 -> Exit | B21: =Investment!D241 -> $0 | C21: =Investment!D286 -> $1
A22: =Labels!C97 -> Total | B22: =SUM(B19:B21) -> $1 | C22: =SUM(C19:C21) -> $3
A24: =Labels!B27 -> Invest by Origin Conv Notes | D24: =Labels!B34 -> Invest End Round Notes
A25: =" "&Labels!B98 -> Seed | B25: =Investment!B115 -> $0 | D25: =" "&Labels!B98 -> Seed | E25: =Investment!B276 -> $0
A26: =" "&Labels!B99 -> Round A | B26: =Investment!C115 -> $0 | D26: =" "&Labels!B99 -> Round A | E26: =Investment!C276 -> $0
A27: =" "&Labels!B100 -> Exit | B27: =Investment!D115 -> $0 | D27: =" "&Labels!B100 -> Exit | E27: =Investment!D276 -> $0
A29: =Labels!B31 -> Invest by Origin Preferred | D29: =Labels!B36 -> Invest End Round Preferred
A30: =" "&Labels!B98 -> Seed | B30: =Investment!B118 -> $0 | D30: =" "&Labels!B98 -> Seed | E30: =Investment!B279 -> $0
A31: =" "&Labels!B99 -> Round A | B31: =Investment!C118 -> $0 | D31: =" "&Labels!B99 -> Round A | E31: =Investment!C279 -> $0
A32: =" "&Labels!B100 -> Exit | B32: =Investment!D118 -> $0 | D32: =" "&Labels!B100 -> Exit | E32: =Investment!D279 -> $0
A34: =Labels!B26 -> Invest by Origin Common | D34: =Labels!B33 -> Invest End of Round Common
A35: =" "&Labels!B98 -> Seed | B35: =Investment!B119 -> $1 | D35: =" "&Labels!B98 -> Seed | E35: =Investment!B280 -> $1
A36: =" "&Labels!B99 -> Round A | B36: =Investment!C119 -> $1 | D36: =" "&Labels!B99 -> Round A | E36: =Investment!C280 -> $1
A37: =" "&Labels!B100 -> Exit | B37: =Investment!D119 -> $1 | D37: =" "&Labels!B100 -> Exit | E37: =Investment!D280 -> $1
A39: =Labels!B32 -> Invest by Origin Warrants | D39: =Labels!B37 -> Invest End Round Warrants
A40: =" "&Labels!B98 -> Seed | B40: =Investment!B120 -> $0 | D40: =" "&Labels!B98 -> Seed | E40: =Investment!B281 -> $0
A41: =" "&Labels!B99 -> Round A | B41: =Investment!C120 -> $0 | D41: =" "&Labels!B99 -> Round A | E41: =Investment!C281 -> $0
A42: =" "&Labels!B100 -> Exit | B42: =Investment!D120 -> $0 | D42: =" "&Labels!B100 -> Exit | E42: =Investment!D281 -> $0
A44: =Labels!B30 -> Invest by Origin Options | D44: =Labels!B35 -> Invest End Round Options
A45: =" "&Labels!B98 -> Seed | B45: =Investment!B124 -> $0 | D45: =" "&Labels!B98 -> Seed | E45: =Investment!B285 -> $0
A46: =" "&Labels!B99 -> Round A | B46: =Investment!C124 -> $0 | D46: =" "&Labels!B99 -> Round A | E46: =Investment!C285 -> $0
A47: =" "&Labels!B100 -> Exit | B47: =Investment!D124 -> $0 | D47: =" "&Labels!B100 -> Exit | E47: =Investment!D285 -> $0
A49: =Labels!B24 -> Firm Value Start
A50: =" "&Labels!B98 -> Seed | B50: =Inputs!B121 -> $1,000,000
A51: =" "&Labels!B99 -> Round A | B51: =Inputs!B122 -> $1,000,000
A52: =" "&Labels!B100 -> Exit | B52: =Inputs!B123 -> $1,000,000
A53: =" "&Labels!C97 -> Total | B53: =SUM(B50:B52) -> $3,000,000
A55: =Labels!B23 -> Firm Value
A56: =" "&Labels!B98 -> Seed | B56: =Valuation!B22 -> $1,000,001
A57: =" "&Labels!B99 -> Round A | B57: =Valuation!C22 -> $1,000,000
A58: =" "&Labels!B100 -> Exit | B58: =Valuation!D22 -> $1,000,000
B60: =Labels!B98 -> Seed | C60: =Labels!B99 -> Round A | D60: =Labels!B100 -> Exit | E60: =Labels!C97 -> Total
A61: =Labels!B59 -> Payout
A62: =" "&Labels!B103 -> Conv Note
A63: =" "&Labels!B104 -> Series B | B63: =Payout!B43 -> $0 | C63: =Payout!C43 -> $0 | D63: =Payout!D43 -> $0 | E63: ="" -> 
A64: =" "&Labels!B105 -> Series A | B64: =Payout!B44 -> $0 | C64: =Payout!C44 -> $0 | D64: =Payout!D44 -> $0 | E64: ="" -> 
A65: =" "&Labels!C103 -> Subtotal | B65: =SUM(B63:B64) -> $0 | C65: =SUM(C63:C64) -> $0 | D65: =SUM(D63:D64) -> $0 | E65: ="" -> 
A66: =" "&Labels!B106 -> Preferred
A67: =" "&Labels!B107 -> Series A | B67: =Payout!B47 -> $0 | C67: =Payout!C47 -> $0 | D67: =Payout!D47 -> $0 | E67: ="" -> 
A68: =" "&Labels!C106 -> Subtotal | B68: =SUM(B67) -> $0 | C68: =SUM(C67) -> $0 | D68: =SUM(D67) -> $0 | E68: ="" -> 
A69: =" "&Labels!B108 -> Common | B69: =Payout!B49 -> $1,000,001 | C69: =Payout!C49 -> $1,000,000 | D69: =Payout!D49 -> $1,000,000 | E69: ="" -> 
A70: =" "&Labels!B109 -> Warrant | B70: =Payout!B50 -> $0 | C70: =Payout!C50 -> $0 | D70: =Payout!D50 -> $0 | E70: ="" -> 
A71: =" "&Labels!B110 -> Option
A72: =" "&Labels!B111 -> Series B | B72: =Payout!B52 -> $0 | C72: =Payout!C52 -> $0 | D72: =Payout!D52 -> $0 | E72: ="" -> 
A73: =" "&Labels!B112 -> Series A | B73: =Payout!B53 -> $0 | C73: =Payout!C53 -> $0 | D73: =Payout!D53 -> $0 | E73: ="" -> 
A74: =" "&Labels!C110 -> Subtotal | B74: =SUM(B72:B73) -> $0 | C74: =SUM(C72:C73) -> $0 | D74: =SUM(D72:D73) -> $0 | E74: ="" -> 
A75: =" "&Labels!C102 -> Total | B75: =SUM(B65,B68:B70,B74) -> $1,000,001 | C75: =SUM(C65,C68:C70,C74) -> $1,000,000 | D75: =SUM(D65,D68:D70,D74) -> $1,000,000 | E75: ="" -> 
A77: =Labels!B61 -> Payout
A78: =" "&Labels!B103 -> Conv Note
A79: =" "&Labels!B104 -> Series B | B79: =Payout!D8 -> $0
A80: =" "&Labels!B105 -> Series A | B80: =Payout!D9 -> $0
A81: =" "&Labels!C103 -> Subtotal | B81: =Payout!D45 -> $0
A82: =" "&Labels!B106 -> Preferred
A83: =" "&Labels!B107 -> Series A | B83: =Payout!D12 -> $0
A84: =" "&Labels!C106 -> Subtotal | B84: =Payout!D48 -> $0
A85: =" "&Labels!B108 -> Common | B85: =Payout!D14 -> $1,000,000
A86: =" "&Labels!B109 -> Warrant | B86: =Payout!D15 -> $0
A87: =" "&Labels!B110 -> Option
A88: =" "&Labels!B111 -> Series B | B88: =Payout!D17 -> $0
A89: =" "&Labels!B112 -> Series A | B89: =Payout!D18 -> $0
A90: =" "&Labels!C110 -> Subtotal | B90: =Payout!D54 -> $0
A91: =" "&Labels!C102 -> Total | B91: =Payout!D55 -> $1,000,000
A93: =Labels!B56 -> Payout by Origin
A94: =" "&Labels!B103 -> Conv Note
A95: =" "&Labels!B104 -> Series B | B95: =Investment!D12 -> $0
A96: =" "&Labels!B105 -> Series A | B96: =Investment!D13 -> $0
A97: =" "&Labels!C103 -> Subtotal | B97: ='(Other Variables)'!D276 -> $0
A98: =" "&Labels!B106 -> Preferred
A99: =" "&Labels!B107 -> Series A | B99: =Investment!D16 -> $0
A100: =" "&Labels!C106 -> Subtotal | B100: ='(Other Variables)'!D279 -> $0
A101: =" "&Labels!B108 -> Common | B101: =Investment!D18 -> $1,000,000
A102: =" "&Labels!B109 -> Warrant | B102: =Investment!D19 -> $0
A103: =" "&Labels!B110 -> Option
A104: =" "&Labels!B111 -> Series B | B104: =Investment!D21 -> $0
A105: =" "&Labels!B112 -> Series A | B105: =Investment!D22 -> $0
A106: =" "&Labels!C110 -> Subtotal | B106: ='(Other Variables)'!D285 -> $0
A107: =" "&Labels!C102 -> Total | B107: ='(Other Variables)'!D286 -> $1,000,000

Sheet (FnCalls 1) (hidden)
A1: ="Capitalization Table" -> Capitalization Table
A2: =Inputs!B8 -> ABC Corp.
A3: =IF("(FnCalls 1)"="(Default Input)","Ignore this sheet in normal use.","Investment Scenario "&1&", Valuation Scenario "&1) -> Investment Scenario 1, Valuation Scenario 1
A13: ='(Other Variables)'!B21 -> 0 | B13: ='(Other Variables)'!B24 -> 0 | C13: ='(Other Variables)'!B25 -> 1 | D13: ='(Other Variables)'!B26 -> 1 | E13: ='(Other Variables)'!B30 -> 0
A14: ='(Other Variables)'!B114 -> 0 | B14: ='(Other Variables)'!B117 -> 0 | C14: ='(Other Variables)'!B118 -> 0 | D14: ='(Other Variables)'!B119 -> 0 | E14: ='(Other Variables)'!B123 -> 0
A15: =SUMPRODUCT(A13:E13,A14:E14) -> 0
A17: ='(Other Variables)'!C21 -> 0 | B17: ='(Other Variables)'!C24 -> 0 | C17: ='(Other Variables)'!C25 -> 1000000 | D17: ='(Other Variables)'!C26 -> 1000000 | E17: ='(Other Variables)'!C30 -> 0
A18: ='(Other Variables)'!C114 -> 0 | B18: ='(Other Variables)'!C117 -> 0 | C18: ='(Other Variables)'!C118 -> 0 | D18: ='(Other Variables)'!C119 -> 0 | E18: ='(Other Variables)'!C123 -> 0
A19: =SUMPRODUCT(A17:E17,A18:E18) -> 0
A21: ='(Other Variables)'!D21 -> 0 | B21: ='(Other Variables)'!D24 -> 0 | C21: ='(Other Variables)'!D25 -> 1000000 | D21: ='(Other Variables)'!D26 -> 1000000 | E21: ='(Other Variables)'!D30 -> 0
A22: ='(Other Variables)'!D114 -> 0 | B22: ='(Other Variables)'!D117 -> 0 | C22: ='(Other Variables)'!D118 -> 0 | D22: ='(Other Variables)'!D119 -> 0 | E22: ='(Other Variables)'!D123 -> 0
A23: =SUMPRODUCT(A21:E21,A22:E22) -> 0

Sheet (Other Variables) (hidden)
A1: ="Capitalization Table" -> Capitalization Table
A2: =Inputs!B8 -> ABC Corp.
A3: =IF("(Other Variables)"="(Default Input)","Ignore this sheet in normal use.","Investment Scenario "&1&", Valuation Scenario "&1) -> Investment Scenario 1, Valuation Scenario 1
A4: =Labels!B53 -> Exercise Price
A6: =Labels!B103 -> Conv Note
A7: =" "&Labels!B104 -> Series B | B7: =0 -> $0.00
A8: =" "&Labels!B105 -> Series A | B8: =0 -> $0.00
A9: =Labels!B106 -> Preferred
A10: =" "&Labels!B107 -> Series A | B10: =0 -> $0.00
A11: =Labels!B108 -> Common | B11: =0 -> $0.00
A12: =Labels!B109 -> Warrant | B12: =0 -> $0.00
A13: =Labels!B110 -> Option
A14: =" "&Labels!B111 -> Series B | B14: =Inputs!B101 -> $0.00
A15: =" "&Labels!B112 -> Series A | B15: =Inputs!B102 -> $0.00
A16: =Labels!B70 -> Share Price
B17: =Labels!B98 -> Seed | C17: =Labels!B99 -> Round A | D17: =Labels!B100 -> Exit | E17: =Labels!C97 -> Total
A18: =Labels!B103 -> Conv Note
A19: =" "&Labels!B104 -> Series B | B19: =0 -> $0.000 | C19: =0 -> $0.000 | D19: =0 -> $0.000 | E19: ="" -> 
A20: =" "&Labels!B105 -> Series A | B20: =0 -> $0.000 | C20: =0 -> $0.000 | D20: =0 -> $0.000 | E20: ="" -> 
A21: =" "&Labels!C103 -> Subtotal | B21: =IF(SUM(B112:B113)=0,0,SUMPRODUCT(B19:B20,B112:B113)/SUM(B112:B113)) -> $0.000 | C21: =IF(SUM(C112:C113)=0,0,SUMPRODUCT(C19:C20,C112:C113)/SUM(C112:C113)) -> $0.000 | D21: =IF(SUM(D112:D113)=0,0,SUMPRODUCT(D19:D20,D112:D113)/SUM(D112:D113)) -> $0.000 | E21: ="" -> 
A22: =Labels!B106 -> Preferred
A23: =" "&Labels!B107 -> Series A | B23: =B25*1+B25*Inputs!B50 -> $1.100 | C23: =C25*1+C25*Inputs!C50 -> $1,100,000.000 | D23: =D25*1+D25*Inputs!D50 -> $1,100,000.000 | E23: ="" -> 
A24: =" "&Labels!C106 -> Subtotal | B24: =IF(SUM(B116)=0,0,SUMPRODUCT(B23,B116)/SUM(B116)) -> $0.000 | C24: =IF(SUM(C116)=0,0,SUMPRODUCT(C23,C116)/SUM(C116)) -> $0.000 | D24: =IF(SUM(D116)=0,0,SUMPRODUCT(D23,D116)/SUM(D116)) -> $0.000 | E24: ="" -> 
A25: =Labels!B108 -> Common | B25: =IF(1=1,Inputs!B71,B190/(Shares!B56+Shares!B58+Shares!B62+Shares!B57)+(-Investment!B55)/(Shares!B56+Shares!B58+Shares!B62+Shares!B57)+(-Investment!B58)/(Shares!B56+Shares!B58+Shares!B62+Shares!B57)) -> $1.000 | C25: =IF(2=1,Inputs!B71,C190/(Shares!C56+Shares!C58+Shares!C62+Shares!C57)+(-Investment!C55)/(Shares!C56+Shares!C58+Shares!C62+Shares!C57)+(-Investment!C58)/(Shares!C56+Shares!C58+Shares!C62+Shares!C57)) -> $1,000,000.000 | D25: =IF(3=1,Inputs!B71,D190/(Shares!D56+Shares!D58+Shares!D62+Shares!D57)+(-Investment!D55)/(Shares!D56+Shares!D58+Shares!D62+Shares!D57)+(-Investment!D58)/(Shares!D56+Shares!D58+Shares!D62+Shares!D57)) -> $1,000,000.000 | E25: ="" -> 
A26: =Labels!B109 -> Warrant | B26: =MAX(0,B25-B12) -> $1.000 | C26: =MAX(0,C25-B12) -> $1,000,000.000 | D26: =MAX(0,D25-B12) -> $1,000,000.000 | E26: ="" -> 
A27: =Labels!B110 -> Option
A28: =" "&Labels!B111 -> Series B | B28: =MAX(0,B25-B14) -> $1.000 | C28: =MAX(0,C25-B14) -> $1,000,000.000 | D28: =MAX(0,D25-B14) -> $1,000,000.000 | E28: ="" -> 
A29: =" "&Labels!B112 -> Series A | B29: =MAX(0,B25-B15) -> $1.000 | C29: =MAX(0,C25-B15) -> $1,000,000.000 | D29: =MAX(0,D25-B15) -> $1,000,000.000 | E29: ="" -> 
A30: =" "&Labels!C110 -> Subtotal | B30: =IF(SUM(B121:B122)=0,0,SUMPRODUCT(B28:B29,B121:B122)/SUM(B121:B122)) -> $0.000 | C30: =IF(SUM(C121:C122)=0,0,SUMPRODUCT(C28:C29,C121:C122)/SUM(C121:C122)) -> $0.000 | D30: =IF(SUM(D121:D122)=0,0,SUMPRODUCT(D28:D29,D121:D122)/SUM(D121:D122)) -> $0.000 | E30: ="" -> 
A31: =Labels!C102 -> Total | B31: =IF(SUM(B114,B117:B119,B123)=0,0,'(FnCalls 1)'!A15/SUM(B114,B117:B119,B123)) -> $0.000 | C31: =IF(SUM(C114,C117:C119,C123)=0,0,'(FnCalls 1)'!A19/SUM(C114,C117:C119,C123)) -> $0.000 | D31: =IF(SUM(D114,D117:D119,D123)=0,0,'(FnCalls 1)'!A23/SUM(D114,D117:D119,D123)) -> $0.000 | E31: ="" -> 
A32: =Labels!B52 -> Exercise Amt
B33: =Labels!B98 -> Seed | C33: =Labels!B99 -> Round A | D33: =Labels!B100 -> Exit | E33: =Labels!C97 -> Total
A34: =Labels!B91 -> Start
A35: =" "&Labels!B103 -> Conv Note
A36: =" "&Labels!B104 -> Series B | B36: =0 -> $0 | C36: =B96 -> $0 | D36: =C96 -> $0 | E36: =SUM(B36:D36) -> $0
A37: =" "&Labels!B105 -> Series A | B37: =0 -> $0 | C37: =B97 -> $0 | D37: =C97 -> $0 | E37: =SUM(B37:D37) -> $0
A38: =" "&Labels!C103 -> Subtotal | B38: =SUM(B36:B37) -> $0 | C38: =SUM(C36:C37) -> $0 | D38: =SUM(D36:D37) -> $0 | E38: =SUM(E36:E37) -> $0
A39: =" "&Labels!B106 -> Preferred
A40: =" "&Labels!B107 -> Series A | B40: =0 -> $0 | C40: =B100 -> $0 | D40: =C100 -> $0 | E40: =SUM(B40:D40) -> $0
A41: =" "&Labels!C106 -> Subtotal | B41: =B40 -> $0 | C41: =C40 -> $0 | D41: =D40 -> $0 | E41: =E40 -> $0
A42: =" "&Labels!B108 -> Common | B42: =0 -> $0 | C42: =B102 -> $0 | D42: =C102 -> $0 | E42: =SUM(B42:D42) -> $0
A43: =" "&Labels!B109 -> Warrant | B43: =Options!B13 -> $0 | C43: =Options!C13 -> $0 | D43: =Options!D13 -> $0 | E43: =SUM(B43:D43) -> $0
A44: =" "&Labels!B110 -> Option
A45: =" "&Labels!B111 -> Series B | B45: =Options!B27 -> $0 | C45: =Options!C27 -> $0 | D45: =Options!D27 -> $0 | E45: =SUM(B45:D45) -> $0
A46: =" "&Labels!B112 -> Series A | B46: =Options!B28 -> $0 | C46: =Options!C28 -> $0 | D46: =Options!D28 -> $0 | E46: =SUM(B46:D46) -> $0
A47: =" "&Labels!C110 -> Subtotal | B47: =SUM(B45:B46) -> $0 | C47: =SUM(C45:C46) -> $0 | D47: =SUM(D45:D46) -> $0 | E47: =SUM(E45:E46) -> $0
A48: =" "&Labels!C102 -> Total | B48: =SUM(B38,B41:B43,B47) -> $0 | C48: =SUM(C38,C41:C43,C47) -> $0 | D48: =SUM(D38,D41:D43,D47) -> $0 | E48: =SUM(E38,E41:E43,E47) -> $0
A49: =Labels!B92 -> New Sales
A50: =" "&Labels!B103 -> Conv Note
A51: =" "&Labels!B104 -> Series B | B51: =B112*B7 -> $0 | C51: =C112*B7 -> $0 | D51: =D112*B7 -> $0 | E51: =SUM(B51:D51) -> $0
A52: =" "&Labels!B105 -> Series A | B52: =B113*B8 -> $0 | C52: =C113*B8 -> $0 | D52: =D113*B8 -> $0 | E52: =SUM(B52:D52) -> $0
A53: =" "&Labels!C103 -> Subtotal | B53: =SUM(B51:B52) -> $0 | C53: =SUM(C51:C52) -> $0 | D53: =SUM(D51:D52) -> $0 | E53: =SUM(E51:E52) -> $0
A54: =" "&Labels!B106 -> Preferred
A55: =" "&Labels!B107 -> Series A | B55: =B116*B10 -> $0 | C55: =C116*B10 -> $0 | D55: =D116*B10 -> $0 | E55: =SUM(B55:D55) -> $0
A56: =" "&Labels!C106 -> Subtotal | B56: =B55 -> $0 | C56: =C55 -> $0 | D56: =D55 -> $0 | E56: =E55 -> $0
A57: =" "&Labels!B108 -> Common | B57: =B118*B11 -> $0 | C57: =C118*B11 -> $0 | D57: =D118*B11 -> $0 | E57: =SUM(B57:D57) -> $0
A58: =" "&Labels!B109 -> Warrant | B58: =Options!B14 -> $0 | C58: =Options!C14 -> $0 | D58: =Options!D14 -> $0 | E58: =SUM(B58:D58) -> $0
A59: =" "&Labels!B110 -> Option
A60: =" "&Labels!B111 -> Series B | B60: =Options!B31 -> $0 | C60: =Options!C31 -> $0 | D60: =Options!D31 -> $0 | E60: =SUM(B60:D60) -> $0
A61: =" "&Labels!B112 -> Series A | B61: =Options!B32 -> $0 | C61: =Options!C32 -> $0 | D61: =Options!D32 -> $0 | E61: =SUM(B61:D61) -> $0
A62: =" "&Labels!C110 -> Subtotal | B62: =SUM(B60:B61) -> $0 | C62: =SUM(C60:C61) -> $0 | D62: =SUM(D60:D61) -> $0 | E62: =SUM(E60:E61) -> $0
A63: =" "&Labels!C102 -> Total | B63: =SUM(B53,B56:B58,B62) -> $0 | C63: =SUM(C53,C56:C58,C62) -> $0 | D63: =SUM(D53,D56:D58,D62) -> $0 | E63: =SUM(E53,E56:E58,E62) -> $0
A64: =Labels!B93 -> Post Sales
A65: =" "&Labels!B103 -> Conv Note
A66: =" "&Labels!B104 -> Series B | B66: =B36+B51 -> $0 | C66: $0 | D66: $0 | E66: =SUM(B66:D66) -> $0
A67: =" "&Labels!B105 -> Series A | B67: $0 | C67: $0 | D67: $0 | E67: =SUM(B67:D67) -> $0
A68: =" "&Labels!C103 -> Subtotal | B68: =SUM(B66:B67) -> $0 | C68: =SUM(C66:C67) -> $0 | D68: =SUM(D66:D67) -> $0 | E68: =SUM(E66:E67) -> $0
A69: =" "&Labels!B106 -> Preferred
A70: =" "&Labels!B107 -> Series A | B70: =B40+B55 -> $0 | C70: =C40+C55 -> $0 | D70: =D40+D55 -> $0 | E70: =SUM(B70:D70) -> $0
A71: =" "&Labels!C106 -> Subtotal | B71: =B70 -> $0 | C71: =C70 -> $0 | D71: =D70 -> $0 | E71: =E70 -> $0
A72: =" "&Labels!B108 -> Common | B72: =B42+B57 -> $0 | C72: =C42+C57 -> $0 | D72: =D42+D57 -> $0 | E72: =SUM(B72:D72) -> $0
A73: =" "&Labels!B109 -> Warrant | B73: =Options!B15 -> $0 | C73: =Options!C15 -> $0 | D73: =Options!D15 -> $0 | E73: =SUM(B73:D73) -> $0
A74: =" "&Labels!B110 -> Option
A75: =" "&Labels!B111 -> Series B | B75: =Options!B35 -> $0 | C75: =Options!C35 -> $0 | D75: =Options!D35 -> $0 | E75: =SUM(B75:D75) -> $0
A76: =" "&Labels!B112 -> Series A | B76: =Options!B36 -> $0 | C76: =Options!C36 -> $0 | D76: =Options!D36 -> $0 | E76: =SUM(B76:D76) -> $0
A77: =" "&Labels!C110 -> Subtotal | B77: =SUM(B75:B76) -> $0 | C77: =SUM(C75:C76) -> $0 | D77: =SUM(D75:D76) -> $0 | E77: =SUM(E75:E76) -> $0
A78: =" "&Labels!C102 -> Total | B78: =SUM(B68,B71:B73,B77) -> $0 | C78: =SUM(C68,C71:C73,C77) -> $0 | D78: =SUM(D68,D71:D73,D77) -> $0 | E78: =SUM(E68,E71:E73,E77) -> $0
A79: =Labels!B94 -> Convert
A80: =" "&Labels!B103 -> Conv Note
A81: =" "&Labels!B104 -> Series B | B81: =Conversion!B28*B66 -> $0 | C81: =Conversion!C28*C66 -> $0 | D81: =Conversion!D28*D66 -> $0 | E81: =SUM(B81:D81) -> $0
A82: =" "&Labels!B105 -> Series A | B82: =Conversion!B29*B67 -> $0 | C82: =Conversion!C29*C67 -> $0 | D82: =Conversion!D29*D67 -> $0 | E82: =SUM(B82:D82) -> $0
A83: =" "&Labels!C103 -> Subtotal | B83: =SUM(B81:B82) -> $0 | C83: =SUM(C81:C82) -> $0 | D83: =SUM(D81:D82) -> $0 | E83: =SUM(E81:E82) -> $0
A84: =" "&Labels!B106 -> Preferred
A85: =" "&Labels!B107 -> Series A | B85: =Conversion!B31*B70 -> $0 | C85: =Conversion!C31*C70 -> $0 | D85: =Conversion!D31*D70 -> $0 | E85: =SUM(B85:D85) -> $0
A86: =" "&Labels!C106 -> Subtotal | B86: =B85 -> $0 | C86: =C85 -> $0 | D86: =D85 -> $0 | E86: =E85 -> $0
A87: =" "&Labels!B108 -> Common | B87: =Conversion!B32*B72 -> $0 | C87: =Conversion!C32*C72 -> $0 | D87: =Conversion!D32*D72 -> $0 | E87: =SUM(B87:D87) -> $0
A88: =" "&Labels!B109 -> Warrant | B88: =Options!B16 -> $0 | C88: =Options!C16 -> $0 | D88: =Options!D16 -> $0 | E88: =SUM(B88:D88) -> $0
A89: =" "&Labels!B110 -> Option
A90: =" "&Labels!B111 -> Series B | B90: =Options!B39 -> $0 | C90: =Options!C39 -> $0 | D90: =Options!D39 -> $0 | E90: =SUM(B90:D90) -> $0
A91: =" "&Labels!B112 -> Series A | B91: =Options!B40 -> $0 | C91: =Options!C40 -> $0 | D91: =Options!D40 -> $0 | E91: =SUM(B91:D91) -> $0
A92: =" "&Labels!C110 -> Subtotal | B92: =SUM(B90:B91) -> $0 | C92: =SUM(C90:C91) -> $0 | D92: =SUM(D90:D91) -> $0 | E92: =SUM(E90:E91) -> $0
A93: =" "&Labels!C102 -> Total | B93: =SUM(B83,B86:B88,B92) -> $0 | C93: =SUM(C83,C86:C88,C92) -> $0 | D93: =SUM(D83,D86:D88,D92) -> $0 | E93: =SUM(E83,E86:E88,E92) -> $0
A94: =Labels!B95 -> End
A95: =" "&Labels!B103 -> Conv Note
A96: =" "&Labels!B104 -> Series B | B96: =B66-B81 -> $0 | C96: $0 | D96: $0 | E96: =SUM(B96:D96) -> $0
A97: =" "&Labels!B105 -> Series A | B97: $0 | C97: $0 | D97: $0 | E97: =SUM(B97:D97) -> $0
A98: =" "&Labels!C103 -> Subtotal | B98: =SUM(B96:B97) -> $0 | C98: =SUM(C96:C97) -> $0 | D98: =SUM(D96:D97) -> $0 | E98: =SUM(E96:E97) -> $0
A99: =" "&Labels!B106 -> Preferred
A100: =" "&Labels!B107 -> Series A | B100: =B70-B85 -> $0 | C100: =C70-C85 -> $0 | D100: =D70-D85 -> $0 | E100: =SUM(B100:D100) -> $0
A101: =" "&Labels!C106 -> Subtotal | B101: =B100 -> $0 | C101: =C100 -> $0 | D101: =D100 -> $0 | E101: =E100 -> $0
A102: =" "&Labels!B108 -> Common | B102: =B72-B87 -> $0 | C102: =C72-C87 -> $0 | D102: =D72-D87 -> $0 | E102: =SUM(B102:D102) -> $0
A103: =" "&Labels!B109 -> Warrant | B103: =Options!B17 -> $0 | C103: =Options!C17 -> $0 | D103: =Options!D17 -> $0 | E103: =SUM(B103:D103) -> $0
A104: =" "&Labels!B110 -> Option
A105: =" "&Labels!B111 -> Series B | B105: =Options!B43 -> $0 | C105: =Options!C43 -> $0 | D105: =Options!D43 -> $0 | E105: =SUM(B105:D105) -> $0
A106: =" "&Labels!B112 -> Series A | B106: =Options!B44 -> $0 | C106: =Options!C44 -> $0 | D106: =Options!D44 -> $0 | E106: =SUM(B106:D106) -> $0
A107: =" "&Labels!C110 -> Subtotal | B107: =SUM(B105:B106) -> $0 | C107: =SUM(C105:C106) -> $0 | D107: =SUM(D105:D106) -> $0 | E107: =SUM(E105:E106) -> $0
A108: =" "&Labels!C102 -> Total | B108: =SUM(B98,B101:B103,B107) -> $0 | C108: =SUM(C98,C101:C103,C107) -> $0 | D108: =SUM(D98,D101:D103,D107) -> $0 | E108: =SUM(E98,E101:E103,E107) -> $0
A109: =Labels!B79 -> New Units Sold
B110: =Labels!B98 -> Seed | C110: =Labels!B99 -> Round A | D110: =Labels!B100 -> Exit | E110: =Labels!C97 -> Total
A111: =Labels!B103 -> Conv Note
A112: =" "&Labels!B104 -> Series B | B112: =Boneyard!B63 -> 0.0 | C112: =Boneyard!C63 -> 0.0 | D112: =Boneyard!D63 -> 0.0 | E112: =SUM(B112:D112) -> 0.0
A113: =" "&Labels!B105 -> Series A | B113: =Boneyard!B64 -> 0.0 | C113: =Boneyard!C64 -> 0.0 | D113: =Boneyard!D64 -> 0.0 | E113: =SUM(B113:D113) -> 0.0
A114: =" "&Labels!C103 -> Subtotal | B114: =SUM(B112:B113) -> 0.0 | C114: =SUM(C112:C113) -> 0.0 | D114: =SUM(D112:D113) -> 0.0 | E114: =SUM(B114:D114) -> 0.0
A115: =Labels!B106 -> Preferred
A116: =" "&Labels!B107 -> Series A | B116: =Boneyard!B67 -> 0.0 | C116: =Boneyard!C67 -> 0.0 | D116: =Boneyard!D67 -> 0.0 | E116: =SUM(B116:D116) -> 0.0
A117: =" "&Labels!C106 -> Subtotal | B117: =B116 -> 0.0 | C117: =C116 -> 0.0 | D117: =D116 -> 0.0 | E117: =SUM(B117:D117) -> 0.0
A118: =Labels!B108 -> Common | B118: =Boneyard!B69 -> 0.0 | C118: =Boneyard!C69 -> 0.0 | D118: =Boneyard!D69 -> 0.0 | E118: =SUM(B118:D118) -> 0.0
A119: =Labels!B109 -> Warrant | B119: =Boneyard!B70 -> 0.0 | C119: =Boneyard!C70 -> 0.0 | D119: =Boneyard!D70 -> 0.0 | E119: =SUM(B119:D119) -> 0.0
A120: =Labels!B110 -> Option
A121: =" "&Labels!B111 -> Series B | B121: =Inputs!B112 -> 0.0 | C121: =Inputs!C112 -> 0.0 | D121: =Inputs!D112 -> 0.0 | E121: =SUM(B121:D121) -> 0.0
A122: =" "&Labels!B112 -> Series A | B122: =Inputs!B113 -> 0.0 | C122: =Inputs!C113 -> 0.0 | D122: =Inputs!D113 -> 0.0 | E122: =SUM(B122:D122) -> 0.0
A123: =" "&Labels!C110 -> Subtotal | B123: =SUM(B121:B122) -> 0.0 | C123: =SUM(C121:C122) -> 0.0 | D123: =SUM(D121:D122) -> 0.0 | E123: =SUM(B123:D123) -> 0.0
A124: =Labels!C102 -> Total | B124: =SUM(B114,B117:B119,B123) -> 0.0 | C124: =SUM(C114,C117:C119,C123) -> 0.0 | D124: =SUM(D114,D117:D119,D123) -> 0.0 | E124: =SUM(B124:D124) -> 0.0
A125: =Labels!B7 -> Conversion Decisions Detail
B126: =Labels!B98 -> Seed | C126: =Labels!B99 -> Round A | D126: =Labels!B100 -> Exit
A127: =Labels!B103 -> Conv Note
A128: =" "&Labels!B104 -> Series B
A129: =" "&Labels!B84 -> Trigger Date | B129: =Conversion!B61 -> 0 | C129: =Conversion!C61 -> 1 | D129: =Conversion!D61 -> 1
A130: =" "&Labels!B85 -> Trigger Invest | B130: =Conversion!B62 -> 0 | C130: =Conversion!C62 -> 0 | D130: =Conversion!D62 -> 0
A131: =" "&Labels!B86 -> Trigger Value % | B131: =Conversion!B63 -> 1 | C131: =Conversion!C63 -> 1 | D131: =Conversion!D63 -> 1
A132: =" "&Labels!B87 -> Liquidation | B132: =Conversion!B64 -> 0 | C132: =Conversion!C64 -> 0 | D132: =Conversion!D64 -> 0
A133: =" "&Labels!B88 -> Trigger Price | B133: =Conversion!B65 -> -1 | C133: =Conversion!C65 -> -1 | D133: =Conversion!D65 -> -1
A134: =" "&Labels!B105 -> Series A
A135: =" "&Labels!B84 -> Trigger Date | B135: =Conversion!B67 -> 0 | C135: =Conversion!C67 -> 1 | D135: =Conversion!D67 -> 1
A136: =" "&Labels!B85 -> Trigger Invest | B136: =Conversion!B68 -> 0 | C136: =Conversion!C68 -> 0 | D136: =Conversion!D68 -> 0
A137: =" "&Labels!B86 -> Trigger Value % | B137: =Conversion!B69 -> 1 | C137: =Conversion!C69 -> 1 | D137: =Conversion!D69 -> 1
A138: =" "&Labels!B87 -> Liquidation | B138: =Conversion!B70 -> 0 | C138: =Conversion!C70 -> 0 | D138: =Conversion!D70 -> 0
A139: =" "&Labels!B88 -> Trigger Price | B139: =Conversion!B71 -> -1 | C139: =Conversion!C71 -> -1 | D139: =Conversion!D71 -> -1
A140: =Labels!B106 -> Preferred
A141: =" "&Labels!B107 -> Series A
A142: =" "&Labels!B84 -> Trigger Date | B142: =Conversion!B74 -> 0 | C142: =Conversion!C74 -> 1 | D142: =Conversion!D74 -> 1
A143: =" "&Labels!B85 -> Trigger Invest | B143: =Conversion!B75 -> 0 | C143: =Conversion!C75 -> 0 | D143: =Conversion!D75 -> 0
A144: =" "&Labels!B86 -> Trigger Value % | B144: =Conversion!B76 -> 1 | C144: =Conversion!C76 -> 1 | D144: =Conversion!D76 -> 1
A145: =" "&Labels!B87 -> Liquidation | B145: =Conversion!B77 -> 0 | C145: =Conversion!C77 -> 0 | D145: =Conversion!D77 -> 0
A146: =" "&Labels!B88 -> Trigger Price | B146: =Conversion!B78 -> -1 | C146: =Conversion!C78 -> -1 | D146: =Conversion!D78 -> -1
A147: =Labels!B108 -> Common
A148: =" "&Labels!B84 -> Trigger Date | B148: =Conversion!B80 -> -1 | C148: =Conversion!C80 -> -1 | D148: =Conversion!D80 -> -1
A149: =" "&Labels!B85 -> Trigger Invest | B149: =Conversion!B81 -> -1 | C149: =Conversion!C81 -> -1 | D149: =Conversion!D81 -> -1
A150: =" "&Labels!B86 -> Trigger Value % | B150: =Conversion!B82 -> -1 | C150: =Conversion!C82 -> -1 | D150: =Conversion!D82 -> -1
A151: =" "&Labels!B87 -> Liquidation | B151: =Conversion!B83 -> -1 | C151: =Conversion!C83 -> -1 | D151: =Conversion!D83 -> -1
A152: =" "&Labels!B88 -> Trigger Price | B152: =Conversion!B84 -> -1 | C152: =Conversion!C84 -> -1 | D152: =Conversion!D84 -> -1
A153: =Labels!B109 -> Warrant
A154: =" "&Labels!B84 -> Trigger Date | B154: =Conversion!B86 -> 0 | C154: =Conversion!C86 -> 1 | D154: =Conversion!D86 -> 1
A155: =" "&Labels!B85 -> Trigger Invest | B155: =Conversion!B87 -> 0 | C155: =Conversion!C87 -> 0 | D155: =Conversion!D87 -> 0
A156: =" "&Labels!B86 -> Trigger Value % | B156: =Conversion!B88 -> -1 | C156: =Conversion!C88 -> -1 | D156: =Conversion!D88 -> -1
A157: =" "&Labels!B87 -> Liquidation | B157: =Conversion!B89 -> -1 | C157: =Conversion!C89 -> -1 | D157: =Conversion!D89 -> -1
A158: =" "&Labels!B88 -> Trigger Price | B158: =Conversion!B90 -> 1 | C158: =Conversion!C90 -> 1 | D158: =Conversion!D90 -> 1
A159: =Labels!B110 -> Option
A160: =" "&Labels!B111 -> Series B
A161: =" "&Labels!B84 -> Trigger Date | B161: =Conversion!B93 -> 0 | C161: =Conversion!C93 -> 1 | D161: =Conversion!D93 -> 1
A162: =" "&Labels!B85 -> Trigger Invest | B162: =Conversion!B94 -> 0 | C162: =Conversion!C94 -> 0 | D162: =Conversion!D94 -> 0
A163: =" "&Labels!B86 -> Trigger Value % | B163: =Conversion!B95 -> -1 | C163: =Conversion!C95 -> -1 | D163: =Conversion!D95 -> -1
A164: =" "&Labels!B87 -> Liquidation | B164: =Conversion!B96 -> -1 | C164: =Conversion!C96 -> -1 | D164: =Conversion!D96 -> -1
A165: =" "&Labels!B88 -> Trigger Price | B165: =Conversion!B97 -> 1 | C165: =Conversion!C97 -> 1 | D165: =Conversion!D97 -> 1
A166: =" "&Labels!B112 -> Series A
A167: =" "&Labels!B84 -> Trigger Date | B167: =Conversion!B99 -> 0 | C167: =Conversion!C99 -> 1 | D167: =Conversion!D99 -> 1
A168: =" "&Labels!B85 -> Trigger Invest | B168: =Conversion!B100 -> 0 | C168: =Conversion!C100 -> 0 | D168: =Conversion!D100 -> 0
A169: =" "&Labels!B86 -> Trigger Value % | B169: =Conversion!B101 -> -1 | C169: =Conversion!C101 -> -1 | D169: =Conversion!D101 -> -1
A170: =" "&Labels!B87 -> Liquidation | B170: =Conversion!B102 -> -1 | C170: =Conversion!C102 -> -1 | D170: =Conversion!D102 -> -1
A171: =" "&Labels!B88 -> Trigger Price | B171: =Conversion!B103 -> 1 | C171: =Conversion!C103 -> 1 | D171: =Conversion!D103 -> 1
A172: =Labels!B67 -> Conversion Price
B173: =Labels!B98 -> Seed | C173: =Labels!B99 -> Round A | D173: =Labels!B100 -> Exit | E173: =Labels!C97 -> Total
A174: =Labels!B103 -> Conv Note
A175: =" "&Labels!B104 -> Series B | B175: =Prices!B30 -> $700,000.70 | C175: =Prices!C30 -> $700,000.00 | D175: =Prices!D30 -> $700,000.00 | E175: =Prices!D30 -> $700,000.00
A176: =" "&Labels!B105 -> Series A | B176: =Prices!B31 -> $700,000.70 | C176: =Prices!C31 -> $700,000.00 | D176: =Prices!D31 -> $700,000.00 | E176: =Prices!D31 -> $700,000.00
A177: =" "&Labels!C103 -> Subtotal | B177: =Prices!B31 -> $700,000.70 | C177: =Prices!C31 -> $700,000.00 | D177: =Prices!D31 -> $700,000.00 | E177: =Prices!E31 -> $700,000.00
A178: =Labels!B106 -> Preferred
A179: =" "&Labels!B107 -> Series A | B179: =Prices!B36 -> $1,000,001.00 | C179: =Prices!C36 -> $1,000,000.00 | D179: =Prices!D36 -> $1,000,000.00 | E179: =Prices!D36 -> $1,000,000.00
A180: =" "&Labels!C106 -> Subtotal | B180: =Prices!B36 -> $1,000,001.00 | C180: =Prices!C36 -> $1,000,000.00 | D180: =Prices!D36 -> $1,000,000.00 | E180: =Prices!E36 -> $1,000,000.00
A181: =Labels!B108 -> Common | B181: =MAX(0,IF(Shares!B87=0,0,(B192-B200-B203-SUM(B214:B215)-SUM(B218))/Shares!B87)) -> $1,000,001.00 | C181: =MAX(0,IF(Shares!C87=0,0,(C192-C200-C203-SUM(C214:C215)-SUM(C218))/Shares!C87)) -> $1,000,000.00 | D181: =MAX(0,IF(Shares!D87=0,0,(D192-D200-D203-SUM(D214:D215)-SUM(D218))/Shares!D87)) -> $1,000,000.00 | E181: =D181 -> $1,000,000.00
A182: =Labels!B109 -> Warrant | B182: =Prices!B40 -> $1,000,001.00 | C182: =Prices!C40 -> $1,000,000.00 | D182: =Prices!D40 -> $1,000,000.00 | E182: =Prices!D40 -> $1,000,000.00
A183: =Labels!B110 -> Option
A184: =" "&Labels!B111 -> Series B | B184: =Prices!B44 -> $1,000,001.00 | C184: =Prices!C44 -> $1,000,000.00 | D184: =Prices!D44 -> $1,000,000.00 | E184: =Prices!D44 -> $1,000,000.00
A185: =" "&Labels!B112 -> Series A | B185: =Prices!B45 -> $1,000,001.00 | C185: =Prices!C45 -> $1,000,000.00 | D185: =Prices!D45 -> $1,000,000.00 | E185: =Prices!D45 -> $1,000,000.00
A186: =" "&Labels!C110 -> Subtotal | B186: =Prices!B45 -> $1,000,001.00 | C186: =Prices!C45 -> $1,000,000.00 | D186: =Prices!D45 -> $1,000,000.00 | E186: =Prices!E45 -> $1,000,000.00
A187: =Labels!C102 -> Total | B187: =Prices!B46 -> $1,000,001.00 | C187: =Prices!C46 -> $1,000,000.00 | D187: =Prices!D46 -> $1,000,000.00 | E187: =D187 -> $1,000,000.00
A188: =Labels!B22 -> Firm Value
B189: =Labels!B98 -> Seed | C189: =Labels!B99 -> Round A | D189: =Labels!B100 -> Exit
A190: =Labels!B91 -> Start | B190: =Valuation!B10 -> $1,000,000 | C190: =Valuation!C10 -> $1,000,000 | D190: =Valuation!D10 -> $1,000,000
A191: =Labels!B92 -> New Sales | B191: =Investment!B241 -> $1 | C191: =Investment!C241 -> $0 | D191: =Investment!D241 -> $0
A192: =Labels!B93 -> Post Sales | B192: =B190+B191 -> $1,000,001 | C192: =C190+C191 -> $1,000,000 | D192: =D190+D191 -> $1,000,000
A193: =Labels!B94 -> Convert | B193: =B93 -> $0 | C193: =C93 -> $0 | D193: =D93 -> $0
A194: =Labels!B95 -> End | B194: =Valuation!B22 -> $1,000,001 | C194: =Valuation!C22 -> $1,000,000 | D194: =Valuation!D22 -> $1,000,000
A195: =Labels!B48 -> Liquidation Preference
B196: =Labels!B98 -> Seed | C196: =Labels!B99 -> Round A | D196: =Labels!B100 -> Exit | E196: =Labels!C97 -> Total
A197: =Labels!B103 -> Conv Note
A198: =" "&Labels!B104 -> Series B | B198: =Payout!B75 -> $0 | C198: =Payout!C75 -> $0 | D198: =Payout!D75 -> $0 | E198: =SUM(B198:D198) -> $0
A199: =" "&Labels!B105 -> Series A | B199: =Payout!B76 -> $0 | C199: =Payout!C76 -> $0 | D199: =Payout!D76 -> $0 | E199: =SUM(B199:D199) -> $0
A200: =" "&Labels!C103 -> Subtotal | B200: =SUM(B198:B199) -> $0 | C200: =SUM(C198:C199) -> $0 | D200: =SUM(D198:D199) -> $0 | E200: =SUM(E198:E199) -> $0
A201: =Labels!B106 -> Preferred
... 133 more rows

Sheet Labels
A1: ="Capitalization Table" -> Capitalization Table
A2: =Inputs!B8 -> ABC Corp.
A3: =IF("Labels"="(Default Input)","Ignore this sheet in normal use.","Investment Scenario "&1&", Valuation Scenario "&1) -> Investment Scenario 1, Valuation Scenario 1
A4: Variable | B4: Display Label | E4: Comment
A5: Company_Name | B5: Company Name | E5: Name of the company
A6: Conversion_Decisions_Default | B6: Default Conversion Decisions | E6: This variable encodes the default conversion decisions for securities. +1 means all conversion conditions are satisfied 0 means some conversion condition is not satisfied This information determines the default values for conversion percents for each security in each round, found in variable 'Convert %'. You can get detail on which conversion conditions are or are not satisfied in variable 'Conversion Decisions Detail'.
A7: Conversion_Decisions_Detail | B7: Conversion Decisions Detail | E7: The default conversion decision for each security is positive (negative) if all these built-in conditions are satisfied (not satisfied). 1) The date of the current round has reached the trigger date 2) The sum of investments in common, preferred and notes exceeds the trigger investment threshhold 3) For notes and preferred: the value of the company exceeds a safety criterion (investment in notes + preferred must be less than a stated fraction of firm value). 4) For notes and preferred: value of commmon shares obtained > (1+premium) * liquidation preference. 5) For warrants and options: common share price >= exercise price. The cell values have these meanings: +1: conversion condition is satisfied 0 : conversion condition is not satisfied -1: means conversion condition is not relevant You can override these conversion decisions by entering values in variable 'Converting %'.
A8: Convert_Liq_Premium_pct | B8: Liq Premium % | E8: Conversion of securities to common stock must produce this value premium over liquidation preference, in order for the default conversion condition to be satisfied. If < 0, then the company has the right to convert the security to common stock when all the conditions are met.
A9: Convert_Trigger_Date | B9: Trigger Date | E9: Date at which securities can first be converted or exercised to obtain common stock. A date beyond the end of model time indicates that there is no trigger date for conversion of the security.
A10: Convert_Trigger_Invest_Amt | B10: Trigger Invest | E10: Minimum amount of equity capital that the company must raise before securities can be converted or exercised to obtain common stock. An amount greater than the capitalization of the company indicates that the security cannot be converted (or exercised).
A11: Convert_Trigger_Value_pct | B11: Trigger Value % | E11: Maximum fraction of the value of a firm that can be in senior securities in order that a series of convertible securities converts. (Other conversion criteria involve dates and minimum equity funding raised by the company.)
A12: Converting_pct | B12: % Converting | E12: Percent of outstanding convertible notes and preferred stock converting; and percent of outstanding warrants and options exercising in each investment round. The model starts with default decisions for what securities to exercise or convert and when. These default decisions are computed in the variable 'Conversion Decisions Default'. You can override the default conversion decisions by entering new values.
A13: ConvNote_Discount_pct | B13: Conv Discount % | E13: The discount percent on prevailing common share price that accrue to holders of each series of convertible security at the time of conversion or exercise. This discount is a reward for investing early when the risk was presumed higher.
A14: Discount_Rate_Yr | B14: Discount Rate (Yr) | E14: Annualized discount rates used in computation of present values of investor cash flows
A15: Dividend | B15: Dividend | E15: Dividend in kind for convertible notes (before conversion), preferred stock (before conversion), and common stock, paid at start of each investment round
A16: Dividend_by_Origin | B16: Dividend by Origin | E16: Dividend in kind for convertible notes (before conversion), preferred stock (before conversion), and common stock, paid at start of each investment round. The dividends are segmented by the original type and series of security whose purchase earned the dividend (not by the current type and series of security that earned the dividend).
A17: Dividend_by_Origin_Last | B17: Dividend by Origin | E17: Dividend in kind for convertible notes (before conversion), preferred stock (before conversion), and common stock, paid at start of lsat investment round. The dividends are segmented by the original type and series of security whose purchase earned the dividend (not by the current type and series of security that earned the dividend).
A18: Dividend_Common | B18: Dividend Common | E18: Dividend paid on common stock, paid at the beginning of each investment round
A19: Dividend_pct_Yr | B19: Dividend % (Yr) | E19: Dividend rate for preferred stock, and interest rate paid on convertible notes before conversion
A20: Event_Date | B20: Event Date | E20: Date of each investment round, determined by investment scenario selected
A21: Event_Date_Sc0 | B21: Event Date | E21: Date of each investment round
A22: Firm_Value | B22: Firm Value | E22: Firm value at phases Start, Post Sales, and End; and change in firm value at phases New Sales and Convert, for each investment round. A new investment (including paying the exercise price to exercise a warrant or option) increases the value of the firm by the amount of the new investment.
A23: Firm_Value_End | B23: Firm Value | E23: Firm value at End of each investment round. Used in plotting.
A24: Firm_Value_Start | B24: Firm Value Start | E24: Valuation of the firm at the start of each investment round
A25: Firm_Value_Start_Sc0 | B25: Firm Value | E25: Valuation of the firm at the start of each investment round
A26: Invest_by_Origin_Common_plt | B26: Invest by Origin Common | E26: Cumulative gross investment in common stock, for each investment round. Includes dividends. Used for plotting.
A27: Invest_by_Origin_Conv_plt | B27: Invest by Origin Conv Notes | E27: Cumulative gross investment in convertible notes, for each investment round. Used for plotting.
A28: Invest_by_Origin_exDiv | B28: Invest by Origin ex-Dividend | E28: Gross investment including value of converted securities, and excluding preferred dividends and interest payments on notes, segmented by type of security, by investment round
A29: Invest_by_Origin_exDiv_LastRnd | B29: Invest by Origin ex-Div | E29: Gross investment including value of converted securities, and excluding preferred dividends and interest payments on notes, segmented by type of security, by investment round
A30: Invest_by_Origin_Opt_plt | B30: Invest by Origin Options | E30: Cumulative gross investment in options, for each investment round. Used for plotting.
A31: Invest_by_Origin_Preferred_plt | B31: Invest by Origin Preferred | E31: Cumulative gross investment in preferred stock, for each investment round. Includes dividends. Used for plotting.
A32: Invest_by_Origin_War_plt | B32: Invest by Origin Warrants | E32: Cumulative gross investment in warrants, for each investment round. Used for plotting.
A33: Invest_End_Common_plt | B33: Invest End of Round Common | E33: Cumulative gross investment in common stock held at the end of each investment round. Includes dividends. Used for plotting.
A34: Invest_End_Conv_plt | B34: Invest End Round Notes | E34: Cumulative gross investment held in convertible notes, for each investment round. Used for plotting.
A35: Invest_End_Opt_plt | B35: Invest End Round Options | E35: Cumulative gross investment in options held at the end of each investment round. Used for plotting.
A36: Invest_End_Preferred_plt | B36: Invest End Round Preferred | E36: Cumulative gross investment held in preferred stock at the end of each investment round. Includes dividends. Used for plotting.
A37: Invest_End_War_plt | B37: Invest End Round Warrants | E37: Cumulative gross investment held in warrants at the end of each investment round. Includes dividends. Used for plotting.
A38: Investment_by_Origin | B38: Investment by Origin | E38: Gross investment, segmented by type and series of security, investment round, and phase. Converted notes and preferred shares and exercised warrants and options remain in their respective security types and series. The phase are: * Start = investment in securities at the beginning of the round * New Sales = new investment in securities in the round * Post Sales = gross investment in securities after sale of new securities * Convert = added investment in exercise $ amounts for exercised warrants and options * End = investments at the end of the round (which still include amounts converted).
A39: Investment_Net | B39: Net Investment | E39: Net investment at each phase of each investment round, segmented by type of security. Converted notes and preferred shares and exercised warrants and options are subtracted and added to common stock. Exercise $ amounts for warrants and options are added to Net Investment for common stock. The phase are: * Start = outstanding investment in securities at the beginning of the round * New Sales = new investment in securities in the round * Post Sales = gross investment in securities after sale of new securities * Convert = investment value of securities being converted (notes) or exercised (warrants and options) * End = investments at the end of the round (with converted and exercised securties recorded as common stock)
A40: Investment_Net_End_plt | B40: Net Investment | E40: Net investment at the end of each investment round, segmented by type of security. Used in plots.
A41: Investment_Net_New_plt | B41: Net New Invest | E41: Net new investment in each investment round, segmented by type of security. Used in plots.
A42: Investment_New | B42: New Investment | E42: New investments due to sale of new convertible notes, preferred and common shares, by investment round. New warrants and options are tracked in variable Shares_New because they are specified by number of new shares, not new investment.
A43: Investment_New_Sc0 | B43: New Investment | E43: New investments due to sale of new convertible notes, preferred and common shares, by investment round; investment scenario 1. New warrants and options are tracked in variable Shares_New because they are specified by number of new shares, not new investment.
A44: IRR_Cash_Flow | B44: Cash Flow | E44: Cash flows used to compute present values and internal rates of return for each series and type of security. Includes founders non-cash contributions in the first round and payouts in the last round.
A45: IRR_Initial_Guess_Yr | B45: IRR Initial Guess (Yr) | E45: Initial guess at internal rate of return of the cash flow for holders of each series and type of security, to start the iterative solution for the IRR
A46: IRR_XIRR_Yr | B46: IRR (Yr) | E46: Internal rate of return of cash flow to holders of each series and type of security. Includes new investments, exercise payments (for warrants and options) and final payout at the end of the last investment round.
A47: Liq_Multiple | B47: Liq Multiple | E47: The multiple of new investment that is added to liquidation preference for each class of security, in each investment round
A48: Liq_Preference_End | B48: Liquidation Preference | E48: The amount of liquidiation preference that is due to each class of security (before anything is paid to holders of junior securities, in the event of liquidiation), at the last phase (End) of each round
A49: Liq_Preference_EndLast | B49: Liq Preference | E49: The amount of liquidiation preference that is due to each class of security (before anything is paid to holders of junior securities, in the event of liquidiation), at the last phase (End) of the last round
A50: Liq_Preference_New | B50: Liq Preference New | E50: The amount of new liquidiation preference that is due to each class of security (before anything is paid to holders of junior securities, in the event of liquidiation), at the last phase (End) of each round
A51: Net_Present_Value_XNPV | B51: Net Present Value | E51: Net present value of cash flows to each series of each type of security. Each series and type of security can have its own discount rate to reflect different risks.
A52: OptionWar_Exercise_Amt | B52: Exercise Amt | E52: The amount of exercise payments due upon exercise of outstanding warrants and options. For Phase Convert, the amount of exercise payments made to exercise warrants and options in each round.
A53: OptionWar_Exercise_Price | B53: Exercise Price | E53: Exercise price for each class of stock option. Upon exercise of a warrant or option, the holder pays the exercise price to the company in cash, which amount is added to Investment by Origin for the warrant or option, and added to Net Investment for common stock.
A54: OptionWar_in_Money | B54: Units 'in the Money' | E54: Number of unexercised warrants and options that are in the money in phase End, for each investment round. Used in variable Payout in denominators of formulas.
A55: Payout_by_Origin | B55: Payout by Origin | E55: Funds paid out that are imputed (if paid) to original investments in each type of security, at the end of each investment round. Warrants and options are exercised if they are in the money. The common payout pool covers common shares, including exercised warrants and options.
A56: Payout_by_Origin_Last | B56: Payout by Origin | E56: Funds paid out that are imputed (if paid) to original investments in each type of security, at the end of the last investment round. Warrants and options are exercised if they are in the money. The common payout pool covers common shares, including exercised warrants and options.
A57: Payout_by_Origin_pct | B57: Payout by Origin % | E57: The percentage of funds paid out that are imputed (if paid) to original investments in each type of security, at the end of each investment round. Warrants and options are exercised if they are in the money. The common payout pool covers common shares, including exercised warrants and options.
A58: Payout_by_Origin_pct_LastRnd | B58: Payout by Origin % | E58: The percentage of funds paid out that are imputed (if paid) to original investments in each type of security, at the end of the last investment round. Warrants and options are exercised if they are in the money. The common payout pool covers common shares, including exercised warrants and options.
A59: Payout_End | B59: Payout | E59: The amount of funds that would be paid to each type of security if liquidation occurs at the end of an investment round. Warrants and options are exercised if they are in the money. The common payout pool covers common shares, including exercised warrants and options.
A60: Payout_End_pct | B60: Payout % | E60: The percentage of the entire payout that is paid to each type of security in the final (exit) round
A61: Payout_EndLast | B61: Payout | E61: The amount of funds that would be paid to each type of security if liquidation occurs at the end of the last investment round. Warrants and options are exercised if they are in the money. The common payout pool covers common shares, including exercised warrants and options.
A62: Payout_EndLast_pct | B62: Payout % | E62: The percentage of the entire payout that is paid to each type of security in the final (exit) round
A63: Payout_Pool_End | B63: Payout Pool | E63: The amount of funds available for payout to each type of security at phase End (after conversion of notes and exercise of warrants and options), in each investment round. The common payout pool covers common shares, including exercised warrants and options.
A64: Payout_Pool_EndLast | B64: Payout Pool | E64: The amount of funds available for payout to each type of security at phase End (after conversion of notes and exercise of warrants and options) of the last investment round. The common payout pool covers common shares, including exercised warrants and options.
A65: Price_Common_Init | B65: Initial Common Price | E65: Initial common share price at the start of the seed round
A66: Price_Premium_pct | B66: Price Premium % | E66: Price premium for a preferred share unit over common stock at time of purchase. The premium reflects the contingent value of preference payments and preference dividends.
A67: Price_Unit_Conv | B67: Conversion Price | E67: Price at which securities convert to common stock in each investment round. Conversion occurs after sale of new securities in each round. Conversion prices in general differ from prices for sale of new securities in an earlier phase. * Conversion price of notes is common share price less a discount percent specified by the note. * Conversion price of preferred shares is common share price plus a specified preferred share price premium. * Conversion price of common shares is the current common share price after completion of sale of new securities
A68: Price_Unit_New | B68: Price New Unit | E68: Price at which new warrants and options are purchased. Warrant and option prices are based on current stock price, ignoring the variance of stock price over time.
A69: Price_Unit_New_pct | B69: New Unit Price % | E69: Ratio (price at which new units are purchased) / (common share price - exercise price).
A70: Price_Unit_Start | B70: Share Price | E70: The price of each type of security at the start of each investment round. Prices for sale of new securities in general differ from prices for conversion or exercise of securities in transactions at a later phase. These prices for unexercised options do not account for effects of stock volatility etc. in option pricing models.
A71: Return_Multiple | B71: Return Multiple | E71: The multiple of investment (ex-dividends) that each type of security gets. This is a straight multiple with no discounting for the time value of money. The value of founders' noncash contributions are included as investments in this computation.
A72: Rounds_plt | B72: Rounds | E72: Investment rounds, used for plotting
A73: Scenarios_Invest_Dim | B73: Investment Scenarios
A74: Scenarios_Value_Dim | B74: Scenarios_Value_Dim
A75: Securities_plt | B75: Securities | E75: Types of securities, used for plotting
A76: Shares_Common_by_Origin | B76: Common Shares by Origin | E76: Number of common shares that originated from conversion or exercise of each type of security or sale of common shares, recorded at the end of each investment round
A77: Split_Factor_Start | B77: Split Factor | E77: Factor by which common shares are split before the start of each investment round
A78: Units_Net | B78: Net Units | E78: The number of units of each type of security outstanding or transacted at each phase in each investment round. For convertible notes, share numbers are shown as zero. Warrants and options can be exercised for common shares on one-for-one basis. "Net" means net of conversions and exercises. The transaction phases within each funding round are: * Start = outstanding securities at the beginning of the round * New Sales = sales of new securities in the round * Post Sales = outstanding securities after sale of new securities * Convert = securities being converted (notes) or exercised (warrants and options) * End = outstanding securities after conversions are executed, which is the end of the round Splits occur between rounds, and are included in Start totals.
A79: Units_New | B79: New Units Sold | E79: Numbers of new warrants and options sold, by investment round. Sales of new convertible notes, preferred stock and common stock are input as new investment, from which new shares are computed.
A80: Units_New_Sc0 | B80: New Units | E80: Numbers of new warrants and options sold, by investment round, for investment scenario 1. Sales of new convertible notes, preferred stock and common stock are input as new investment, from which new shares are computed.
A82: Dimension (item) | B82: Display Item As | C82: Total As | D82: Level As | E82: Comment
A83: Convert_Conditions | B83: Convert Conditions | C83: Total | D83: Convert_Conditions | E83: The default conversion decision for each security is positive (negative) if all these built-in conditions are satisfied (not satisfied). 1) The date of the current round has reached the trigger date 2) The sum of investments in common, preferred and notes exceeds the trigger investment threshhold 3) For notes and preferred: the value of the company exceeds a safety criterion (investment in notes + preferred must be less than a stated fraction of firm value). 4) For notes and preferred: value of commmon shares obtained > (1+premium) * liquidation preference. 5) For warrants and options: common share price >= exercise price.
A84: Trigger_Date | B84: Trigger Date | D84: Convert_Conditions
A85: Trigger_Invest | B85: Trigger Invest
A86: Trigger_Value_pct | B86: Trigger Value %
A87: Liquidation | B87: Liquidation
A88: Trigger_Price | B88: Trigger Price
A90: Phases | B90: Phases | C90: Total | D90: Phase | E90: The transaction phases within each funding round. The phases are: * Start = outstanding securities at the beginning of the round * New Sales = sales of new securities in the round * Post Sales = outstanding securities after sale of new securities * Convert = securities being converted (notes) or exercised (warrants and options) * End = outstanding securities after conversions are executed, which is the end of the round Dividends are paid and splits occur between rounds, and are included in Start totals.
A91: Start | B91: Start | D91: Phase
A92: New_Sales | B92: New Sales
A93: Post_Sales | B93: Post Sales
A94: Convert | B94: Convert
A95: End | B95: End
A97: Rounds | B97: Rounds | C97: Total | D97: Rounds | E97: A list of the funding rounds
A98: Seed | B98: Seed | D98: Rounds
A99: Round_A | B99: Round A
A100: Exit | B100: Exit
A102: Securities | B102: Securities | C102: Total | D102: Security | E102: The types of securities and the series within each type. * A convertible note is a loan that is convertible to common stock subject to certain restrictions of time and circumstances. * Preferred stock is equity that has preference rights over common stock in payouts from the company, usually accrues a dividend in each time period, may be convertible to common stock under some circumstances, and may have preferential voting rights. * A warrant is an option that is issued by and guaranteed by the company (whereas options are not so guaranteed) * An option means a "call option" to buy one share of common stock at a fixed "exercise price" before the end of life of the option. You can add new types of securities and new rounds in ModelSheet, but not in exported spreadsheets.
A103: Conv_Note | B103: Conv Note | C103: Subtotal | D103: Security
A104: Series_B | B104: Series B | D104: Security 2
A105: Series_A | B105: Series A
A106: Preferred | B106: Preferred | C106: Subtotal
A107: Series_A | B107: Series A
A108: Common | B108: Common
A109: Warrant | B109: Warrant
A110: Option | B110: Option | C110: Subtotal
A111: Series_B | B111: Series B
A112: Series_A | B112: Series A

Sheet (Ranges) (hidden)
A1: =Investment!D12 -> $0 | B1: =Investment!D13 -> $0 | C1: =Investment!D16 -> $0 | D1: =Investment!D18 -> $1,000,000 | E1: =Investment!D19 -> $0 | F1: =Investment!D21 -> $0 | G1: =Investment!D22 -> $0
A2: =Payout!B43 -> $0 | B2: =Payout!B44 -> $0 | C2: =Payout!B47 -> $0 | D2: =Payout!C47 -> $0 | E2: =Payout!D47 -> $0 | F2: =Payout!B49 -> $1,000,001 | G2: =Payout!B50 -> $0 | H2: =Payout!B52 -> $0 | I2: =Payout!B53 -> $0
A3: =Investment!F12 -> 0.00 | B3: =Investment!F13 -> 0.00 | C3: =Investment!F16 -> 0.00 | D3: =Investment!F18 -> 1,000,000.00 | E3: =Investment!F19 -> 0.00 | F3: =Investment!F21 -> 0.00 | G3: =Investment!F22 -> 0.00
A4: =Payout!D8 -> $0 | B4: =Payout!D9 -> $0 | C4: =Payout!D12 -> $0 | D4: =Payout!D14 -> $1,000,000 | E4: =Payout!D15 -> $0 | F4: =Payout!D17 -> $0 | G4: =Payout!D18 -> $0
A5: ='Plot Support'!B8 -> Conv Note, Series B | B5: ='Plot Support'!B9 -> Conv Note, Series A | C5: ='Plot Support'!B11 -> Preferred, Series A | D5: ='Plot Support'!B12 -> Common | E5: ='Plot Support'!B13 -> Warrant | F5: ='Plot Support'!B15 -> Option, Series B | G5: ='Plot Support'!B16 -> Option, Series A
A7: Plot Support'!Firm_Value_Start
A8: Investment!Event_Date
A9: (Ranges)'!Payout_by_Origin_Last
A10: (Ranges)'!Payout_End
A11: (Ranges)'!Return_Multiple
A12: (Ranges)'!Payout_EndLast
A13: (Ranges)'!Securities_plt
A14: Plot Support'!Rounds_plt
A15: Plot Support'!Investment_Net_New_plt
A16: Plot Support'!Investment_Net_End_plt
A17: Plot Support'!Invest_by_Origin_Conv_plt
A18: Plot Support'!Invest_by_Origin_Preferred_plt
A19: Plot Support'!Invest_by_Origin_Common_plt
A20: Plot Support'!Invest_by_Origin_War_plt
A21: Plot Support'!Invest_by_Origin_Opt_plt
A22: Plot Support'!Invest_End_Conv_plt
A23: Plot Support'!Invest_End_Preferred_plt
A24: Plot Support'!Invest_End_Common_plt
A25: Plot Support'!Invest_End_War_plt
A26: Plot Support'!Invest_End_Opt_plt
A27: Plot Support'!Firm_Value_End

Sheet (Import) (hidden)
A1: :A:0:Price_Unit_Start | B1: =Labels!B70 -> Share Price | C1: :A:-1:Price_Unit_Start | D1: =Labels!E70 -> The price of each type of security at the start of each investment round. Prices for sale of new securities in general differ from prices for conversion or exercise of securities in transactions at a later phase. These prices for unexercised options do not account for effects of stock volatility etc. in option pricing models. | E1: :A:0:Liq_Multiple | F1: =Labels!B47 -> Liq Multiple | G1: :A:-1:Liq_Multiple | H1: =Labels!E47 -> The multiple of new investment that is added to liquidation preference for each class of security, in each investment round | I1: :A:0:Event_Date | J1: =Labels!B20 -> Event Date | K1: :A:-1:Event_Date | L1: =Labels!E20 -> Date of each investment round, determined by investment scenario selected | M1: :A:0:Firm_Value_Start | N1: =Labels!B24 -> Firm Value Start | O1: :A:-1:Firm_Value_Start | P1: =Labels!E24 -> Valuation of the firm at the start of each investment round | Q1: :A:0:Dividend_pct_Yr | R1: =Labels!B19 -> Dividend % (Yr) | S1: :A:-1:Dividend_pct_Yr | T1: =Labels!E19 -> Dividend rate for preferred stock, and interest rate paid on convertible notes before conversion | U1: :A:0:Split_Factor_Start | V1: =Labels!B77 -> Split Factor | W1: :A:-1:Split_Factor_Start | X1: =Labels!E77 -> Factor by which common shares are split before the start of each investment round | Y1: :A:0:Firm_Value | Z1: =Labels!B22 -> Firm Value | AA1: :A:-1:Firm_Value | AB1: =Labels!E22 -> Firm value at phases Start, Post Sales, and End; and change in firm value at phases New Sales and Convert, for each investment round. A new investment (including paying the exercise price to exercise a warrant or option) increases the value of the firm by the amount of the new investment. | AC1: :A:0:Price_Common_Init | AD1: =Labels!B65 -> Initial Common Price | AE1: :A:-1:Price_Common_Init | AF1: =Labels!E65 -> Initial common share price at the start of the seed round | AG1: :A:0:Dividend | AH1: =Labels!B15 -> Dividend | AI1: :A:-1:Dividend | AJ1: =Labels!E15 -> Dividend in kind for convertible notes (before conversion), preferred stock (before conversion), and common stock, paid at start of each investment round | AK1: :A:0:Return_Multiple | AL1: =Labels!B71 -> Return Multiple | AM1: :A:-1:Return_Multiple | AN1: =Labels!E71 -> The multiple of investment (ex-dividends) that each type of security gets. This is a straight multiple with no discounting for the time value of money. The value of founders' noncash contributions are included as investments in this computation. | AO1: :A:0:Investment_by_Origin | AP1: =Labels!B38 -> Investment by Origin | AQ1: :A:-1:Investment_by_Origin | AR1: =Labels!E38 -> Gross investment, segmented by type and series of security, investment round, and phase. Converted notes and preferred shares and exercised warrants and options remain in their respective security types and series. The phase are: * Start = investment in securities at the beginning of the round * New Sales = new investment in securities in the round * Post Sales = gross investment in securities after sale of new securities * Convert = added investment in exercise $ amounts for exercised warrants and options * End = investments at the end of the round (which still include amounts converted). | AS1: :A:0:Convert_Trigger_Invest_Amt | AT1: =Labels!B10 -> Trigger Invest | AU1: :A:-1:Convert_Trigger_Invest_Amt | AV1: =Labels!E10 -> Minimum amount of equity capital that the company must raise before securities can be converted or exercised to obtain common stock. An amount greater than the capitalization of the company indicates that the security cannot be converted (or exercised). | AW1: :A:0:ConvNote_Discount_pct | AX1: =Labels!B13 -> Conv Discount % | AY1: :A:-1:ConvNote_Discount_pct | AZ1: =Labels!E13 -> The discount percent on prevailing common share price that accrue to holders of each series of convertible security at the time of conversion or exercise. This discount is a reward for investing early when the risk was presumed higher. | BA1: :A:0:Convert_Trigger_Date | BB1: =Labels!B9 -> Trigger Date | BC1: :A:-1:Convert_Trigger_Date | BD1: =Labels!E9 -> Date at which securities can first be converted or exercised to obtain common stock. A date beyond the end of model time indicates that there is no trigger date for conversion of the security. | BE1: :A:0:Payout_Pool_End | BF1: =Labels!B63 -> Payout Pool | BG1: :A:-1:Payout_Pool_End | BH1: =Labels!E63 -> The amount of funds available for payout to each type of security at phase End (after conversion of notes and exercise of warrants and options), in each investment round. The common payout pool covers common shares, including exercised warrants and options. | BI1: :A:0:Payout_End | BJ1: =Labels!B59 -> Payout | BK1: :A:-1:Payout_End | BL1: =Labels!E59 -> The amount of funds that would be paid to each type of security if liquidation occurs at the end of an investment round. Warrants and options are exercised if they are in the money. The common payout pool covers common shares, including exercised warrants and options.
A2: :A:0:Payout_End_pct | B2: =Labels!B60 -> Payout % | C2: :A:-1:Payout_End_pct | D2: =Labels!E60 -> The percentage of the entire payout that is paid to each type of security in the final (exit) round | E2: :A:0:Converting_pct | F2: =Labels!B12 -> % Converting | G2: :A:-1:Converting_pct | H2: =Labels!E12 -> Percent of outstanding convertible notes and preferred stock converting; and percent of outstanding warrants and options exercising in each investment round. The model starts with default decisions for what securities to exercise or convert and when. These default decisions are computed in the variable 'Conversion Decisions Default'. You can override the default conversion decisions by entering new values. | I2: :A:0:Price_Unit_Conv | J2: =Labels!B67 -> Conversion Price | K2: :A:-1:Price_Unit_Conv | L2: =Labels!E67 -> Price at which securities convert to common stock in each investment round. Conversion occurs after sale of new securities in each round. Conversion prices in general differ from prices for sale of new securities in an earlier phase. * Conversion price of notes is common share price less a discount percent specified by the note. * Conversion price of preferred shares is common share price plus a specified preferred share price premium. * Conversion price of common shares is the current common share price after completion of sale of new securities | M2: :A:0:Invest_by_Origin_exDiv | N2: =Labels!B28 -> Invest by Origin ex-Dividend | O2: :A:-1:Invest_by_Origin_exDiv | P2: =Labels!E28 -> Gross investment including value of converted securities, and excluding preferred dividends and interest payments on notes, segmented by type of security, by investment round | Q2: :A:0:Units_Net | R2: =Labels!B78 -> Net Units | S2: :A:-1:Units_Net | T2: =Labels!E78 -> The number of units of each type of security outstanding or transacted at each phase in each investment round. For convertible notes, share numbers are shown as zero. Warrants and options can be exercised for common shares on one-for-one basis. "Net" means net of conversions and exercises. The transaction phases within each funding round are: * Start = outstanding securities at the beginning of the round * New Sales = sales of new securities in the round * Post Sales = outstanding securities after sale of new securities * Convert = securities being converted (notes) or exercised (warrants and options) * End = outstanding securities after conversions are executed, which is the end of the round Splits occur between rounds, and are included in Start totals. | U2: :A:0:Company_Name | V2: =Labels!B5 -> Company Name | W2: :A:-1:Company_Name | X2: =Labels!E5 -> Name of the company | Y2: :A:0:Liq_Preference_End | Z2: =Labels!B48 -> Liquidation Preference | AA2: :A:-1:Liq_Preference_End | AB2: =Labels!E48 -> The amount of liquidiation preference that is due to each class of security (before anything is paid to holders of junior securities, in the event of liquidiation), at the last phase (End) of each round | AC2: :A:0:Investment_Net | AD2: =Labels!B39 -> Net Investment | AE2: :A:-1:Investment_Net | AF2: =Labels!E39 -> Net investment at each phase of each investment round, segmented by type of security. Converted notes and preferred shares and exercised warrants and options are subtracted and added to common stock. Exercise $ amounts for warrants and options are added to Net Investment for common stock. The phase are: * Start = outstanding investment in securities at the beginning of the round * New Sales = new investment in securities in the round * Post Sales = gross investment in securities after sale of new securities * Convert = investment value of securities being converted (notes) or exercised (warrants and options) * End = investments at the end of the round (with converted and exercised securties recorded as common stock) | AG2: :A:0:Investment_New | AH2: =Labels!B42 -> New Investment | AI2: :A:-1:Investment_New | AJ2: =Labels!E42 -> New investments due to sale of new convertible notes, preferred and common shares, by investment round. New warrants and options are tracked in variable Shares_New because they are specified by number of new shares, not new investment. | AK2: :A:0:Units_New | AL2: =Labels!B79 -> New Units Sold | AM2: :A:-1:Units_New | AN2: =Labels!E79 -> Numbers of new warrants and options sold, by investment round. Sales of new convertible notes, preferred stock and common stock are input as new investment, from which new shares are computed. | AO2: :A:0:OptionWar_Exercise_Amt | AP2: =Labels!B52 -> Exercise Amt | AQ2: :A:-1:OptionWar_Exercise_Amt | AR2: =Labels!E52 -> The amount of exercise payments due upon exercise of outstanding warrants and options. For Phase Convert, the amount of exercise payments made to exercise warrants and options in each round. | AS2: :A:0:OptionWar_Exercise_Price | AT2: =Labels!B53 -> Exercise Price | AU2: :A:-1:OptionWar_Exercise_Price | AV2: =Labels!E53 -> Exercise price for each class of stock option. Upon exercise of a warrant or option, the holder pays the exercise price to the company in cash, which amount is added to Investment by Origin for the warrant or option, and added to Net Investment for common stock. | AW2: :A:0:Price_Unit_New | AX2: =Labels!B68 -> Price New Unit | AY2: :A:-1:Price_Unit_New | AZ2: =Labels!E68 -> Price at which new warrants and options are purchased. Warrant and option prices are based on current stock price, ignoring the variance of stock price over time. | BA2: :A:0:Price_Unit_New_pct | BB2: =Labels!B69 -> New Unit Price % | BC2: :A:-1:Price_Unit_New_pct | BD2: =Labels!E69 -> Ratio (price at which new units are purchased) / (common share price - exercise price). | BE2: :A:0:Convert_Trigger_Value_pct | BF2: =Labels!B11 -> Trigger Value % | BG2: :A:-1:Convert_Trigger_Value_pct | BH2: =Labels!E11 -> Maximum fraction of the value of a firm that can be in senior securities in order that a series of convertible securities converts. (Other conversion criteria involve dates and minimum equity funding raised by the company.) | BI2: :A:0:Price_Premium_pct | BJ2: =Labels!B66 -> Price Premium % | BK2: :A:-1:Price_Premium_pct | BL2: =Labels!E66 -> Price premium for a preferred share unit over common stock at time of purchase. The premium reflects the contingent value of preference payments and preference dividends.
A3: :A:0:Shares_Common_by_Origin | B3: =Labels!B76 -> Common Shares by Origin | C3: :A:-1:Shares_Common_by_Origin | D3: =Labels!E76 -> Number of common shares that originated from conversion or exercise of each type of security or sale of common shares, recorded at the end of each investment round | E3: :A:0:Payout_by_Origin | F3: =Labels!B55 -> Payout by Origin | G3: :A:-1:Payout_by_Origin | H3: =Labels!E55 -> Funds paid out that are imputed (if paid) to original investments in each type of security, at the end of each investment round. Warrants and options are exercised if they are in the money. The common payout pool covers common shares, including exercised warrants and options. | I3: :A:0:Payout_by_Origin_pct | J3: =Labels!B57 -> Payout by Origin % | K3: :A:-1:Payout_by_Origin_pct | L3: =Labels!E57 -> The percentage of funds paid out that are imputed (if paid) to original investments in each type of security, at the end of each investment round. Warrants and options are exercised if they are in the money. The common payout pool covers common shares, including exercised warrants and options. | M3: :A:0:OptionWar_in_Money | N3: =Labels!B54 -> Units 'in the Money' | O3: :A:-1:OptionWar_in_Money | P3: =Labels!E54 -> Number of unexercised warrants and options that are in the money in phase End, for each investment round. Used in variable Payout in denominators of formulas. | Q3: :A:0:Dividend_Common | R3: =Labels!B18 -> Dividend Common | S3: :A:-1:Dividend_Common | T3: =Labels!E18 -> Dividend paid on common stock, paid at the beginning of each investment round | U3: :A:0:Dividend_by_Origin | V3: =Labels!B16 -> Dividend by Origin | W3: :A:-1:Dividend_by_Origin | X3: =Labels!E16 -> Dividend in kind for convertible notes (before conversion), preferred stock (before conversion), and common stock, paid at start of each investment round. The dividends are segmented by the original type and series of security whose purchase earned the dividend (not by the current type and series of security that earned the dividend). | Y3: :A:0:IRR_Cash_Flow | Z3: =Labels!B44 -> Cash Flow | AA3: :A:-1:IRR_Cash_Flow | AB3: =Labels!E44 -> Cash flows used to compute present values and internal rates of return for each series and type of security. Includes founders non-cash contributions in the first round and payouts in the last round. | AC3: :A:0:Discount_Rate_Yr | AD3: =Labels!B14 -> Discount Rate (Yr) | AE3: :A:-1:Discount_Rate_Yr | AF3: =Labels!E14 -> Annualized discount rates used in computation of present values of investor cash flows | AG3: :A:0:Net_Present_Value_XNPV | AH3: =Labels!B51 -> Net Present Value | AI3: :A:-1:Net_Present_Value_XNPV | AJ3: =Labels!E51 -> Net present value of cash flows to each series of each type of security. Each series and type of security can have its own discount rate to reflect different risks. | AK3: :A:0:IRR_XIRR_Yr | AL3: =Labels!B46 -> IRR (Yr) | AM3: :A:-1:IRR_XIRR_Yr | AN3: =Labels!E46 -> Internal rate of return of cash flow to holders of each series and type of security. Includes new investments, exercise payments (for warrants and options) and final payout at the end of the last investment round. | AO3: :A:0:IRR_Initial_Guess_Yr | AP3: =Labels!B45 -> IRR Initial Guess (Yr) | AQ3: :A:-1:IRR_Initial_Guess_Yr | AR3: =Labels!E45 -> Initial guess at internal rate of return of the cash flow for holders of each series and type of security, to start the iterative solution for the IRR | AS3: :A:0:Event_Date_Sc0 | AT3: =Labels!B21 -> Event Date | AU3: :A:-1:Event_Date_Sc0 | AV3: =Labels!E21 -> Date of each investment round | AW3: :A:0:Firm_Value_Start_Sc0 | AX3: =Labels!B25 -> Firm Value | AY3: :A:-1:Firm_Value_Start_Sc0 | AZ3: =Labels!E25 -> Valuation of the firm at the start of each investment round | BA3: :A:0:Investment_New_Sc0 | BB3: =Labels!B43 -> New Investment | BC3: :A:-1:Investment_New_Sc0 | BD3: =Labels!E43 -> New investments due to sale of new convertible notes, preferred and common shares, by investment round; investment scenario 1. New warrants and options are tracked in variable Shares_New because they are specified by number of new shares, not new investment. | BE3: :A:0:Units_New_Sc0 | BF3: =Labels!B80 -> New Units | BG3: :A:-1:Units_New_Sc0 | BH3: =Labels!E80 -> Numbers of new warrants and options sold, by investment round, for investment scenario 1. Sales of new convertible notes, preferred stock and common stock are input as new investment, from which new shares are computed. | BI3: :A:0:Invest_by_Origin_exDiv_LastRnd | BJ3: =Labels!B29 -> Invest by Origin ex-Div | BK3: :A:-1:Invest_by_Origin_exDiv_LastRnd | BL3: =Labels!E29 -> Gross investment including value of converted securities, and excluding preferred dividends and interest payments on notes, segmented by type of security, by investment round
A4: :A:0:Payout_by_Origin_Last | B4: =Labels!B56 -> Payout by Origin | C4: :A:-1:Payout_by_Origin_Last | D4: =Labels!E56 -> Funds paid out that are imputed (if paid) to original investments in each type of security, at the end of the last investment round. Warrants and options are exercised if they are in the money. The common payout pool covers common shares, including exercised warrants and options. | E4: :A:0:Payout_by_Origin_pct_LastRnd | F4: =Labels!B58 -> Payout by Origin % | G4: :A:-1:Payout_by_Origin_pct_LastRnd | H4: =Labels!E58 -> The percentage of funds paid out that are imputed (if paid) to original investments in each type of security, at the end of the last investment round. Warrants and options are exercised if they are in the money. The common payout pool covers common shares, including exercised warrants and options. | I4: :A:0:Scenarios_Value_Dim | J4: =Labels!B74 -> Scenarios_Value_Dim | K4: :A:-1:Scenarios_Value_Dim | L4: =Labels!E74 -> 0 | M4: :A:0:Scenarios_Invest_Dim | N4: =Labels!B73 -> Investment Scenarios | O4: :A:-1:Scenarios_Invest_Dim | P4: =Labels!E73 -> 0 | Q4: :A:0:Conversion_Decisions_Detail | R4: =Labels!B7 -> Conversion Decisions Detail | S4: :A:-1:Conversion_Decisions_Detail | T4: =Labels!E7 -> The default conversion decision for each security is positive (negative) if all these built-in conditions are satisfied (not satisfied). 1) The date of the current round has reached the trigger date 2) The sum of investments in common, preferred and notes exceeds the trigger investment threshhold 3) For notes and preferred: the value of the company exceeds a safety criterion (investment in notes + preferred must be less than a stated fraction of firm value). 4) For notes and preferred: value of commmon shares obtained > (1+premium) * liquidation preference. 5) For warrants and options: common share price >= exercise price. The cell values have these meanings: +1: conversion condition is satisfied 0 : conversion condition is not satisfied -1: means conversion condition is not relevant You can override these conversion decisions by entering values in variable 'Converting %'. | U4: :A:0:Conversion_Decisions_Default | V4: =Labels!B6 -> Default Conversion Decisions | W4: :A:-1:Conversion_Decisions_Default | X4: =Labels!E6 -> This variable encodes the default conversion decisions for securities. +1 means all conversion conditions are satisfied 0 means some conversion condition is not satisfied This information determines the default values for conversion percents for each security in each round, found in variable 'Convert %'. You can get detail on which conversion conditions are or are not satisfied in variable 'Conversion Decisions Detail'. | Y4: :A:0:Convert_Liq_Premium_pct | Z4: =Labels!B8 -> Liq Premium % | AA4: :A:-1:Convert_Liq_Premium_pct | AB4: =Labels!E8 -> Conversion of securities to common stock must produce this value premium over liquidation preference, in order for the default conversion condition to be satisfied. If < 0, then the company has the right to convert the security to common stock when all the conditions are met. | AC4: :A:0:Liq_Preference_New | AD4: =Labels!B50 -> Liq Preference New | AE4: :A:-1:Liq_Preference_New | AF4: =Labels!E50 -> The amount of new liquidiation preference that is due to each class of security (before anything is paid to holders of junior securities, in the event of liquidiation), at the last phase (End) of each round | AG4: :A:0:Payout_Pool_EndLast | AH4: =Labels!B64 -> Payout Pool | AI4: :A:-1:Payout_Pool_EndLast | AJ4: =Labels!E64 -> The amount of funds available for payout to each type of security at phase End (after conversion of notes and exercise of warrants and options) of the last investment round. The common payout pool covers common shares, including exercised warrants and options. | AK4: :A:0:Liq_Preference_EndLast | AL4: =Labels!B49 -> Liq Preference | AM4: :A:-1:Liq_Preference_EndLast | AN4: =Labels!E49 -> The amount of liquidiation preference that is due to each class of security (before anything is paid to holders of junior securities, in the event of liquidiation), at the last phase (End) of the last round | AO4: :A:0:Payout_EndLast | AP4: =Labels!B61 -> Payout | AQ4: :A:-1:Payout_EndLast | AR4: =Labels!E61 -> The amount of funds that would be paid to each type of security if liquidation occurs at the end of the last investment round. Warrants and options are exercised if they are in the money. The common payout pool covers common shares, including exercised warrants and options. | AS4: :A:0:Payout_EndLast_pct | AT4: =Labels!B62 -> Payout % | AU4: :A:-1:Payout_EndLast_pct | AV4: =Labels!E62 -> The percentage of the entire payout that is paid to each type of security in the final (exit) round | AW4: :A:0:Dividend_by_Origin_Last | AX4: =Labels!B17 -> Dividend by Origin | AY4: :A:-1:Dividend_by_Origin_Last | AZ4: =Labels!E17 -> Dividend in kind for convertible notes (before conversion), preferred stock (before conversion), and common stock, paid at start of lsat investment round. The dividends are segmented by the original type and series of security whose purchase earned the dividend (not by the current type and series of security that earned the dividend). | BA4: :A:0:Investment_Net_New_plt | BB4: =Labels!B41 -> Net New Invest | BC4: :A:-1:Investment_Net_New_plt | BD4: =Labels!E41 -> Net new investment in each investment round, segmented by type of security. Used in plots. | BE4: :A:0:Investment_Net_End_plt | BF4: =Labels!B40 -> Net Investment | BG4: :A:-1:Investment_Net_End_plt | BH4: =Labels!E40 -> Net investment at the end of each investment round, segmented by type of security. Used in plots. | BI4: :A:0:Rounds_plt | BJ4: =Labels!B72 -> Rounds | BK4: :A:-1:Rounds_plt | BL4: =Labels!E72 -> Investment rounds, used for plotting
A5: :A:0:Securities_plt | B5: =Labels!B75 -> Securities | C5: :A:-1:Securities_plt | D5: =Labels!E75 -> Types of securities, used for plotting | E5: :A:0:Firm_Value_End | F5: =Labels!B23 -> Firm Value | G5: :A:-1:Firm_Value_End | H5: =Labels!E23 -> Firm value at End of each investment round. Used in plotting. | I5: :A:0:Invest_by_Origin_Conv_plt | J5: =Labels!B27 -> Invest by Origin Conv Notes | K5: :A:-1:Invest_by_Origin_Conv_plt | L5: =Labels!E27 -> Cumulative gross investment in convertible notes, for each investment round. Used for plotting. | M5: :A:0:Invest_by_Origin_Preferred_plt | N5: =Labels!B31 -> Invest by Origin Preferred | O5: :A:-1:Invest_by_Origin_Preferred_plt | P5: =Labels!E31 -> Cumulative gross investment in preferred stock, for each investment round. Includes dividends. Used for plotting. | Q5: :A:0:Invest_by_Origin_Common_plt | R5: =Labels!B26 -> Invest by Origin Common | S5: :A:-1:Invest_by_Origin_Common_plt | T5: =Labels!E26 -> Cumulative gross investment in common stock, for each investment round. Includes dividends. Used for plotting. | U5: :A:0:Invest_by_Origin_War_plt | V5: =Labels!B32 -> Invest by Origin Warrants | W5: :A:-1:Invest_by_Origin_War_plt | X5: =Labels!E32 -> Cumulative gross investment in warrants, for each investment round. Used for plotting. | Y5: :A:0:Invest_by_Origin_Opt_plt | Z5: =Labels!B30 -> Invest by Origin Options | AA5: :A:-1:Invest_by_Origin_Opt_plt | AB5: =Labels!E30 -> Cumulative gross investment in options, for each investment round. Used for plotting. | AC5: :A:0:Invest_End_Common_plt | AD5: =Labels!B33 -> Invest End of Round Common | AE5: :A:-1:Invest_End_Common_plt | AF5: =Labels!E33 -> Cumulative gross investment in common stock held at the end of each investment round. Includes dividends. Used for plotting. | AG5: :A:0:Invest_End_Conv_plt | AH5: =Labels!B34 -> Invest End Round Notes | AI5: :A:-1:Invest_End_Conv_plt | AJ5: =Labels!E34 -> Cumulative gross investment held in convertible notes, for each investment round. Used for plotting. | AK5: :A:0:Invest_End_Opt_plt | AL5: =Labels!B35 -> Invest End Round Options | AM5: :A:-1:Invest_End_Opt_plt | AN5: =Labels!E35 -> Cumulative gross investment in options held at the end of each investment round. Used for plotting. | AO5: :A:0:Invest_End_Preferred_plt | AP5: =Labels!B36 -> Invest End Round Preferred | AQ5: :A:-1:Invest_End_Preferred_plt | AR5: =Labels!E36 -> Cumulative gross investment held in preferred stock at the end of each investment round. Includes dividends. Used for plotting. | AS5: :A:0:Invest_End_War_plt | AT5: =Labels!B37 -> Invest End Round Warrants | AU5: :A:-1:Invest_End_War_plt | AV5: =Labels!E37 -> Cumulative gross investment held in warrants at the end of each investment round. Includes dividends. Used for plotting. | AW5: :D:-1:Securities | AX5: =Labels!E102 -> The types of securities and the series within each type. * A convertible note is a loan that is convertible to common stock subject to certain restrictions of time and circumstances. * Preferred stock is equity that has preference rights over common stock in payouts from the company, usually accrues a dividend in each time period, may be convertible to common stock under some circumstances, and may have preferential voting rights. * A warrant is an option that is issued by and guaranteed by the company (whereas options are not so guaranteed) * An option means a "call option" to buy one share of common stock at a fixed "exercise price" before the end of life of the option. You can add new types of securities and new rounds in ModelSheet, but not in exported spreadsheets. | AY5: :D:0:Securities | AZ5: =Labels!B102 -> Securities | BA5: :D:2:Securities | BB5: =Labels!D102 -> Security | BC5: :D:1:Securities | BD5: =Labels!C102 -> Total | BE5: :D:0:Securities.Conv_Note | BF5: =Labels!B103 -> Conv Note | BG5: :D:2:Securities.Conv_Note | BH5: =Labels!D103 -> Security | BI5: :D:1:Securities.Conv_Note | BJ5: =Labels!C103 -> Subtotal | BK5: :D:0:Securities.Conv_Note.Series_B | BL5: =Labels!B104 -> Series B
A6: :D:2:Securities.Conv_Note.Series_B | B6: =Labels!D104 -> Security 2 | C6: :D:0:Securities.Conv_Note.Series_A | D6: =Labels!B105 -> Series A | E6: :D:0:Securities.Preferred | F6: =Labels!B106 -> Preferred | G6: :D:1:Securities.Preferred | H6: =Labels!C106 -> Subtotal | I6: :D:0:Securities.Preferred.Series_A | J6: =Labels!B107 -> Series A | K6: :D:0:Securities.Common | L6: =Labels!B108 -> Common | M6: :D:0:Securities.Warrant | N6: =Labels!B109 -> Warrant | O6: :D:0:Securities.Option | P6: =Labels!B110 -> Option | Q6: :D:1:Securities.Option | R6: =Labels!C110 -> Subtotal | S6: :D:0:Securities.Option.Series_B | T6: =Labels!B111 -> Series B | U6: :D:0:Securities.Option.Series_A | V6: =Labels!B112 -> Series A | W6: :D:-1:Phases | X6: =Labels!E90 -> The transaction phases within each funding round. The phases are: * Start = outstanding securities at the beginning of the round * New Sales = sales of new securities in the round * Post Sales = outstanding securities after sale of new securities * Convert = securities being converted (notes) or exercised (warrants and options) * End = outstanding securities after conversions are executed, which is the end of the round Dividends are paid and splits occur between rounds, and are included in Start totals. | Y6: :D:0:Phases | Z6: =Labels!B90 -> Phases | AA6: :D:2:Phases | AB6: =Labels!D90 -> Phase | AC6: :D:1:Phases | AD6: =Labels!C90 -> Total | AE6: :D:0:Phases.Start | AF6: =Labels!B91 -> Start | AG6: :D:2:Phases.Start | AH6: =Labels!D91 -> Phase | AI6: :D:0:Phases.New_Sales | AJ6: =Labels!B92 -> New Sales | AK6: :D:0:Phases.Post_Sales | AL6: =Labels!B93 -> Post Sales | AM6: :D:0:Phases.Convert | AN6: =Labels!B94 -> Convert | AO6: :D:0:Phases.End | AP6: =Labels!B95 -> End | AQ6: :D:-1:Rounds | AR6: =Labels!E97 -> A list of the funding rounds | AS6: :D:0:Rounds | AT6: =Labels!B97 -> Rounds | AU6: :D:2:Rounds | AV6: =Labels!D97 -> Rounds | AW6: :D:1:Rounds | AX6: =Labels!C97 -> Total | AY6: :D:0:Rounds.Seed | AZ6: =Labels!B98 -> Seed | BA6: :D:2:Rounds.Seed | BB6: =Labels!D98 -> Rounds | BC6: :D:0:Rounds.Round_A | BD6: =Labels!B99 -> Round A | BE6: :D:0:Rounds.Exit | BF6: =Labels!B100 -> Exit | BG6: :D:-1:Convert_Conditions | BH6: =Labels!E83 -> The default conversion decision for each security is positive (negative) if all these built-in conditions are satisfied (not satisfied). 1) The date of the current round has reached the trigger date 2) The sum of investments in common, preferred and notes exceeds the trigger investment threshhold 3) For notes and preferred: the value of the company exceeds a safety criterion (investment in notes + preferred must be less than a stated fraction of firm value). 4) For notes and preferred: value of commmon shares obtained > (1+premium) * liquidation preference. 5) For warrants and options: common share price >= exercise price. | BI6: :D:0:Convert_Conditions | BJ6: =Labels!B83 -> Convert Conditions | BK6: :D:2:Convert_Conditions | BL6: =Labels!D83 -> Convert_Conditions
A7: :D:1:Convert_Conditions | B7: =Labels!C83 -> Total | C7: :D:0:Convert_Conditions.Trigger_Date | D7: =Labels!B84 -> Trigger Date | E7: :D:2:Convert_Conditions.Trigger_Date | F7: =Labels!D84 -> Convert_Conditions | G7: :D:0:Convert_Conditions.Trigger_Invest | H7: =Labels!B85 -> Trigger Invest | I7: :D:0:Convert_Conditions.Trigger_Value_pct | J7: =Labels!B86 -> Trigger Value % | K7: :D:0:Convert_Conditions.Liquidation | L7: =Labels!B87 -> Liquidation | M7: :D:0:Convert_Conditions.Trigger_Price | N7: =Labels!B88 -> Trigger Price
A8: :WS:Output Advanced | B8: =Graphs!A1 -> 0 | C8: :WS: | D8: =Inputs!A1 -> Capitalization Table | E8: :WS: | F8: =Investment!A1 -> Capitalization Table | G8: :WS: | H8: =Shares!A1 -> Capitalization Table | I8: :WS: | J8: =Conversion!A1 -> Capitalization Table | K8: :WS: | L8: =Prices!A1 -> Capitalization Table | M8: :WS: | N8: =Options!A1 -> Capitalization Table | O8: :WS: | P8: =Valuation!A1 -> Capitalization Table | Q8: :WS: | R8: =Payout!A1 -> Capitalization Table | S8: :WS: | T8: =Formulas!A1 -> Capitalization Table | U8: :WS: | V8: =Boneyard!A1 -> Capitalization Table | W8: :WS: | X8: ='Plot Support'!A1 -> Capitalization Table | Y8: :WS: | Z8: ='(FnCalls 1)'!A1 -> Capitalization Table | AA8: :WS: | AB8: ='(Other Variables)'!A1 -> Capitalization Table | AC8: :WS: | AD8: =Labels!A1 -> Capitalization Table | AE8: :WS: | AF8: ='(Ranges)'!A1 -> 0 | AG8: :WS: | AH8: ='(Import)'!A1 -> :A:0:Price_Unit_Start
A9: Company_Name[]| | B9: =Inputs!B8 -> ABC Corp. | C9: Event_Date_Sc0["Rounds.Seed"]|=date(2010, 11*1-3, 1) | D9: =Inputs!B14 -> 40391 | E9: Event_Date_Sc0["Rounds.Round_A"]|=date(2010, 11*2-3, 1) | F9: =Inputs!C14 -> 40725 | G9: Event_Date_Sc0["Rounds.Exit"]|=date(2010, 11*3-3, 1) | H9: =Inputs!D14 -> 41061 | I9: ConvNote_Discount_pct["Securities.Conv_Note.Series_B"]|=0.30 | J9: =Inputs!B23 -> 0.3 | K9: Liq_Multiple["Securities.Conv_Note.Series_B"]|=1 | L9: =Inputs!C23 -> 1 | M9: Dividend_pct_Yr["Securities.Conv_Note.Series_B"]|=0.04 | N9: =Inputs!D23 -> 0.04 | O9: ConvNote_Discount_pct["Securities.Conv_Note.Series_A"]|=0.30 | P9: =Inputs!B24 -> 0.3 | Q9: Liq_Multiple["Securities.Conv_Note.Series_A"]|=1 | R9: =Inputs!C24 -> 1 | S9: Dividend_pct_Yr["Securities.Conv_Note.Series_A"]|=0.04 | T9: =Inputs!D24 -> 0.04 | U9: Convert_Trigger_Date["Securities.Conv_Note.Series_B"]|=date(2011,4,1) | V9: =Inputs!B28 -> 40634 | W9: Convert_Trigger_Invest_Amt["Securities.Conv_Note.Series_B"]|=1000000 | X9: =Inputs!C28 -> 1000000 | Y9: Convert_Trigger_Value_pct["Securities.Conv_Note.Series_B"]|=0.50 | Z9: =Inputs!D28 -> 0.5 | AA9: Convert_Liq_Premium_pct["Securities.Conv_Note.Series_B"]|=0.2 | AB9: =Inputs!E28 -> 0.2 | AC9: Convert_Trigger_Date["Securities.Conv_Note.Series_A"]|=date(2011,4,1) | AD9: =Inputs!B29 -> 40634 | AE9: Convert_Trigger_Invest_Amt["Securities.Conv_Note.Series_A"]|=1000000 | AF9: =Inputs!C29 -> 1000000 | AG9: Convert_Trigger_Value_pct["Securities.Conv_Note.Series_A"]|=0.50 | AH9: =Inputs!D29 -> 0.5 | AI9: Convert_Liq_Premium_pct["Securities.Conv_Note.Series_A"]|=0.2 | AJ9: =Inputs!E29 -> 0.2 | AK9: Discount_Rate_Yr["Securities.Conv_Note.Series_B"]|=0.30 | AL9: =Inputs!B33 -> 0.3 | AM9: IRR_Initial_Guess_Yr["Securities.Conv_Note.Series_B"]|=0.50 | AN9: =Inputs!C33 -> 0.5 | AO9: Discount_Rate_Yr["Securities.Conv_Note.Series_A"]|=0.30 | AP9: =Inputs!B34 -> 0.3 | AQ9: IRR_Initial_Guess_Yr["Securities.Conv_Note.Series_A"]|=0.50 | AR9: =Inputs!C34 -> 0.5 | AS9: Investment_New_Sc0["Securities.Conv_Note.Series_B", "Rounds.Seed"]|=0 | AT9: =Inputs!B38 -> 0 | AU9: Investment_New_Sc0["Securities.Conv_Note.Series_B", "Rounds.Round_A"]|=0 | AV9: =Inputs!C38 -> 0 | AW9: Investment_New_Sc0["Securities.Conv_Note.Series_B", "Rounds.Exit"]|=0 | AX9: =Inputs!D38 -> 0 | AY9: Investment_New_Sc0["Securities.Conv_Note.Series_A", "Rounds.Seed"]|=0 | AZ9: =Inputs!B39 -> 0 | BA9: Investment_New_Sc0["Securities.Conv_Note.Series_A", "Rounds.Round_A"]|=0 | BB9: =Inputs!C39 -> 0 | BC9: Investment_New_Sc0["Securities.Conv_Note.Series_A", "Rounds.Exit"]|=0 | BD9: =Inputs!D39 -> 0 | BE9: Price_Premium_pct["Securities.Preferred.Series_A", "Rounds.Seed"]|=0.10 | BF9: =Inputs!B50 -> 0.1 | BG9: Price_Premium_pct["Securities.Preferred.Series_A", "Rounds.Round_A"]|=B50 | BH9: =Inputs!C50 -> 0.1 | BI9: Price_Premium_pct["Securities.Preferred.Series_A", "Rounds.Exit"]|=C50 | BJ9: =Inputs!D50 -> 0.1 | BK9: Liq_Multiple["Securities.Preferred.Series_A"]|=1 | BL9: =Inputs!B53 -> 1
A10: Dividend_pct_Yr["Securities.Preferred.Series_A"]|=0.06 | B10: =Inputs!C53 -> 0.06 | C10: Convert_Trigger_Date["Securities.Preferred.Series_A"]|=date(2011,4,1) | D10: =Inputs!B57 -> 40634 | E10: Convert_Trigger_Invest_Amt["Securities.Preferred.Series_A"]|=1500000 | F10: =Inputs!C57 -> 1500000 | G10: Convert_Trigger_Value_pct["Securities.Preferred.Series_A"]|=0.50 | H10: =Inputs!D57 -> 0.5 | I10: Convert_Liq_Premium_pct["Securities.Preferred.Series_A"]|=-0.2 | J10: =Inputs!E57 -> -0.2 | K10: Discount_Rate_Yr["Securities.Preferred.Series_A"]|=0.30 | L10: =Inputs!B61 -> 0.3 | M10: IRR_Initial_Guess_Yr["Securities.Preferred.Series_A"]|=0.50 | N10: =Inputs!C61 -> 0.5 | O10: Investment_New_Sc0["Securities.Preferred.Series_A", "Rounds.Seed"]|=0 | P10: =Inputs!B65 -> 0 | Q10: Investment_New_Sc0["Securities.Preferred.Series_A", "Rounds.Round_A"]|=0 | R10: =Inputs!C65 -> 0 | S10: Investment_New_Sc0["Securities.Preferred.Series_A", "Rounds.Exit"]|=0 | T10: =Inputs!D65 -> 0 | U10: Price_Common_Init[]| | V10: =Inputs!B71 -> 1 | W10: Split_Factor_Start["Rounds.Seed"]|=1 | X10: =Inputs!B74 -> 1 | Y10: Split_Factor_Start["Rounds.Round_A"]|=1 | Z10: =Inputs!C74 -> 1 | AA10: Split_Factor_Start["Rounds.Exit"]|=1 | AB10: =Inputs!D74 -> 1 | AC10: Dividend_Common["Rounds.Seed"]|=0/3 | AD10: =Inputs!B76 -> 0 | AE10: Dividend_Common["Rounds.Round_A"]|=0/3 | AF10: =Inputs!C76 -> 0 | AG10: Dividend_Common["Rounds.Exit"]|=0/3 | AH10: =Inputs!D76 -> 0 | AI10: Discount_Rate_Yr["Securities.Common"]|=0.30 | AJ10: =Inputs!B80 -> 0.3 | AK10: IRR_Initial_Guess_Yr["Securities.Common"]|=0.50 | AL10: =Inputs!C80 -> 0.5 | AM10: Investment_New_Sc0["Securities.Common", "Rounds.Seed"]|=1 | AN10: =Inputs!B83 -> 1 | AO10: Investment_New_Sc0["Securities.Common", "Rounds.Round_A"]|=0 | AP10: =Inputs!C83 -> 0 | AQ10: Investment_New_Sc0["Securities.Common", "Rounds.Exit"]|=0 | AR10: =Inputs!D83 -> 0 | AS10: Price_Unit_New_pct["Securities.Option.Series_B"]|=1 | AT10: =Inputs!B91 -> 1 | AU10: Price_Unit_New_pct["Securities.Option.Series_A"]|=1 | AV10: =Inputs!B92 -> 1 | AW10: Price_Unit_New["Securities.Option.Series_B", "Rounds.Seed"]|=max(0, B91*Prices!B18+B91*(-B101)) | AX10: =Inputs!B96 -> 1 | AY10: Price_Unit_New["Securities.Option.Series_B", "Rounds.Round_A"]|=max(0, B91*Prices!C18+B91*(-B101)) | AZ10: =Inputs!C96 -> 1000000 | BA10: Price_Unit_New["Securities.Option.Series_B", "Rounds.Exit"]|=max(0, B91*Prices!D18+B91*(-B101)) | BB10: =Inputs!D96 -> 1000000 | BC10: Price_Unit_New["Securities.Option.Series_A", "Rounds.Seed"]|=max(0, B92*Prices!B18+B92*(-B102)) | BD10: =Inputs!B97 -> 1 | BE10: Price_Unit_New["Securities.Option.Series_A", "Rounds.Round_A"]|=max(0, B92*Prices!C18+B92*(-B102)) | BF10: =Inputs!C97 -> 1000000 | BG10: Price_Unit_New["Securities.Option.Series_A", "Rounds.Exit"]|=max(0, B92*Prices!D18+B92*(-B102)) | BH10: =Inputs!D97 -> 1000000 | BI10: Convert_Trigger_Date["Securities.Option.Series_B"]|=date(2011,4,1) | BJ10: =Inputs!C101 -> 40634 | BK10: Convert_Trigger_Invest_Amt["Securities.Option.Series_B"]|=1500000 | BL10: =Inputs!D101 -> 1500000
A11: Convert_Trigger_Value_pct["Securities.Option.Series_B"]|=0.50 | B11: =Inputs!E101 -> 0.5 | C11: Convert_Trigger_Date["Securities.Option.Series_A"]|=date(2011,4,1) | D11: =Inputs!C102 -> 40634 | E11: Convert_Trigger_Invest_Amt["Securities.Option.Series_A"]|=1500000 | F11: =Inputs!D102 -> 1500000 | G11: Convert_Trigger_Value_pct["Securities.Option.Series_A"]|=0.50 | H11: =Inputs!E102 -> 0.5 | I11: Discount_Rate_Yr["Securities.Option.Series_B"]|=0.30 | J11: =Inputs!B107 -> 0.3 | K11: IRR_Initial_Guess_Yr["Securities.Option.Series_B"]|=0.50 | L11: =Inputs!C107 -> 0.5 | M11: Discount_Rate_Yr["Securities.Option.Series_A"]|=0.30 | N11: =Inputs!B108 -> 0.3 | O11: IRR_Initial_Guess_Yr["Securities.Option.Series_A"]|=0.50 | P11: =Inputs!C108 -> 0.5 | Q11: Units_New_Sc0["Securities.Option.Series_B", "Rounds.Seed"]|=0/3/10 | R11: =Inputs!B112 -> 0 | S11: Units_New_Sc0["Securities.Option.Series_B", "Rounds.Round_A"]|=0/3/10 | T11: =Inputs!C112 -> 0 | U11: Units_New_Sc0["Securities.Option.Series_B", "Rounds.Exit"]|=0/3/10 | V11: =Inputs!D112 -> 0 | W11: Units_New_Sc0["Securities.Option.Series_A", "Rounds.Seed"]|=0/3/10 | X11: =Inputs!B113 -> 0 | Y11: Units_New_Sc0["Securities.Option.Series_A", "Rounds.Round_A"]|=0/3/10 | Z11: =Inputs!C113 -> 0 | AA11: Units_New_Sc0["Securities.Option.Series_A", "Rounds.Exit"]|=0/3/10 | AB11: =Inputs!D113 -> 0 | AC11: Firm_Value_Start_Sc0["Rounds.Seed"]|=1000000 | AD11: =Inputs!B121 -> 1000000 | AE11: Firm_Value_Start_Sc0["Rounds.Round_A"]|=1000000 | AF11: =Inputs!B122 -> 1000000 | AG11: Firm_Value_Start_Sc0["Rounds.Exit"]|=1000000 | AH11: =Inputs!B123 -> 1000000 | AI11: Discount_Rate_Yr["Securities.Warrant"]|=0.30 | AJ11: =Investment!D38 -> 0.3 | AK11: Converting_pct["Securities.Conv_Note.Series_B", "Rounds.Seed"]|=B44 | AL11: =Conversion!B28 -> 0 | AM11: Converting_pct["Securities.Conv_Note.Series_B", "Rounds.Round_A"]|=C44 | AN11: =Conversion!C28 -> 0 | AO11: Converting_pct["Securities.Conv_Note.Series_B", "Rounds.Exit"]|=D44 | AP11: =Conversion!D28 -> 0 | AQ11: Converting_pct["Securities.Conv_Note.Series_A", "Rounds.Seed"]|=B45 | AR11: =Conversion!B29 -> 0 | AS11: Converting_pct["Securities.Conv_Note.Series_A", "Rounds.Round_A"]|=C45 | AT11: =Conversion!C29 -> 0 | AU11: Converting_pct["Securities.Conv_Note.Series_A", "Rounds.Exit"]|=D45 | AV11: =Conversion!D29 -> 0 | AW11: Converting_pct["Securities.Preferred.Series_A", "Rounds.Seed"]|=B47 | AX11: =Conversion!B31 -> 0 | AY11: Converting_pct["Securities.Preferred.Series_A", "Rounds.Round_A"]|=C47 | AZ11: =Conversion!C31 -> 0 | BA11: Converting_pct["Securities.Preferred.Series_A", "Rounds.Exit"]|=D47 | BB11: =Conversion!D31 -> 0 | BC11: Converting_pct["Securities.Common", "Rounds.Seed"]|=B48 | BD11: =Conversion!B32 -> 0 | BE11: Converting_pct["Securities.Common", "Rounds.Round_A"]|=C48 | BF11: =Conversion!C32 -> 0 | BG11: Converting_pct["Securities.Common", "Rounds.Exit"]|=D48 | BH11: =Conversion!D32 -> 0 | BI11: Converting_pct["Securities.Warrant", "Rounds.Seed"]|=B49 | BJ11: =Conversion!B33 -> 0 | BK11: Converting_pct["Securities.Warrant", "Rounds.Round_A"]|=C49 | BL11: =Conversion!C33 -> 0
A12: Converting_pct["Securities.Warrant", "Rounds.Exit"]|=D49 | B12: =Conversion!D33 -> 0 | C12: Converting_pct["Securities.Option.Series_B", "Rounds.Seed"]|=B51 | D12: =Conversion!B35 -> 0 | E12: Converting_pct["Securities.Option.Series_B", "Rounds.Round_A"]|=C51 | F12: =Conversion!C35 -> 0 | G12: Converting_pct["Securities.Option.Series_B", "Rounds.Exit"]|=D51 | H12: =Conversion!D35 -> 0 | I12: Converting_pct["Securities.Option.Series_A", "Rounds.Seed"]|=B52 | J12: =Conversion!B36 -> 0 | K12: Converting_pct["Securities.Option.Series_A", "Rounds.Round_A"]|=C52 | L12: =Conversion!C36 -> 0 | M12: Converting_pct["Securities.Option.Series_A", "Rounds.Exit"]|=D52 | N12: =Conversion!D36 -> 0 | O12: Price_Unit_New["Securities.Conv_Note.Series_B", "Rounds.Seed"]|='(Other Variables)'!B19 | P12: =Prices!B14 -> 0 | Q12: Price_Unit_New["Securities.Conv_Note.Series_B", "Rounds.Round_A"]|='(Other Variables)'!C19 | R12: =Prices!C14 -> 0 | S12: Price_Unit_New["Securities.Conv_Note.Series_B", "Rounds.Exit"]|='(Other Variables)'!D19 | T12: =Prices!D14 -> 0 | U12: Price_Unit_New["Securities.Conv_Note.Series_A", "Rounds.Seed"]|='(Other Variables)'!B20 | V12: =Prices!B15 -> 0 | W12: Price_Unit_New["Securities.Conv_Note.Series_A", "Rounds.Round_A"]|='(Other Variables)'!C20 | X12: =Prices!C15 -> 0 | Y12: Price_Unit_New["Securities.Conv_Note.Series_A", "Rounds.Exit"]|='(Other Variables)'!D20 | Z12: =Prices!D15 -> 0 | AA12: Price_Unit_New["Securities.Preferred.Series_A", "Rounds.Seed"]|='(Other Variables)'!B23 | AB12: =Prices!B17 -> 1.1 | AC12: Price_Unit_New["Securities.Preferred.Series_A", "Rounds.Round_A"]|='(Other Variables)'!C23 | AD12: =Prices!C17 -> 1100000 | AE12: Price_Unit_New["Securities.Preferred.Series_A", "Rounds.Exit"]|='(Other Variables)'!D23 | AF12: =Prices!D17 -> 1100000 | AG12: Price_Unit_New["Securities.Common", "Rounds.Seed"]|='(Other Variables)'!B25 | AH12: =Prices!B18 -> 1 | AI12: Price_Unit_New["Securities.Common", "Rounds.Round_A"]|='(Other Variables)'!C25 | AJ12: =Prices!C18 -> 1000000 | AK12: Price_Unit_New["Securities.Common", "Rounds.Exit"]|='(Other Variables)'!D25 | AL12: =Prices!D18 -> 1000000 | AM12: Price_Unit_New["Securities.Warrant", "Rounds.Seed"]|=max(0, Boneyard!D26*B18+Boneyard!D26*(-'(Other Variables)'!B12)) | AN12: =Prices!B19 -> 1 | AO12: Price_Unit_New["Securities.Warrant", "Rounds.Round_A"]|=max(0, Boneyard!D26*C18+Boneyard!D26*(-'(Other Variables)'!B12)) | AP12: =Prices!C19 -> 1000000 | AQ12: Price_Unit_New["Securities.Warrant", "Rounds.Exit"]|=max(0, Boneyard!D26*D18+Boneyard!D26*(-'(Other Variables)'!B12)) | AR12: =Prices!D19 -> 1000000 | AS12: ConvNote_Discount_pct["Securities.Preferred.Series_A"]|=0 | AT12: =Boneyard!B12 -> 0 | AU12: ConvNote_Discount_pct["Securities.Common"]|=0 | AV12: =Boneyard!B13 -> 0 | AW12: ConvNote_Discount_pct["Securities.Warrant"]|=0 | AX12: =Boneyard!B14 -> 0 | AY12: ConvNote_Discount_pct["Securities.Option.Series_B"]|=0 | AZ12: =Boneyard!B16 -> 0 | BA12: ConvNote_Discount_pct["Securities.Option.Series_A"]|=0 | BB12: =Boneyard!B17 -> 0 | BC12: Convert_Trigger_Date["Securities.Common"]|=date(2011,4,1) | BD12: =Boneyard!D13 -> 40634 | BE12: Convert_Trigger_Date["Securities.Warrant"]|=date(2011,4,1) | BF12: =Boneyard!D14 -> 40634 | BG12: Convert_Trigger_Invest_Amt["Securities.Common"]|=1500000 | BH12: =Boneyard!F13 -> 1500000 | BI12: Convert_Trigger_Invest_Amt["Securities.Warrant"]|=1500000 | BJ12: =Boneyard!F14 -> 1500000 | BK12: Convert_Trigger_Value_pct["Securities.Common"]|=0.50 | BL12: =Boneyard!H13 -> 0.5
A13: Convert_Trigger_Value_pct["Securities.Warrant"]|=0.50 | B13: =Boneyard!H14 -> 0.5 | C13: Dividend_pct_Yr["Securities.Common"]|=0 | D13: =Boneyard!B25 -> 0 | E13: Dividend_pct_Yr["Securities.Warrant"]|=0 | F13: =Boneyard!B26 -> 0 | G13: Dividend_pct_Yr["Securities.Option.Series_B"]|=0 | H13: =Boneyard!B28 -> 0 | I13: Dividend_pct_Yr["Securities.Option.Series_A"]|=0 | J13: =Boneyard!B29 -> 0 | K13: Price_Unit_New_pct["Securities.Conv_Note.Series_B"]|=1 | L13: =Boneyard!D21 -> 1 | M13: Price_Unit_New_pct["Securities.Conv_Note.Series_A"]|=1 | N13: =Boneyard!D22 -> 1 | O13: Price_Unit_New_pct["Securities.Preferred.Series_A"]|=1 | P13: =Boneyard!D24 -> 1 | Q13: Price_Unit_New_pct["Securities.Common"]|=1 | R13: =Boneyard!D25 -> 1 | S13: Price_Unit_New_pct["Securities.Warrant"]|=1 | T13: =Boneyard!D26 -> 1 | U13: Liq_Multiple["Securities.Common"]|=0 | V13: =Boneyard!F25 -> 0 | W13: Liq_Multiple["Securities.Warrant"]|=0 | X13: =Boneyard!F26 -> 0 | Y13: Liq_Multiple["Securities.Option.Series_B"]|=0 | Z13: =Boneyard!F28 -> 0 | AA13: Liq_Multiple["Securities.Option.Series_A"]|=0 | AB13: =Boneyard!F29 -> 0 | AC13: Convert_Liq_Premium_pct["Securities.Common"]|=0 | AD13: =Boneyard!H25 -> 0 | AE13: Convert_Liq_Premium_pct["Securities.Warrant"]|=0 | AF13: =Boneyard!H26 -> 0 | AG13: Convert_Liq_Premium_pct["Securities.Option.Series_B"]|=0 | AH13: =Boneyard!H28 -> 0 | AI13: Convert_Liq_Premium_pct["Securities.Option.Series_A"]|=0 | AJ13: =Boneyard!H29 -> 0 | AK13: Price_Premium_pct["Securities.Conv_Note.Series_B", "Rounds.Seed"]|=0 | AL13: =Boneyard!B35 -> 0 | AM13: Price_Premium_pct["Securities.Conv_Note.Series_B", "Rounds.Round_A"]|=B35 | AN13: =Boneyard!C35 -> 0 | AO13: Price_Premium_pct["Securities.Conv_Note.Series_B", "Rounds.Exit"]|=C35 | AP13: =Boneyard!D35 -> 0 | AQ13: Price_Premium_pct["Securities.Conv_Note.Series_A", "Rounds.Seed"]|=0 | AR13: =Boneyard!B36 -> 0 | AS13: Price_Premium_pct["Securities.Conv_Note.Series_A", "Rounds.Round_A"]|=B36 | AT13: =Boneyard!C36 -> 0 | AU13: Price_Premium_pct["Securities.Conv_Note.Series_A", "Rounds.Exit"]|=C36 | AV13: =Boneyard!D36 -> 0 | AW13: Price_Premium_pct["Securities.Common", "Rounds.Seed"]|=0 | AX13: =Boneyard!B39 -> 0 | AY13: Price_Premium_pct["Securities.Common", "Rounds.Round_A"]|=B39 | AZ13: =Boneyard!C39 -> 0 | BA13: Price_Premium_pct["Securities.Common", "Rounds.Exit"]|=C39 | BB13: =Boneyard!D39 -> 0 | BC13: Price_Premium_pct["Securities.Warrant", "Rounds.Seed"]|=0 | BD13: =Boneyard!B40 -> 0 | BE13: Price_Premium_pct["Securities.Warrant", "Rounds.Round_A"]|=B40 | BF13: =Boneyard!C40 -> 0 | BG13: Price_Premium_pct["Securities.Warrant", "Rounds.Exit"]|=C40 | BH13: =Boneyard!D40 -> 0 | BI13: Price_Premium_pct["Securities.Option.Series_B", "Rounds.Seed"]|=0 | BJ13: =Boneyard!B42 -> 0 | BK13: Price_Premium_pct["Securities.Option.Series_B", "Rounds.Round_A"]|=B42 | BL13: =Boneyard!C42 -> 0
A14: Price_Premium_pct["Securities.Option.Series_B", "Rounds.Exit"]|=C42 | B14: =Boneyard!D42 -> 0 | C14: Price_Premium_pct["Securities.Option.Series_A", "Rounds.Seed"]|=0 | D14: =Boneyard!B43 -> 0 | E14: Price_Premium_pct["Securities.Option.Series_A", "Rounds.Round_A"]|=B43 | F14: =Boneyard!C43 -> 0 | G14: Price_Premium_pct["Securities.Option.Series_A", "Rounds.Exit"]|=C43 | H14: =Boneyard!D43 -> 0 | I14: Investment_New_Sc0["Securities.Warrant", "Rounds.Seed"]|=0 | J14: =Boneyard!B54 -> 0 | K14: Investment_New_Sc0["Securities.Warrant", "Rounds.Round_A"]|=0 | L14: =Boneyard!C54 -> 0 | M14: Investment_New_Sc0["Securities.Warrant", "Rounds.Exit"]|=0 | N14: =Boneyard!D54 -> 0 | O14: Investment_New_Sc0["Securities.Option.Series_B", "Rounds.Seed"]|=0 | P14: =Boneyard!B56 -> 0 | Q14: Investment_New_Sc0["Securities.Option.Series_B", "Rounds.Round_A"]|=0 | R14: =Boneyard!C56 -> 0 | S14: Investment_New_Sc0["Securities.Option.Series_B", "Rounds.Exit"]|=0 | T14: =Boneyard!D56 -> 0 | U14: Investment_New_Sc0["Securities.Option.Series_A", "Rounds.Seed"]|=0 | V14: =Boneyard!B57 -> 0 | W14: Investment_New_Sc0["Securities.Option.Series_A", "Rounds.Round_A"]|=0 | X14: =Boneyard!C57 -> 0 | Y14: Investment_New_Sc0["Securities.Option.Series_A", "Rounds.Exit"]|=0 | Z14: =Boneyard!D57 -> 0 | AA14: Units_New_Sc0["Securities.Conv_Note.Series_B", "Rounds.Seed"]|=0/3/10 | AB14: =Boneyard!B63 -> 0 | AC14: Units_New_Sc0["Securities.Conv_Note.Series_B", "Rounds.Round_A"]|=0/3/10 | AD14: =Boneyard!C63 -> 0 | AE14: Units_New_Sc0["Securities.Conv_Note.Series_B", "Rounds.Exit"]|=0/3/10 | AF14: =Boneyard!D63 -> 0 | AG14: Units_New_Sc0["Securities.Conv_Note.Series_A", "Rounds.Seed"]|=0/3/10 | AH14: =Boneyard!B64 -> 0 | AI14: Units_New_Sc0["Securities.Conv_Note.Series_A", "Rounds.Round_A"]|=0/3/10 | AJ14: =Boneyard!C64 -> 0 | AK14: Units_New_Sc0["Securities.Conv_Note.Series_A", "Rounds.Exit"]|=0/3/10 | AL14: =Boneyard!D64 -> 0 | AM14: Units_New_Sc0["Securities.Preferred.Series_A", "Rounds.Seed"]|=0/3/5 | AN14: =Boneyard!B67 -> 0 | AO14: Units_New_Sc0["Securities.Preferred.Series_A", "Rounds.Round_A"]|=0/3/5 | AP14: =Boneyard!C67 -> 0 | AQ14: Units_New_Sc0["Securities.Preferred.Series_A", "Rounds.Exit"]|=0/3/5 | AR14: =Boneyard!D67 -> 0 | AS14: Units_New_Sc0["Securities.Common", "Rounds.Seed"]|=0/3/5 | AT14: =Boneyard!B69 -> 0 | AU14: Units_New_Sc0["Securities.Common", "Rounds.Round_A"]|=0/3/5 | AV14: =Boneyard!C69 -> 0 | AW14: Units_New_Sc0["Securities.Common", "Rounds.Exit"]|=0/3/5 | AX14: =Boneyard!D69 -> 0 | AY14: Units_New_Sc0["Securities.Warrant", "Rounds.Seed"]|=0/3/5 | AZ14: =Boneyard!B70 -> 0 | BA14: Units_New_Sc0["Securities.Warrant", "Rounds.Round_A"]|=0/3/5 | BB14: =Boneyard!C70 -> 0 | BC14: Units_New_Sc0["Securities.Warrant", "Rounds.Exit"]|=0/3/5 | BD14: =Boneyard!D70 -> 0 | BE14: IRR_Initial_Guess_Yr["Securities.Warrant"]|=0.50 | BF14: =Boneyard!B87 -> 0.5
